Organisation name,Organisation Code,Effective date,Directorate / service where expenditure incurred,Service Category label,Service category URI,Supplier (Beneficiary) name,Local supplier (beneficiary) internal reference,Supplier,Supplier registered charity number,VCSE grant,Payment date - G/L Date,Transaction number,Net Amount,Irrecoverable VAT,purpose_of_spend,Procurement classification / merchant category: Council�s procurement category name,Procurement classification / merchant category: CPV label,Procurement classification / merchant category: CPV code,Procurement classification / merchant category: Proclass label,Procurement classification / merchant category: Proclass code,card_transaction
The Royal Borough of Kensington and Chelsea,RBKC,,Environment & Communities,Archives and Local Studies,,Redact Details,1288617,,,,13/12/2022,2200289440,600,,Creditors Control : AP GRIR,,,,,,No
The Royal Borough of Kensington and Chelsea,RBKC,,Adult Social Care,Head of Service Commissioning ASC,,Medequip Assistive Technology Ltd ,1234994,,,,27/10/2022,2200279857,"143,754.31",,Hired and Contracted Services,,,,,,No
The Royal Borough of Kensington and Chelsea,RBKC,,Adult Social Care,Head of Service Commissioning ASC,,Medequip Assistive Technology Ltd ,1234994,,,,05/12/2022,2200287437,"132,051.89",,Hired and Contracted Services,,,,,,No
The Royal Borough of Kensington and Chelsea,RBKC,,Adult Social Care,Head of Service Commissioning ASC,,Medequip Assistive Technology Ltd ,1234994,,,,22/12/2022,2200291109,"162,589.89",,Hired and Contracted Services,,,,,,No
The Royal Borough of Kensington and Chelsea,RBKC,,Adult Social Care,Head of Service Commissioning ASC,,Bevan Brittan Llp ,1232737,,,,18/10/2022,2200278048,"11,369.50",,Legal Costs,,,,,,No
The Royal Borough of Kensington and Chelsea,RBKC,,Adult Social Care,Head of Service Commissioning ASC,,Bevan Brittan Llp ,1232737,,,,19/10/2022,2200278271,825.5,,Legal Costs,,,,,,No
The Royal Borough of Kensington and Chelsea,RBKC,,Adult Social Care,Head of Service Commissioning ASC,,Bevan Brittan Llp ,1232737,,,,08/11/2022,2200282280,"1,433.50",,Legal Costs,,,,,,No
The Royal Borough of Kensington and Chelsea,RBKC,,Adult Social Care,Head of Service Commissioning ASC,,Bevan Brittan Llp ,1232737,,,,21/11/2022,2200285035,"32,396.50",,Legal Costs,,,,,,No
The Royal Borough of Kensington and Chelsea,RBKC,,Adult Social Care,Head of Service Care and Assessment RBKC,,Doro AB,1274450,,,,05/10/2022,2200275306,"3,895.95",,Payments to Voluntary bodies,,,,,,No
The Royal Borough of Kensington and Chelsea,RBKC,,Adult Social Care,Head of Service Care and Assessment RBKC,,Doro AB,1274450,,,,21/10/2022,2200278843,516,,Payments to Voluntary bodies,,,,,,No
The Royal Borough of Kensington and Chelsea,RBKC,,Adult Social Care,Head of Service Care and Assessment RBKC,,Doro AB,1274450,,,,28/10/2022,2200280165,"3,795.95",,Payments to Voluntary bodies,,,,,,No
The Royal Borough of Kensington and Chelsea,RBKC,,Adult Social Care,Head of Service Care and Assessment RBKC,,Doro AB,1274450,,,,23/11/2022,2200285502,528,,Payments to Voluntary bodies,,,,,,No
The Royal Borough of Kensington and Chelsea,RBKC,,Adult Social Care,Head of Service Care and Assessment RBKC,,Doro AB,1274450,,,,23/12/2022,2200291276,596,,Payments to Voluntary bodies,,,,,,No
The Royal Borough of Kensington and Chelsea,RBKC,,Adult Social Care,Head of Service Care and Assessment RBKC,,Doro AB,1274450,,,,28/12/2022,2200291544,"18,210.00",,Payments to Voluntary bodies,,,,,,No
The Royal Borough of Kensington and Chelsea,RBKC,,Adult Social Care,Head of Service Care and Assessment RBKC,,Red Alert Ltd ,1231238,,,,04/10/2022,2200274835,"1,837.50",,Payments to Voluntary bodies,,,,,,No
The Royal Borough of Kensington and Chelsea,RBKC,,Adult Social Care,Head of Service Care and Assessment RBKC,,Red Alert Ltd ,1231238,,,,06/10/2022,2200275585,"1,102.50",,Payments to Voluntary bodies,,,,,,No
The Royal Borough of Kensington and Chelsea,RBKC,,Adult Social Care,Head of Service Care and Assessment RBKC,,Red Alert Ltd ,1231238,,,,27/10/2022,2200279825,"2,205.00",,Payments to Voluntary bodies,,,,,,No
The Royal Borough of Kensington and Chelsea,RBKC,,Adult Social Care,Head of Service Care and Assessment RBKC,,Red Alert Ltd ,1231238,,,,16/11/2022,2200284012,735,,Payments to Voluntary bodies,,,,,,No
The Royal Borough of Kensington and Chelsea,RBKC,,Adult Social Care,Head of Service Care and Assessment RBKC,,Red Alert Ltd ,1231238,,,,05/12/2022,2200287299,"3,307.50",,Payments to Voluntary bodies,,,,,,No
The Royal Borough of Kensington and Chelsea,RBKC,,Adult Social Care,Head of Service Care and Assessment RBKC,,Tunstall Healthcare (UK) Ltd (Use 3012996),1235586,,,,05/10/2022,2200275320,"1,873.50",,Payments to Voluntary bodies,,,,,,No
The Royal Borough of Kensington and Chelsea,RBKC,,Adult Social Care,Head of Service Care and Assessment RBKC,,Tunstall Healthcare (UK) Ltd (Use 3012996),1235586,,,,01/11/2022,2200280589,811.55,,Payments to Voluntary bodies,,,,,,No
The Royal Borough of Kensington and Chelsea,RBKC,,Adult Social Care,Head of Service Care and Assessment RBKC,,Tunstall Healthcare (UK) Ltd (Use 3012996),1235586,,,,29/11/2022,2200286302,707.2,,Payments to Voluntary bodies,,,,,,No
The Royal Borough of Kensington and Chelsea,RBKC,,Adult Social Care,Head of Service Care and Assessment RBKC,,Tunstall Healthcare (UK) Ltd (Use 3012996),1235586,,,,13/12/2022,2200289232,"1,723.80",,Payments to Voluntary bodies,,,,,,No
The Royal Borough of Kensington and Chelsea,RBKC,,Environment & Communities,Support and Systems,,London District Surveyors Association,1234927,,,,20/10/2022,2200278640,695,,Subscriptions,,,,,,No
The Royal Borough of Kensington and Chelsea,RBKC,,Environment & Communities,Support and Systems,,No5 Chambers,1287248,,,,03/11/2022,2200281171,875,,Legal Costs,,,,,,No
The Royal Borough of Kensington and Chelsea,RBKC,,Environment & Communities,Support and Systems,,No5 Chambers,1287248,,,,08/11/2022,2200282321,"1,125.00",,Legal Costs,,,,,,No
The Royal Borough of Kensington and Chelsea,RBKC,,Environment & Communities,Support and Systems,,No5 Chambers,1287248,,,,21/11/2022,2200284944,500,,Legal Costs,,,,,,No
The Royal Borough of Kensington and Chelsea,RBKC,,Environment & Communities,Support and Systems,,No5 Chambers,1287248,,,,28/11/2022,2200286259,500,,Legal Costs,,,,,,No
The Royal Borough of Kensington and Chelsea,RBKC,,Environment & Communities,Leisure and Parks,,C J Jordan & Son Ltd ,1233031,,,,21/10/2022,2200278784,841.1,,Creditors Control : AP GRIR,,,,,,No
The Royal Borough of Kensington and Chelsea,RBKC,,Environment & Communities,Leisure and Parks,,C J Jordan & Son Ltd ,1233031,,,,21/10/2022,2200278800,"1,450.80",,Creditors Control : AP GRIR,,,,,,No
The Royal Borough of Kensington and Chelsea,RBKC,,Environment & Communities,Leisure and Parks,,C J Jordan & Son Ltd ,1233031,,,,24/10/2022,2200279122,976.2,,Creditors Control : AP GRIR,,,,,,No
The Royal Borough of Kensington and Chelsea,RBKC,,Environment & Communities,Leisure and Parks,,C J Jordan & Son Ltd ,1233031,,,,21/11/2022,2200284965,951.5,,Creditors Control : AP GRIR,,,,,,No
The Royal Borough of Kensington and Chelsea,RBKC,,Environment & Communities,Leisure and Parks,,C J Jordan & Son Ltd ,1233031,,,,30/11/2022,2200286620,761.2,,Creditors Control : AP GRIR,,,,,,No
The Royal Borough of Kensington and Chelsea,RBKC,,Environment & Communities,Leisure and Parks,,C J Jordan & Son Ltd ,1233031,,,,20/12/2022,2200290575,841.1,,Creditors Control : AP GRIR,,,,,,No
The Royal Borough of Kensington and Chelsea,RBKC,,Environment & Communities,Leisure and Parks,,C J Jordan & Son Ltd ,1233031,,,,21/12/2022,2200290938,"2,925.40",,Creditors Control : AP GRIR,,,,,,No
The Royal Borough of Kensington and Chelsea,RBKC,,Environment & Communities,Leisure and Parks,,Redact Details,1234806,,,,25/10/2022,2200279218,999,,Creditors Control : AP GRIR,,,,,,No
The Royal Borough of Kensington and Chelsea,RBKC,,Environment & Communities,Leisure and Parks,,Redact Details,1234806,,,,17/11/2022,2200284404,"1,363.00",,Creditors Control : AP GRIR,,,,,,No
The Royal Borough of Kensington and Chelsea,RBKC,,Environment & Communities,Leisure and Parks,,Redact Details,1234806,,,,18/11/2022,2200284591,"1,319.00",,Creditors Control : AP GRIR,,,,,,No
The Royal Borough of Kensington and Chelsea,RBKC,,Environment & Communities,Leisure and Parks,,T/A Idverde ,1231423,,,,05/10/2022,2200275304,"41,331.99",,Creditors Control : AP GRIR,,,,,,No
The Royal Borough of Kensington and Chelsea,RBKC,,Environment & Communities,Leisure and Parks,,T/A Idverde ,1231423,,,,31/10/2022,2200280455,"41,331.99",,Creditors Control : AP GRIR,,,,,,No
The Royal Borough of Kensington and Chelsea,RBKC,,Environment & Communities,Leisure and Parks,,T/A Idverde ,1231423,,,,28/11/2022,2200286208,"41,331.99",,Creditors Control : AP GRIR,,,,,,No
The Royal Borough of Kensington and Chelsea,RBKC,,Environment & Communities,Leisure and Parks,,T/A Idverde ,1231423,,,,14/12/2022,2200289655,"1,213.08",,Creditors Control : AP GRIR,,,,,,No
The Royal Borough of Kensington and Chelsea,RBKC,,Environment & Communities,Leisure and Parks,,T/A Idverde ,1231423,,,,14/12/2022,2200289655,"41,331.99",,Creditors Control : AP GRIR,,,,,,No
The Royal Borough of Kensington and Chelsea,RBKC,,Environment & Communities,Community Safety,,City Of Westminster ,1231771,,,,14/10/2022,2200277395,"73,612.50",,Hired and Contracted Services,,,,,,No
The Royal Borough of Kensington and Chelsea,RBKC,,Environment & Communities,Community Safety,,City Of Westminster ,1231771,,,,14/10/2022,2200277396,"73,612.50",,Hired and Contracted Services,,,,,,No
The Royal Borough of Kensington and Chelsea,RBKC,,Statutory and Corporate Items,Statutory Year-End Adjustments,,24 Seven Companies Ltd,1260952,,,,02/11/2022,2200280853,"1,000.00",,Payments to main contractor,,,,,,No
The Royal Borough of Kensington and Chelsea,RBKC,,Statutory and Corporate Items,Statutory Year-End Adjustments,,24 Seven Companies Ltd,1260952,,,,02/11/2022,2200280854,"1,000.00",,Payments to main contractor,,,,,,No
The Royal Borough of Kensington and Chelsea,RBKC,,Statutory and Corporate Items,Statutory Year-End Adjustments,,24 Seven Companies Ltd,1260952,,,,02/11/2022,2200280856,"1,000.00",,Payments to main contractor,,,,,,No
The Royal Borough of Kensington and Chelsea,RBKC,,Statutory and Corporate Items,Statutory Year-End Adjustments,,24 Seven Companies Ltd,1260952,,,,20/12/2022,2200290609,500,,Payments to main contractor,,,,,,No
The Royal Borough of Kensington and Chelsea,RBKC,,Statutory and Corporate Items,Statutory Year-End Adjustments,,24 Seven Companies Ltd,1260952,,,,20/12/2022,2200290614,500,,Payments to main contractor,,,,,,No
The Royal Borough of Kensington and Chelsea,RBKC,,Statutory and Corporate Items,Statutory Year-End Adjustments,,24 Seven Companies Ltd,1260952,,,,21/12/2022,2200290862,"1,000.00",,Payments to main contractor,,,,,,No
The Royal Borough of Kensington and Chelsea,RBKC,,Statutory and Corporate Items,Statutory Year-End Adjustments,,24 Seven Companies Ltd,1260952,,,,21/12/2022,2200290864,550,,Payments to main contractor,,,,,,No
The Royal Borough of Kensington and Chelsea,RBKC,,Statutory and Corporate Items,Statutory Year-End Adjustments,,3Bm Ltd,1232075,,,,05/10/2022,2200275326,"6,500.00",,Architects,,,,,,No
The Royal Borough of Kensington and Chelsea,RBKC,,Statutory and Corporate Items,Statutory Year-End Adjustments,,3Bm Ltd,1232075,,,,05/10/2022,2200275327,"2,750.00",,Architects,,,,,,No
The Royal Borough of Kensington and Chelsea,RBKC,,Statutory and Corporate Items,Statutory Year-End Adjustments,,3Bm Ltd,1232075,,,,11/10/2022,2200276593,900,,Surveyors,,,,,,No
The Royal Borough of Kensington and Chelsea,RBKC,,Statutory and Corporate Items,Statutory Year-End Adjustments,,3Bm Ltd,1232075,,,,14/10/2022,2200277318,650,,Creditors Control : AP GRIR,,,,,,No
The Royal Borough of Kensington and Chelsea,RBKC,,Statutory and Corporate Items,Statutory Year-End Adjustments,,3Bm Ltd,1232075,,,,14/10/2022,2200277318,"6,500.00",,Creditors Control : AP GRIR,,,,,,No
The Royal Borough of Kensington and Chelsea,RBKC,,Statutory and Corporate Items,Statutory Year-End Adjustments,,3Bm Ltd,1232075,,,,09/11/2022,2200282442,"2,250.00",,Payments to main contractor,,,,,,No
The Royal Borough of Kensington and Chelsea,RBKC,,Statutory and Corporate Items,Statutory Year-End Adjustments,,3Bm Ltd,1232075,,,,09/11/2022,2200282625,"3,300.00",,Payments to main contractor,,,,,,No
The Royal Borough of Kensington and Chelsea,RBKC,,Statutory and Corporate Items,Statutory Year-End Adjustments,,3Bm Ltd,1232075,,,,09/11/2022,2200282626,"2,250.00",,Payments to main contractor,,,,,,No
The Royal Borough of Kensington and Chelsea,RBKC,,Statutory and Corporate Items,Statutory Year-End Adjustments,,3Bm Ltd,1232075,,,,09/11/2022,2200282627,"2,250.00",,Payments to main contractor,,,,,,No
The Royal Borough of Kensington and Chelsea,RBKC,,Statutory and Corporate Items,Statutory Year-End Adjustments,,3Bm Ltd,1232075,,,,09/11/2022,2200282628,"2,250.00",,Payments to main contractor,,,,,,No
The Royal Borough of Kensington and Chelsea,RBKC,,Statutory and Corporate Items,Statutory Year-End Adjustments,,3Bm Ltd,1232075,,,,09/11/2022,2200282629,"12,250.00",,Payments to main contractor,,,,,,No
The Royal Borough of Kensington and Chelsea,RBKC,,Statutory and Corporate Items,Statutory Year-End Adjustments,,3Bm Ltd,1232075,,,,09/11/2022,2200282631,990,,Surveyors,,,,,,No
The Royal Borough of Kensington and Chelsea,RBKC,,Statutory and Corporate Items,Statutory Year-End Adjustments,,3Bm Ltd,1232075,,,,09/11/2022,2200282632,"3,872.00",,Payments to main contractor,,,,,,No
The Royal Borough of Kensington and Chelsea,RBKC,,Statutory and Corporate Items,Statutory Year-End Adjustments,,3Bm Ltd,1232075,,,,09/11/2022,2200282638,"1,929.00",,Payments to main contractor,,,,,,No
The Royal Borough of Kensington and Chelsea,RBKC,,Statutory and Corporate Items,Statutory Year-End Adjustments,,3Bm Ltd,1232075,,,,09/11/2022,2200282639,"5,573.91",,Payments to main contractor,,,,,,No
The Royal Borough of Kensington and Chelsea,RBKC,,Statutory and Corporate Items,Statutory Year-End Adjustments,,3Bm Ltd,1232075,,,,09/11/2022,2200282702,"6,500.00",,Architects,,,,,,No
The Royal Borough of Kensington and Chelsea,RBKC,,Statutory and Corporate Items,Statutory Year-End Adjustments,,3Bm Ltd,1232075,,,,09/11/2022,2200282703,"2,750.00",,Architects,,,,,,No
The Royal Borough of Kensington and Chelsea,RBKC,,Statutory and Corporate Items,Statutory Year-End Adjustments,,3Bm Ltd,1232075,,,,10/11/2022,2200282821,"4,500.00",,Other Consultants,,,,,,No
The Royal Borough of Kensington and Chelsea,RBKC,,Statutory and Corporate Items,Statutory Year-End Adjustments,,3Bm Ltd,1232075,,,,10/11/2022,2200282822,"1,059.11",,Payments to main contractor,,,,,,No
The Royal Borough of Kensington and Chelsea,RBKC,,Statutory and Corporate Items,Statutory Year-End Adjustments,,3Bm Ltd,1232075,,,,16/11/2022,2200284026,"7,080.12",,Payments to main contractor,,,,,,No
The Royal Borough of Kensington and Chelsea,RBKC,,Statutory and Corporate Items,Statutory Year-End Adjustments,,3Bm Ltd,1232075,,,,16/11/2022,2200284027,"7,080.12",,Payments to main contractor,,,,,,No
The Royal Borough of Kensington and Chelsea,RBKC,,Statutory and Corporate Items,Statutory Year-End Adjustments,,3Bm Ltd,1232075,,,,22/11/2022,2200285258,900,,Surveyors,,,,,,No
The Royal Borough of Kensington and Chelsea,RBKC,,Statutory and Corporate Items,Statutory Year-End Adjustments,,3Bm Ltd,1232075,,,,09/12/2022,2200288648,900,,Surveyors,,,,,,No
The Royal Borough of Kensington and Chelsea,RBKC,,Statutory and Corporate Items,Statutory Year-End Adjustments,,3Bm Ltd,1232075,,,,12/12/2022,2200289063,"2,834.00",,Architects,,,,,,No
The Royal Borough of Kensington and Chelsea,RBKC,,Statutory and Corporate Items,Statutory Year-End Adjustments,,3Bm Ltd,1232075,,,,12/12/2022,2200289150,"2,250.00",,Payments to main contractor,,,,,,No
The Royal Borough of Kensington and Chelsea,RBKC,,Statutory and Corporate Items,Statutory Year-End Adjustments,,3Bm Ltd,1232075,,,,14/12/2022,2200289580,571.97,,Surveyors,,,,,,No
The Royal Borough of Kensington and Chelsea,RBKC,,Statutory and Corporate Items,Statutory Year-End Adjustments,,3Bm Ltd,1232075,,,,16/12/2022,2200290072,"23,707.00",,Architects,,,,,,No
The Royal Borough of Kensington and Chelsea,RBKC,,Statutory and Corporate Items,Statutory Year-End Adjustments,,3Bm Ltd,1232075,,,,22/12/2022,2200291169,"4,166.00",,Creditors Control : AP GRIR,,,,,,No
The Royal Borough of Kensington and Chelsea,RBKC,,Statutory and Corporate Items,Statutory Year-End Adjustments,,3Bm Ltd,1232075,,,,22/12/2022,2200291169,"41,660.00",,Creditors Control : AP GRIR,,,,,,No
The Royal Borough of Kensington and Chelsea,RBKC,,Statutory and Corporate Items,Statutory Year-End Adjustments,,3Bm Ltd,1232075,,,,23/12/2022,2200291285,"2,231.90",,Payments to main contractor,,,,,,No
The Royal Borough of Kensington and Chelsea,RBKC,,Statutory and Corporate Items,Statutory Year-End Adjustments,,3Bm Ltd,1232075,,,,29/12/2022,2200291732,"33,385.21",,Payments to main contractor,,,,,,No
The Royal Borough of Kensington and Chelsea,RBKC,,Statutory and Corporate Items,Statutory Year-End Adjustments,,3Bm Ltd,1232075,,,,29/12/2022,2200291733,"6,789.75",,Other Consultants,,,,,,No
The Royal Borough of Kensington and Chelsea,RBKC,,Statutory and Corporate Items,Statutory Year-End Adjustments,,3Bm Ltd,1232075,,,,29/12/2022,2200291737,"3,300.00",,Payments to main contractor,,,,,,No
The Royal Borough of Kensington and Chelsea,RBKC,,Statutory and Corporate Items,Statutory Year-End Adjustments,,3Bm Ltd,1232075,,,,29/12/2022,2200291740,"3,294.50",,Payments to main contractor,,,,,,No
The Royal Borough of Kensington and Chelsea,RBKC,,Statutory and Corporate Items,Statutory Year-End Adjustments,,3Bm Ltd,1232075,,,,29/12/2022,2200291741,"4,464.90",,Other Consultants,,,,,,No
The Royal Borough of Kensington and Chelsea,RBKC,,Statutory and Corporate Items,Statutory Year-End Adjustments,,3Bm Ltd,1232075,,,,29/12/2022,2200291742,"1,210.00",,Payments to main contractor,,,,,,No
The Royal Borough of Kensington and Chelsea,RBKC,,Statutory and Corporate Items,Statutory Year-End Adjustments,,4i Solutions Ltd,1232084,,,,25/10/2022,2200279337,813.41,,Other Consultants,,,,,,No
The Royal Borough of Kensington and Chelsea,RBKC,,Statutory and Corporate Items,Statutory Year-End Adjustments,,4i Solutions Ltd,1232084,,,,25/11/2022,2200285967,"16,647.44",,Payments to main contractor,,,,,,No
The Royal Borough of Kensington and Chelsea,RBKC,,Statutory and Corporate Items,Statutory Year-End Adjustments,,4i Solutions Ltd,1232084,,,,28/11/2022,2200286055,"12,744.79",,Payments to main contractor,,,,,,No
The Royal Borough of Kensington and Chelsea,RBKC,,Statutory and Corporate Items,Statutory Year-End Adjustments,,99 Structural Engineers,1274678,,,,10/11/2022,2200282787,640,,Construction : enhancements,,,,,,No
The Royal Borough of Kensington and Chelsea,RBKC,,Statutory and Corporate Items,Statutory Year-End Adjustments,,A J Oakes And Partners,1232092,,,,05/12/2022,2200287267,"3,175.00",,Construction : enhancements,,,,,,No
The Royal Borough of Kensington and Chelsea,RBKC,,Statutory and Corporate Items,Statutory Year-End Adjustments,,A N Contract Service Ltd,1232095,,,,31/10/2022,2200280466,"3,813.00",,Planned Maintenance (CM),,,,,,No
The Royal Borough of Kensington and Chelsea,RBKC,,Statutory and Corporate Items,Statutory Year-End Adjustments,,A N Contract Service Ltd,1232095,,,,09/11/2022,2200282566,"3,135.00",,Planned Maintenance (CM),,,,,,No
The Royal Borough of Kensington and Chelsea,RBKC,,Statutory and Corporate Items,Statutory Year-End Adjustments,,A N Contract Service Ltd,1232095,,,,11/11/2022,2200283077,"3,775.00",,Planned Maintenance (CM),,,,,,No
The Royal Borough of Kensington and Chelsea,RBKC,,Statutory and Corporate Items,Statutory Year-End Adjustments,,A N Contract Service Ltd,1232095,,,,11/11/2022,2200283208,"4,500.00",,Planned Maintenance (CM),,,,,,No
The Royal Borough of Kensington and Chelsea,RBKC,,Statutory and Corporate Items,Statutory Year-End Adjustments,,A1 Loo Hire ,1232098,,,,28/11/2022,2200286074,650,,Professional Fees : Non Legal,,,,,,No
The Royal Borough of Kensington and Chelsea,RBKC,,Statutory and Corporate Items,Statutory Year-End Adjustments,,ACS PROFESSIONALS IN CONSTRUCTION LTD,1277658,,,,05/10/2022,2200275224,"180,497.14",,Payments to main contractor,,,,,,No
The Royal Borough of Kensington and Chelsea,RBKC,,Statutory and Corporate Items,Statutory Year-End Adjustments,,ACS PROFESSIONALS IN CONSTRUCTION LTD,1277658,,,,11/10/2022,2200276424,"416,609.05",,Payments to main contractor,,,,,,No
The Royal Borough of Kensington and Chelsea,RBKC,,Statutory and Corporate Items,Statutory Year-End Adjustments,,ACS PROFESSIONALS IN CONSTRUCTION LTD,1277658,,,,11/11/2022,2200283205,"263,931.08",,Payments to main contractor,,,,,,No
The Royal Borough of Kensington and Chelsea,RBKC,,Statutory and Corporate Items,Statutory Year-End Adjustments,,ACS PROFESSIONALS IN CONSTRUCTION LTD,1277658,,,,19/12/2022,2200290172,"333,160.51",,Payments to main contractor,,,,,,No
The Royal Borough of Kensington and Chelsea,RBKC,,Statutory and Corporate Items,Statutory Year-End Adjustments,,Akdesign Consultants Ltd,1263929,,,,07/11/2022,2200282086,"1,150.00",,Professional Fees : Non Legal,,,,,,No
The Royal Borough of Kensington and Chelsea,RBKC,,Statutory and Corporate Items,Statutory Year-End Adjustments,,Akdesign Consultants Ltd,1263929,,,,29/11/2022,2200286352,"1,000.00",,Professional Fees : Non Legal,,,,,,No
The Royal Borough of Kensington and Chelsea,RBKC,,Statutory and Corporate Items,Statutory Year-End Adjustments,,Akdesign Consultants Ltd,1263929,,,,29/11/2022,2200286353,855,,Professional Fees : Non Legal,,,,,,No
The Royal Borough of Kensington and Chelsea,RBKC,,Statutory and Corporate Items,Statutory Year-End Adjustments,,Ans Group Ltd,1265384,,,,19/10/2022,2200278290,"10,500.00",,Other capital equipment,,,,,,No
The Royal Borough of Kensington and Chelsea,RBKC,,Statutory and Corporate Items,Statutory Year-End Adjustments,,Ans Group Ltd,1265384,,,,10/11/2022,2200282851,"3,941.10",,Other capital equipment,,,,,,No
The Royal Borough of Kensington and Chelsea,RBKC,,Statutory and Corporate Items,Statutory Year-End Adjustments,,Ans Group Ltd,1265384,,,,30/11/2022,2200286618,"10,500.00",,Other capital equipment,,,,,,No
The Royal Borough of Kensington and Chelsea,RBKC,,Statutory and Corporate Items,Statutory Year-End Adjustments,,AO Business,1232416,,,,04/10/2022,2200274979,623.33,,Special Maintenance,,,,,,No
The Royal Borough of Kensington and Chelsea,RBKC,,Statutory and Corporate Items,Statutory Year-End Adjustments,,AO Business,1232416,,,,04/10/2022,2200274981,"1,789.50",,Special Maintenance,,,,,,No
The Royal Borough of Kensington and Chelsea,RBKC,,Statutory and Corporate Items,Statutory Year-End Adjustments,,AO Business,1232416,,,,09/11/2022,2200282468,"3,450.00",,Special Maintenance,,,,,,No
The Royal Borough of Kensington and Chelsea,RBKC,,Statutory and Corporate Items,Statutory Year-End Adjustments,,AO Business,1232416,,,,09/11/2022,2200282486,"3,595.38",,Special Maintenance,,,,,,No
The Royal Borough of Kensington and Chelsea,RBKC,,Statutory and Corporate Items,Statutory Year-End Adjustments,,AO Business,1232416,,,,09/11/2022,2200282490,"1,015.00",,Special Maintenance,,,,,,No
The Royal Borough of Kensington and Chelsea,RBKC,,Statutory and Corporate Items,Statutory Year-End Adjustments,,AO Business,1232416,,,,09/11/2022,2200282503,741.43,,Special Maintenance,,,,,,No
The Royal Borough of Kensington and Chelsea,RBKC,,Statutory and Corporate Items,Statutory Year-End Adjustments,,AO Business,1232416,,,,09/11/2022,2200282534,"11,713.78",,Special Maintenance,,,,,,No
The Royal Borough of Kensington and Chelsea,RBKC,,Statutory and Corporate Items,Statutory Year-End Adjustments,,AO Business,1232416,,,,09/11/2022,2200282540,"1,298.34",,Special Maintenance,,,,,,No
The Royal Borough of Kensington and Chelsea,RBKC,,Statutory and Corporate Items,Statutory Year-End Adjustments,,AO Business,1232416,,,,06/12/2022,2200287817,708.96,,Special Maintenance,,,,,,No
The Royal Borough of Kensington and Chelsea,RBKC,,Statutory and Corporate Items,Statutory Year-End Adjustments,,AO Business,1232416,,,,13/12/2022,2200289446,690,,Special Maintenance,,,,,,No
The Royal Borough of Kensington and Chelsea,RBKC,,Statutory and Corporate Items,Statutory Year-End Adjustments,,AO Business,1232416,,,,13/12/2022,2200289447,"7,087.25",,Special Maintenance,,,,,,No
The Royal Borough of Kensington and Chelsea,RBKC,,Statutory and Corporate Items,Statutory Year-End Adjustments,,AO Business,1232416,,,,13/12/2022,2200289448,"1,140.75",,Special Maintenance,,,,,,No
The Royal Borough of Kensington and Chelsea,RBKC,,Statutory and Corporate Items,Statutory Year-End Adjustments,,AO Business,1232416,,,,14/12/2022,2200289689,"1,393.65",,Special Maintenance,,,,,,No
The Royal Borough of Kensington and Chelsea,RBKC,,Statutory and Corporate Items,Statutory Year-End Adjustments,,AO Business,1232416,,,,14/12/2022,2200289707,"8,573.65",,Special Maintenance,,,,,,No
The Royal Borough of Kensington and Chelsea,RBKC,,Statutory and Corporate Items,Statutory Year-End Adjustments,,ASRS (Yeovil) Ltd,1300083,,,,08/12/2022,2200288203,"1,820.00",,Construction : enhancements,,,,,,No
The Royal Borough of Kensington and Chelsea,RBKC,,Statutory and Corporate Items,Statutory Year-End Adjustments,,Abbey Builders Ltd ,1232102,,,,20/10/2022,2200278548,"7,370.08",,Payments to main contractor,,,,,,No
The Royal Borough of Kensington and Chelsea,RBKC,,Statutory and Corporate Items,Statutory Year-End Adjustments,,Academy Consulting Solutions Ltd ,1232117,,,,05/10/2022,2200275245,"3,000.00",,Site Works,,,,,,No
The Royal Borough of Kensington and Chelsea,RBKC,,Statutory and Corporate Items,Statutory Year-End Adjustments,,Adam Architecture Ltd ,1232322,,,,05/10/2022,2200275174,880,,Construction : enhancements,,,,,,No
The Royal Borough of Kensington and Chelsea,RBKC,,Statutory and Corporate Items,Statutory Year-End Adjustments,,Adam Architecture Ltd ,1232322,,,,08/11/2022,2200282322,880,,Construction : enhancements,,,,,,No
The Royal Borough of Kensington and Chelsea,RBKC,,Statutory and Corporate Items,Statutory Year-End Adjustments,,Adam Architecture Ltd ,1232322,,,,02/12/2022,2200287082,880,,Construction : enhancements,,,,,,No
The Royal Borough of Kensington and Chelsea,RBKC,,Statutory and Corporate Items,Statutory Year-End Adjustments,,Alexander Scaffold Ltd ,1231166,,,,13/12/2022,2200289472,"5,029.96",,Payments to main contractor,,,,,,No
The Royal Borough of Kensington and Chelsea,RBKC,,Statutory and Corporate Items,Statutory Year-End Adjustments,,Alexander Scaffold Ltd ,1231166,,,,14/12/2022,2200289606,"1,291.40",,Payments to main contractor,,,,,,No
The Royal Borough of Kensington and Chelsea,RBKC,,Statutory and Corporate Items,Statutory Year-End Adjustments,,Allies & Morrison LLP ,1232371,,,,03/10/2022,2200274587,"2,500.00",,Payments to sub contractor,,,,,,No
The Royal Borough of Kensington and Chelsea,RBKC,,Statutory and Corporate Items,Statutory Year-End Adjustments,,Allies & Morrison LLP ,1232371,,,,08/11/2022,2200282314,500,,Payments to sub contractor,,,,,,No
The Royal Borough of Kensington and Chelsea,RBKC,,Statutory and Corporate Items,Statutory Year-End Adjustments,,Allies & Morrison LLP ,1232371,,,,17/11/2022,2200284497,"4,253.50",,Payments to main contractor,,,,,,No
The Royal Borough of Kensington and Chelsea,RBKC,,Statutory and Corporate Items,Statutory Year-End Adjustments,,Allies & Morrison LLP ,1232371,,,,29/11/2022,2200286356,"2,631.74",,Construction : enhancements,,,,,,No
The Royal Borough of Kensington and Chelsea,RBKC,,Statutory and Corporate Items,Statutory Year-End Adjustments,,Amber Construction Services Ltd,1231168,,,,29/11/2022,2200286354,"299,174.52",,Safety Fence & Barriers,,,,,,No
The Royal Borough of Kensington and Chelsea,RBKC,,Statutory and Corporate Items,Statutory Year-End Adjustments,,Amwell Construction Ltd ,1231169,,,,07/10/2022,2200275777,"6,765.00",,Payments to main contractor,,,,,,No
The Royal Borough of Kensington and Chelsea,RBKC,,Statutory and Corporate Items,Statutory Year-End Adjustments,,Amwell Construction Ltd ,1231169,,,,07/10/2022,2200275778,"7,297.00",,Payments to main contractor,,,,,,No
The Royal Borough of Kensington and Chelsea,RBKC,,Statutory and Corporate Items,Statutory Year-End Adjustments,,Amwell Construction Ltd ,1231169,,,,07/10/2022,2200275779,"7,238.00",,Payments to main contractor,,,,,,No
The Royal Borough of Kensington and Chelsea,RBKC,,Statutory and Corporate Items,Statutory Year-End Adjustments,,Amwell Construction Ltd ,1231169,,,,21/10/2022,2200278803,"6,995.93",,Payments to main contractor,,,,,,No
The Royal Borough of Kensington and Chelsea,RBKC,,Statutory and Corporate Items,Statutory Year-End Adjustments,,Amwell Construction Ltd ,1231169,,,,30/11/2022,2200286524,"5,957.00",,Payments to main contractor,,,,,,No
The Royal Borough of Kensington and Chelsea,RBKC,,Statutory and Corporate Items,Statutory Year-End Adjustments,,Amwell Construction Ltd ,1231169,,,,22/12/2022,2200291133,"6,642.00",,Payments to main contractor,,,,,,No
The Royal Borough of Kensington and Chelsea,RBKC,,Statutory and Corporate Items,Statutory Year-End Adjustments,,Angel Interiors (UK) Ltd,1231170,,,,28/11/2022,2200286184,"2,090.00",,Site Works,,,,,,No
The Royal Borough of Kensington and Chelsea,RBKC,,Statutory and Corporate Items,Statutory Year-End Adjustments,,Ansador Ltd ,1232405,,,,07/11/2022,2200282095,982.5,,Payments to main contractor,,,,,,No
The Royal Borough of Kensington and Chelsea,RBKC,,Statutory and Corporate Items,Statutory Year-End Adjustments,,Ansador Ltd ,1232405,,,,07/11/2022,2200282096,"2,232.00",,Payments to main contractor,,,,,,No
The Royal Borough of Kensington and Chelsea,RBKC,,Statutory and Corporate Items,Statutory Year-End Adjustments,,Aquaneed Ltd,1260944,,,,09/11/2022,2200282419,"7,209.58",,Payments to main contractor,,,,,,No
The Royal Borough of Kensington and Chelsea,RBKC,,Statutory and Corporate Items,Statutory Year-End Adjustments,,Aquaneed Ltd,1260944,,,,14/11/2022,2200283316,"10,288.83",,Payments to main contractor,,,,,,No
The Royal Borough of Kensington and Chelsea,RBKC,,Statutory and Corporate Items,Statutory Year-End Adjustments,,Aquaneed Ltd,1260944,,,,20/12/2022,2200290684,"1,203.14",,Payments to main contractor,,,,,,No
The Royal Borough of Kensington and Chelsea,RBKC,,Statutory and Corporate Items,Statutory Year-End Adjustments,,Arcadis Llp ,1232430,,,,22/11/2022,2200285168,"15,000.00",,Other Consultants,,,,,,No
The Royal Borough of Kensington and Chelsea,RBKC,,Statutory and Corporate Items,Statutory Year-End Adjustments,,Arcadis Llp ,1232430,,,,28/11/2022,2200286182,"46,400.00",,Other Consultants,,,,,,No
The Royal Borough of Kensington and Chelsea,RBKC,,Statutory and Corporate Items,Statutory Year-End Adjustments,,Arcus Consulting Llp,1265536,,,,05/10/2022,2200275315,"2,747.06",,Payments to main contractor,,,,,,No
The Royal Borough of Kensington and Chelsea,RBKC,,Statutory and Corporate Items,Statutory Year-End Adjustments,,Arcus Consulting Llp,1265536,,,,05/10/2022,2200275316,"2,373.71",,Site Works,,,,,,No
The Royal Borough of Kensington and Chelsea,RBKC,,Statutory and Corporate Items,Statutory Year-End Adjustments,,Arcus Consulting Llp,1265536,,,,08/11/2022,2200282302,"2,373.71",,Site Works,,,,,,No
The Royal Borough of Kensington and Chelsea,RBKC,,Statutory and Corporate Items,Statutory Year-End Adjustments,,Arcus Consulting Llp,1265536,,,,08/11/2022,2200282304,"2,747.06",,Payments to main contractor,,,,,,No
The Royal Borough of Kensington and Chelsea,RBKC,,Statutory and Corporate Items,Statutory Year-End Adjustments,,Arcus Consulting Llp,1265536,,,,09/12/2022,2200288652,"2,747.06",,Payments to main contractor,,,,,,No
The Royal Borough of Kensington and Chelsea,RBKC,,Statutory and Corporate Items,Statutory Year-End Adjustments,,Arcus Consulting Llp,1265536,,,,09/12/2022,2200288653,"2,373.71",,Site Works,,,,,,No
The Royal Borough of Kensington and Chelsea,RBKC,,Statutory and Corporate Items,Statutory Year-End Adjustments,,Ark Build Plc ,1231173,,,,19/10/2022,2200278305,"16,150.56",,Payments to main contractor,,,,,,No
The Royal Borough of Kensington and Chelsea,RBKC,,Statutory and Corporate Items,Statutory Year-End Adjustments,,Ark Build Plc ,1231173,,,,09/11/2022,2200282448,"19,398.17",,Payments to main contractor,,,,,,No
The Royal Borough of Kensington and Chelsea,RBKC,,Statutory and Corporate Items,Statutory Year-End Adjustments,,Ark Build Plc ,1231173,,,,28/11/2022,2200286068,"34,330.13",,Other Consultants,,,,,,No
The Royal Borough of Kensington and Chelsea,RBKC,,Statutory and Corporate Items,Statutory Year-End Adjustments,,Ark Build Plc ,1231173,,,,09/12/2022,2200288656,"24,427.22",,Payments to main contractor,,,,,,No
The Royal Borough of Kensington and Chelsea,RBKC,,Statutory and Corporate Items,Statutory Year-End Adjustments,,Ark Consultancy Limited,1275605,,,,24/10/2022,2200279076,"16,134.00",,Other Consultants,,,,,,No
The Royal Borough of Kensington and Chelsea,RBKC,,Statutory and Corporate Items,Statutory Year-End Adjustments,,Ark Consultancy Limited,1275605,,,,06/12/2022,2200287869,"20,000.03",,Other Consultants,,,,,,No
The Royal Borough of Kensington and Chelsea,RBKC,,Statutory and Corporate Items,Statutory Year-End Adjustments,,Ashfords Llp ,1232627,,,,05/10/2022,2200275244,"1,267.20",,Legal Fees & expenses,,,,,,No
The Royal Borough of Kensington and Chelsea,RBKC,,Statutory and Corporate Items,Statutory Year-End Adjustments,,Ashfords Llp ,1232627,,,,11/10/2022,2200276608,"6,175.00",,Other Consultants,,,,,,No
The Royal Borough of Kensington and Chelsea,RBKC,,Statutory and Corporate Items,Statutory Year-End Adjustments,,Ashfords Llp ,1232627,,,,11/10/2022,2200276610,"7,450.00",,Other Consultants,,,,,,No
The Royal Borough of Kensington and Chelsea,RBKC,,Statutory and Corporate Items,Statutory Year-End Adjustments,,Ashfords Llp ,1232627,,,,11/10/2022,2200276622,"3,879.00",,Other Consultants,,,,,,No
The Royal Borough of Kensington and Chelsea,RBKC,,Statutory and Corporate Items,Statutory Year-End Adjustments,,Ashfords Llp ,1232627,,,,02/11/2022,2200280787,"1,495.00",,Other Consultants,,,,,,No
The Royal Borough of Kensington and Chelsea,RBKC,,Statutory and Corporate Items,Statutory Year-End Adjustments,,Ashfords Llp ,1232627,,,,02/11/2022,2200280855,"1,078.00",,Other Consultants,,,,,,No
The Royal Borough of Kensington and Chelsea,RBKC,,Statutory and Corporate Items,Statutory Year-End Adjustments,,Ashfords Llp ,1232627,,,,02/11/2022,2200280992,588,,Legal Fees & expenses,,,,,,No
The Royal Borough of Kensington and Chelsea,RBKC,,Statutory and Corporate Items,Statutory Year-End Adjustments,,Ashfords Llp ,1232627,,,,04/11/2022,2200281429,"1,112.00",,Professional Fees : Non Legal,,,,,,No
The Royal Borough of Kensington and Chelsea,RBKC,,Statutory and Corporate Items,Statutory Year-End Adjustments,,Ashfords Llp ,1232627,,,,04/11/2022,2200281708,"7,878.00",,Other Consultants,,,,,,No
The Royal Borough of Kensington and Chelsea,RBKC,,Statutory and Corporate Items,Statutory Year-End Adjustments,,Ashfords Llp ,1232627,,,,07/11/2022,2200282084,"2,520.00",,Professional Fees : Non Legal,,,,,,No
The Royal Borough of Kensington and Chelsea,RBKC,,Statutory and Corporate Items,Statutory Year-End Adjustments,,Ashfords Llp ,1232627,,,,14/11/2022,2200283447,670,,Other Consultants,,,,,,No
The Royal Borough of Kensington and Chelsea,RBKC,,Statutory and Corporate Items,Statutory Year-End Adjustments,,Ashfords Llp ,1232627,,,,29/11/2022,2200286446,"2,760.00",,Professional Fees : Non Legal,,,,,,No
The Royal Borough of Kensington and Chelsea,RBKC,,Statutory and Corporate Items,Statutory Year-End Adjustments,,Ashfords Llp ,1232627,,,,02/12/2022,2200287102,"1,075.00",,Professional Fees : Non Legal,,,,,,No
The Royal Borough of Kensington and Chelsea,RBKC,,Statutory and Corporate Items,Statutory Year-End Adjustments,,Ashfords Llp ,1232627,,,,02/12/2022,2200287134,"1,339.20",,Legal Fees & expenses,,,,,,No
The Royal Borough of Kensington and Chelsea,RBKC,,Statutory and Corporate Items,Statutory Year-End Adjustments,,Ashfords Llp ,1232627,,,,02/12/2022,2200287162,689,,Legal Fees & expenses,,,,,,No
The Royal Borough of Kensington and Chelsea,RBKC,,Statutory and Corporate Items,Statutory Year-End Adjustments,,Ashfords Llp ,1232627,,,,06/12/2022,2200287771,"18,987.50",,Other Consultants,,,,,,No
The Royal Borough of Kensington and Chelsea,RBKC,,Statutory and Corporate Items,Statutory Year-End Adjustments,,Ashfords Llp ,1232627,,,,06/12/2022,2200287893,594,,Other Consultants,,,,,,No
The Royal Borough of Kensington and Chelsea,RBKC,,Statutory and Corporate Items,Statutory Year-End Adjustments,,Ashfords Llp ,1232627,,,,07/12/2022,2200287962,"7,950.00",,Other Consultants,,,,,,No
The Royal Borough of Kensington and Chelsea,RBKC,,Statutory and Corporate Items,Statutory Year-End Adjustments,,Ashfords Llp ,1232627,,,,08/12/2022,2200288456,890,,Other Consultants,,,,,,No
The Royal Borough of Kensington and Chelsea,RBKC,,Statutory and Corporate Items,Statutory Year-End Adjustments,,Ashfords Llp ,1232627,,,,08/12/2022,2200288473,"2,258.00",,Other Consultants,,,,,,No
The Royal Borough of Kensington and Chelsea,RBKC,,Statutory and Corporate Items,Statutory Year-End Adjustments,,Ashfords Llp ,1232627,,,,09/12/2022,2200288657,726,,Legal Fees & expenses,,,,,,No
The Royal Borough of Kensington and Chelsea,RBKC,,Statutory and Corporate Items,Statutory Year-End Adjustments,,Ashfords Llp ,1232627,,,,14/12/2022,2200289604,"5,726.00",,Legal Fees & expenses,,,,,,No
The Royal Borough of Kensington and Chelsea,RBKC,,Statutory and Corporate Items,Statutory Year-End Adjustments,,Axis Europe Plc,1232679,,,,01/11/2022,2200280622,"21,086.68",,Payments to main contractor,,,,,,No
The Royal Borough of Kensington and Chelsea,RBKC,,Statutory and Corporate Items,Statutory Year-End Adjustments,,Axis Europe Plc,1232679,,,,01/12/2022,2200286837,"3,480.75",,Payments to main contractor,,,,,,No
The Royal Borough of Kensington and Chelsea,RBKC,,Statutory and Corporate Items,Statutory Year-End Adjustments,,Barry Bros Security Ltd,1266980,,,,22/12/2022,2200291087,"1,303.78",,Creditors Control : AP GRIR,,,,,,No
The Royal Borough of Kensington and Chelsea,RBKC,,Statutory and Corporate Items,Statutory Year-End Adjustments,,Basis Ltd ,1232709,,,,07/10/2022,2200275957,"4,800.00",,Other Consultants,,,,,,No
The Royal Borough of Kensington and Chelsea,RBKC,,Statutory and Corporate Items,Statutory Year-End Adjustments,,Basis Ltd ,1232709,,,,10/11/2022,2200282914,"7,225.00",,Other Consultants,,,,,,No
The Royal Borough of Kensington and Chelsea,RBKC,,Statutory and Corporate Items,Statutory Year-End Adjustments,,Bell Decorating & Building Ltd ,1232723,,,,04/10/2022,2200274995,"2,240.00",,Site Works,,,,,,No
The Royal Borough of Kensington and Chelsea,RBKC,,Statutory and Corporate Items,Statutory Year-End Adjustments,,Bell Decorating & Building Ltd ,1232723,,,,07/10/2022,2200275835,"50,000.00",,Site Works,,,,,,No
The Royal Borough of Kensington and Chelsea,RBKC,,Statutory and Corporate Items,Statutory Year-End Adjustments,,Bell Decorating & Building Ltd ,1232723,,,,07/10/2022,2200275865,"2,130.00",,Professional Fees : Non Legal,,,,,,No
The Royal Borough of Kensington and Chelsea,RBKC,,Statutory and Corporate Items,Statutory Year-End Adjustments,,Bell Decorating & Building Ltd ,1232723,,,,07/10/2022,2200275866,"6,751.00",,Professional Fees : Non Legal,,,,,,No
The Royal Borough of Kensington and Chelsea,RBKC,,Statutory and Corporate Items,Statutory Year-End Adjustments,,Bell Decorating & Building Ltd ,1232723,,,,27/10/2022,2200279842,"9,523.00",,Construction : enhancements,,,,,,No
The Royal Borough of Kensington and Chelsea,RBKC,,Statutory and Corporate Items,Statutory Year-End Adjustments,,Bell Decorating & Building Ltd ,1232723,,,,27/10/2022,2200279845,880,,Construction : enhancements,,,,,,No
The Royal Borough of Kensington and Chelsea,RBKC,,Statutory and Corporate Items,Statutory Year-End Adjustments,,Bell Decorating & Building Ltd ,1232723,,,,27/10/2022,2200279847,"2,800.00",,Construction : enhancements,,,,,,No
The Royal Borough of Kensington and Chelsea,RBKC,,Statutory and Corporate Items,Statutory Year-End Adjustments,,Bell Decorating & Building Ltd ,1232723,,,,27/10/2022,2200279848,"5,675.00",,Construction : enhancements,,,,,,No
The Royal Borough of Kensington and Chelsea,RBKC,,Statutory and Corporate Items,Statutory Year-End Adjustments,,Bell Decorating & Building Ltd ,1232723,,,,27/10/2022,2200279849,"6,600.00",,Construction : enhancements,,,,,,No
The Royal Borough of Kensington and Chelsea,RBKC,,Statutory and Corporate Items,Statutory Year-End Adjustments,,Bell Decorating & Building Ltd ,1232723,,,,27/10/2022,2200279850,"6,145.00",,Construction : enhancements,,,,,,No
The Royal Borough of Kensington and Chelsea,RBKC,,Statutory and Corporate Items,Statutory Year-End Adjustments,,Bell Decorating & Building Ltd ,1232723,,,,27/10/2022,2200279851,"2,850.00",,Construction : enhancements,,,,,,No
The Royal Borough of Kensington and Chelsea,RBKC,,Statutory and Corporate Items,Statutory Year-End Adjustments,,Bell Decorating & Building Ltd ,1232723,,,,19/12/2022,2200290187,"1,293.27",,Construction : enhancements,,,,,,No
The Royal Borough of Kensington and Chelsea,RBKC,,Statutory and Corporate Items,Statutory Year-End Adjustments,,Bell Decorating & Building Ltd ,1232723,,,,20/12/2022,2200290549,760,,Site Works,,,,,,No
The Royal Borough of Kensington and Chelsea,RBKC,,Statutory and Corporate Items,Statutory Year-End Adjustments,,Bell Decorating & Building Ltd ,1232723,,,,20/12/2022,2200290648,"3,977.00",,Construction : enhancements,,,,,,No
The Royal Borough of Kensington and Chelsea,RBKC,,Statutory and Corporate Items,Statutory Year-End Adjustments,,Bell Decorating & Building Ltd ,1232723,,,,20/12/2022,2200290649,850,,Construction : enhancements,,,,,,No
The Royal Borough of Kensington and Chelsea,RBKC,,Statutory and Corporate Items,Statutory Year-End Adjustments,,Bellrock Property & Facilities Man ,1255450,,,,14/12/2022,2200289729,"10,808.00",,Creditors Control : AP GRIR,,,,,,No
The Royal Borough of Kensington and Chelsea,RBKC,,Statutory and Corporate Items,Statutory Year-End Adjustments,,Benchmarx Kitchens and Joinery Ltd,1270136,,,,07/10/2022,2200275933,"2,232.85",,Special Maintenance,,,,,,No
The Royal Borough of Kensington and Chelsea,RBKC,,Statutory and Corporate Items,Statutory Year-End Adjustments,,Benchmarx Kitchens and Joinery Ltd,1270136,,,,11/10/2022,2200276574,"2,542.16",,Special Maintenance,,,,,,No
The Royal Borough of Kensington and Chelsea,RBKC,,Statutory and Corporate Items,Statutory Year-End Adjustments,,Benchmarx Kitchens and Joinery Ltd,1270136,,,,11/10/2022,2200276578,"2,098.19",,Special Maintenance,,,,,,No
The Royal Borough of Kensington and Chelsea,RBKC,,Statutory and Corporate Items,Statutory Year-End Adjustments,,Benchmarx Kitchens and Joinery Ltd,1270136,,,,11/10/2022,2200276594,"1,893.12",,Special Maintenance,,,,,,No
The Royal Borough of Kensington and Chelsea,RBKC,,Statutory and Corporate Items,Statutory Year-End Adjustments,,Benchmarx Kitchens and Joinery Ltd,1270136,,,,07/11/2022,2200282026,"2,339.79",,Special Maintenance,,,,,,No
The Royal Borough of Kensington and Chelsea,RBKC,,Statutory and Corporate Items,Statutory Year-End Adjustments,,Benchmarx Kitchens and Joinery Ltd,1270136,,,,06/12/2022,2200287832,"2,134.18",,Special Maintenance,,,,,,No
The Royal Borough of Kensington and Chelsea,RBKC,,Statutory and Corporate Items,Statutory Year-End Adjustments,,Bestoutcome Limited,1273135,,,,23/12/2022,2200291280,"17,863.00",,Payments to main contractor,,,,,,No
The Royal Borough of Kensington and Chelsea,RBKC,,Statutory and Corporate Items,Statutory Year-End Adjustments,,Beta Distribution (South) Ltd,1234938,,,,05/10/2022,2200275190,580,,Creditors Control : AP GRIR,,,,,,No
The Royal Borough of Kensington and Chelsea,RBKC,,Statutory and Corporate Items,Statutory Year-End Adjustments,,Beta Distribution (South) Ltd,1234938,,,,11/10/2022,2200276517,"1,428.20",,Payments to main contractor,,,,,,No
The Royal Borough of Kensington and Chelsea,RBKC,,Statutory and Corporate Items,Statutory Year-End Adjustments,,Bevan Brittan Llp ,1232737,,,,05/10/2022,2200275243,580.5,,Other Consultants,,,,,,No
The Royal Borough of Kensington and Chelsea,RBKC,,Statutory and Corporate Items,Statutory Year-End Adjustments,,Bevan Brittan Llp ,1232737,,,,29/12/2022,2200291710,"1,905.00",,Legal Fees & expenses,,,,,,No
The Royal Borough of Kensington and Chelsea,RBKC,,Statutory and Corporate Items,Statutory Year-End Adjustments,,Bibliotheca Ltd ,1232743,,,,11/12/2022,2200288868,"54,042.91",,Computer Equipment,,,,,,No
The Royal Borough of Kensington and Chelsea,RBKC,,Statutory and Corporate Items,Statutory Year-End Adjustments,,Bishop Creighton House Care & Repair Clients Account,1232751,,,,09/11/2022,2200282418,"7,889.00",,Payments to main contractor,,,,,,No
The Royal Borough of Kensington and Chelsea,RBKC,,Statutory and Corporate Items,Statutory Year-End Adjustments,,Bishop Creighton House Care & Repair Clients Account,1232751,,,,09/11/2022,2200282685,"5,434.00",,Payments to main contractor,,,,,,No
The Royal Borough of Kensington and Chelsea,RBKC,,Statutory and Corporate Items,Statutory Year-End Adjustments,,Bishop Creighton House Care & Repair Clients Account,1232751,,,,09/11/2022,2200282686,"6,350.00",,Payments to main contractor,,,,,,No
The Royal Borough of Kensington and Chelsea,RBKC,,Statutory and Corporate Items,Statutory Year-End Adjustments,,Bishop Creighton House Care & Repair Clients Account,1232751,,,,09/11/2022,2200282693,"7,053.00",,Payments to main contractor,,,,,,No
The Royal Borough of Kensington and Chelsea,RBKC,,Statutory and Corporate Items,Statutory Year-End Adjustments,,Bishop Creighton House Care & Repair Clients Account,1232751,,,,10/11/2022,2200282923,952.5,,Payments to main contractor,,,,,,No
The Royal Borough of Kensington and Chelsea,RBKC,,Statutory and Corporate Items,Statutory Year-End Adjustments,,Bishop Creighton House Care & Repair Clients Account,1232751,,,,10/11/2022,2200282924,"1,183.35",,Payments to main contractor,,,,,,No
The Royal Borough of Kensington and Chelsea,RBKC,,Statutory and Corporate Items,Statutory Year-End Adjustments,,Bishop Creighton House Care & Repair Clients Account,1232751,,,,10/11/2022,2200282925,"1,820.18",,Payments to main contractor,,,,,,No
The Royal Borough of Kensington and Chelsea,RBKC,,Statutory and Corporate Items,Statutory Year-End Adjustments,,Bishop Creighton House Care & Repair Clients Account,1232751,,,,10/11/2022,2200282926,"2,575.50",,Payments to main contractor,,,,,,No
The Royal Borough of Kensington and Chelsea,RBKC,,Statutory and Corporate Items,Statutory Year-End Adjustments,,Bishop Creighton House Care & Repair Clients Account,1232751,,,,11/11/2022,2200283143,"1,057.95",,Payments to main contractor,,,,,,No
The Royal Borough of Kensington and Chelsea,RBKC,,Statutory and Corporate Items,Statutory Year-End Adjustments,,Bishop Creighton House Care & Repair Clients Account,1232751,,,,17/11/2022,2200284407,"17,170.00",,Payments to main contractor,,,,,,No
The Royal Borough of Kensington and Chelsea,RBKC,,Statutory and Corporate Items,Statutory Year-End Adjustments,,Bishop Creighton House Care & Repair Clients Account,1232751,,,,02/12/2022,2200287166,"8,065.00",,Payments to main contractor,,,,,,No
The Royal Borough of Kensington and Chelsea,RBKC,,Statutory and Corporate Items,Statutory Year-End Adjustments,,Bishop Creighton House Care & Repair Clients Account,1232751,,,,08/12/2022,2200288475,"1,039.35",,Payments to main contractor,,,,,,No
The Royal Borough of Kensington and Chelsea,RBKC,,Statutory and Corporate Items,Statutory Year-End Adjustments,,Bishop Creighton House Care & Repair Clients Account,1232751,,,,08/12/2022,2200288476,"6,929.00",,Payments to main contractor,,,,,,No
The Royal Borough of Kensington and Chelsea,RBKC,,Statutory and Corporate Items,Statutory Year-End Adjustments,,Bishop Creighton House Care & Repair Clients Account,1232751,,,,16/12/2022,2200289966,"1,117.50",,Payments to main contractor,,,,,,No
The Royal Borough of Kensington and Chelsea,RBKC,,Statutory and Corporate Items,Statutory Year-End Adjustments,,Bishop Creighton House Care & Repair Clients Account,1232751,,,,16/12/2022,2200289967,"7,450.00",,Payments to main contractor,,,,,,No
The Royal Borough of Kensington and Chelsea,RBKC,,Statutory and Corporate Items,Statutory Year-End Adjustments,,Bishop Creighton House Care & Repair Clients Account,1232751,,,,16/12/2022,2200289973,"1,223.70",,Payments to main contractor,,,,,,No
The Royal Borough of Kensington and Chelsea,RBKC,,Statutory and Corporate Items,Statutory Year-End Adjustments,,Bishop Creighton House Care & Repair Clients Account,1232751,,,,16/12/2022,2200290076,"7,155.00",,Payments to main contractor,,,,,,No
The Royal Borough of Kensington and Chelsea,RBKC,,Statutory and Corporate Items,Statutory Year-End Adjustments,,Bishop Creighton House Care & Repair Clients Account,1232751,,,,19/12/2022,2200290411,"1,073.25",,Payments to main contractor,,,,,,No
The Royal Borough of Kensington and Chelsea,RBKC,,Statutory and Corporate Items,Statutory Year-End Adjustments,,Black Box Network Services ,1231180,,,,02/11/2022,2200280976,"17,391.95",,Other Consultants,,,,,,No
The Royal Borough of Kensington and Chelsea,RBKC,,Statutory and Corporate Items,Statutory Year-End Adjustments,,Black Cat Building Consultancy Ltd,1290539,,,,26/10/2022,2200279489,"10,925.00",,Creditors Control : AP GRIR,,,,,,No
The Royal Borough of Kensington and Chelsea,RBKC,,Statutory and Corporate Items,Statutory Year-End Adjustments,,Boon Brown Limited,1298306,,,,14/11/2022,2200283429,"5,515.00",,Payments to main contractor,,,,,,No
The Royal Borough of Kensington and Chelsea,RBKC,,Statutory and Corporate Items,Statutory Year-End Adjustments,,Bousfield Primary School ,1236067,,,,12/12/2022,2200288958,"15,888.00",,Other Consultants,,,,,,No
The Royal Borough of Kensington and Chelsea,RBKC,,Statutory and Corporate Items,Statutory Year-End Adjustments,,Broxap Ltd ,1255218,,,,08/11/2022,2200282295,"1,836.00",,Payments to main contractor,,,,,,No
The Royal Borough of Kensington and Chelsea,RBKC,,Statutory and Corporate Items,Statutory Year-End Adjustments,,Redact Details,1260368,,,,31/10/2022,2200280390,"7,670.00",,Planned Maintenance (CM),,,,,,No
The Royal Borough of Kensington and Chelsea,RBKC,,Statutory and Corporate Items,Statutory Year-End Adjustments,,Redact Details,1260368,,,,02/11/2022,2200280769,"19,815.00",,Planned Maintenance (CM),,,,,,No
The Royal Borough of Kensington and Chelsea,RBKC,,Statutory and Corporate Items,Statutory Year-End Adjustments,,Redact Details,1260368,,,,20/12/2022,2200290499,"15,000.00",,Planned Maintenance (CM),,,,,,No
The Royal Borough of Kensington and Chelsea,RBKC,,Statutory and Corporate Items,Statutory Year-End Adjustments,,Buro Happold Limited,1288909,,,,06/12/2022,2200287803,"18,625.49",,Professional Fees : Non Legal,,,,,,No
The Royal Borough of Kensington and Chelsea,RBKC,,Statutory and Corporate Items,Statutory Year-End Adjustments,,Buro Happold Limited,1288909,,,,06/12/2022,2200287804,"18,625.49",,Professional Fees : Non Legal,,,,,,No
The Royal Borough of Kensington and Chelsea,RBKC,,Statutory and Corporate Items,Statutory Year-End Adjustments,,Buro Happold Limited,1288909,,,,19/12/2022,2200290358,"18,625.50",,Professional Fees : Non Legal,,,,,,No
The Royal Borough of Kensington and Chelsea,RBKC,,Statutory and Corporate Items,Statutory Year-End Adjustments,,Butler & Young Services Ltd,1272888,,,,03/10/2022,2200274699,"4,875.00",,Professional Fees : Non Legal,,,,,,No
The Royal Borough of Kensington and Chelsea,RBKC,,Statutory and Corporate Items,Statutory Year-End Adjustments,,Butler & Young Services Ltd,1272888,,,,03/10/2022,2200274709,"1,480.00",,Professional Fees : Non Legal,,,,,,No
The Royal Borough of Kensington and Chelsea,RBKC,,Statutory and Corporate Items,Statutory Year-End Adjustments,,Butler & Young Services Ltd,1272888,,,,07/10/2022,2200275951,"4,618.50",,Professional Fees : Non Legal,,,,,,No
The Royal Borough of Kensington and Chelsea,RBKC,,Statutory and Corporate Items,Statutory Year-End Adjustments,,Butler & Young Services Ltd,1272888,,,,01/11/2022,2200280640,"9,420.00",,Professional Fees : Non Legal,,,,,,No
The Royal Borough of Kensington and Chelsea,RBKC,,Statutory and Corporate Items,Statutory Year-End Adjustments,,Butler & Young Services Ltd,1272888,,,,12/12/2022,2200289038,"6,280.00",,Professional Fees : Non Legal,,,,,,No
The Royal Borough of Kensington and Chelsea,RBKC,,Statutory and Corporate Items,Statutory Year-End Adjustments,,Buxton Building Contractors Ltd,1288846,,,,20/10/2022,2200278510,"16,150.00",,Payments to main contractor,,,,,,No
The Royal Borough of Kensington and Chelsea,RBKC,,Statutory and Corporate Items,Statutory Year-End Adjustments,,Buxton Building Contractors Ltd,1288846,,,,08/11/2022,2200282316,"68,400.00",,Payments to main contractor,,,,,,No
The Royal Borough of Kensington and Chelsea,RBKC,,Statutory and Corporate Items,Statutory Year-End Adjustments,,Buxton Building Contractors Ltd,1288846,,,,30/11/2022,2200286516,"153,900.00",,Payments to main contractor,,,,,,No
The Royal Borough of Kensington and Chelsea,RBKC,,Statutory and Corporate Items,Statutory Year-End Adjustments,,C&C Builders Ltd,1274385,,,,25/11/2022,2200285936,"7,540.00",,Payments to main contractor,,,,,,No
The Royal Borough of Kensington and Chelsea,RBKC,,Statutory and Corporate Items,Statutory Year-End Adjustments,,C&C Builders Ltd,1274385,,,,20/12/2022,2200290689,"10,801.60",,Payments to main contractor,,,,,,No
The Royal Borough of Kensington and Chelsea,RBKC,,Statutory and Corporate Items,Statutory Year-End Adjustments,,CBRE Ltd(CBRE Client Account - EA,1233315,,,,20/10/2022,2200278511,"3,000.00",,Other Consultants,,,,,,No
The Royal Borough of Kensington and Chelsea,RBKC,,Statutory and Corporate Items,Statutory Year-End Adjustments,,CBS Maintenance Ltd ,1256122,,,,07/11/2022,2200282055,"1,462.00",,Payments to main contractor,,,,,,No
The Royal Borough of Kensington and Chelsea,RBKC,,Statutory and Corporate Items,Statutory Year-End Adjustments,,CBS Maintenance Ltd ,1256122,,,,07/11/2022,2200282056,"2,790.00",,Payments to main contractor,,,,,,No
The Royal Borough of Kensington and Chelsea,RBKC,,Statutory and Corporate Items,Statutory Year-End Adjustments,,CBS Maintenance Ltd ,1256122,,,,07/11/2022,2200282089,"18,640.00",,Payments to main contractor,,,,,,No
The Royal Borough of Kensington and Chelsea,RBKC,,Statutory and Corporate Items,Statutory Year-End Adjustments,,CIA Fire And Security Limited,1274594,,,,22/12/2022,2200291149,"5,750.00",,Construction : enhancements,,,,,,No
The Royal Borough of Kensington and Chelsea,RBKC,,Statutory and Corporate Items,Statutory Year-End Adjustments,,CWG Group Ltd,1281268,,,,07/10/2022,2200275903,"351,710.46",,Payments to main contractor,,,,,,No
The Royal Borough of Kensington and Chelsea,RBKC,,Statutory and Corporate Items,Statutory Year-End Adjustments,,CWG Group Ltd,1281268,,,,07/10/2022,2200275904,"124,157.14",,Payments to main contractor,,,,,,No
The Royal Borough of Kensington and Chelsea,RBKC,,Statutory and Corporate Items,Statutory Year-End Adjustments,,CWG Group Ltd,1281268,,,,29/11/2022,2200286363,"105,786.43",,Payments to main contractor,,,,,,No
The Royal Borough of Kensington and Chelsea,RBKC,,Statutory and Corporate Items,Statutory Year-End Adjustments,,CWG Group Ltd,1281268,,,,01/12/2022,2200286974,"59,621.71",,Payments to main contractor,,,,,,No
The Royal Borough of Kensington and Chelsea,RBKC,,Statutory and Corporate Items,Statutory Year-End Adjustments,,CWG Group Ltd,1281268,,,,01/12/2022,2200286989,"19,888.49",,Payments to main contractor,,,,,,No
The Royal Borough of Kensington and Chelsea,RBKC,,Statutory and Corporate Items,Statutory Year-End Adjustments,,Cablesheer (Asbestos) Limited,1273893,,,,25/10/2022,2200279409,"4,985.01",,Payments to main contractor,,,,,,No
The Royal Borough of Kensington and Chelsea,RBKC,,Statutory and Corporate Items,Statutory Year-End Adjustments,,Cablesheer (Asbestos) Limited,1273893,,,,21/11/2022,2200284926,"1,187.32",,Payments to main contractor,,,,,,No
The Royal Borough of Kensington and Chelsea,RBKC,,Statutory and Corporate Items,Statutory Year-End Adjustments,,Cablesheer (Asbestos) Limited,1273893,,,,08/12/2022,2200288529,"3,457.14",,Payments to main contractor,,,,,,No
The Royal Borough of Kensington and Chelsea,RBKC,,Statutory and Corporate Items,Statutory Year-End Adjustments,,Cablesheer (Asbestos) Limited,1273893,,,,14/12/2022,2200289736,"2,499.99",,Payments to main contractor,,,,,,No
The Royal Borough of Kensington and Chelsea,RBKC,,Statutory and Corporate Items,Statutory Year-End Adjustments,,Cadline Limited,1260950,,,,20/12/2022,2200290561,"3,144.50",,Payments to main contractor,,,,,,No
The Royal Borough of Kensington and Chelsea,RBKC,,Statutory and Corporate Items,Statutory Year-End Adjustments,,Calford Seadon (Health & Safety) Ltd,1233044,,,,11/10/2022,2200276347,875,,Surveyors,,,,,,No
The Royal Borough of Kensington and Chelsea,RBKC,,Statutory and Corporate Items,Statutory Year-End Adjustments,,Calford Seadon (Health & Safety) Ltd,1233044,,,,21/10/2022,2200278946,"1,750.00",,Surveyors,,,,,,No
The Royal Borough of Kensington and Chelsea,RBKC,,Statutory and Corporate Items,Statutory Year-End Adjustments,,Calford Seadon (Health & Safety) Ltd,1233044,,,,04/11/2022,2200281447,"3,076.36",,Professional Fees : Non Legal,,,,,,No
The Royal Borough of Kensington and Chelsea,RBKC,,Statutory and Corporate Items,Statutory Year-End Adjustments,,Calford Seadon (Health & Safety) Ltd,1233044,,,,09/12/2022,2200288826,"18,848.16",,Professional Fees : Non Legal,,,,,,No
The Royal Borough of Kensington and Chelsea,RBKC,,Statutory and Corporate Items,Statutory Year-End Adjustments,,Calford Seadon (Health & Safety) Ltd,1233044,,,,12/12/2022,2200288920,"4,783.00",,Design Consultant,,,,,,No
The Royal Borough of Kensington and Chelsea,RBKC,,Statutory and Corporate Items,Statutory Year-End Adjustments,,Calford Seadon (Health & Safety) Ltd,1233044,,,,13/12/2022,2200289365,"4,783.00",,Design Consultant,,,,,,No
The Royal Borough of Kensington and Chelsea,RBKC,,Statutory and Corporate Items,Statutory Year-End Adjustments,,Capita Business Services Ltd ,1233075,,,,31/10/2022,2200280439,500,,Capitalised salaries,,,,,,No
The Royal Borough of Kensington and Chelsea,RBKC,,Statutory and Corporate Items,Statutory Year-End Adjustments,,Capital Property & Construction ,1256857,,,,04/10/2022,2200274877,"4,657.50",,Professional Fees : Non Legal,,,,,,No
The Royal Borough of Kensington and Chelsea,RBKC,,Statutory and Corporate Items,Statutory Year-End Adjustments,,Capital Property & Construction ,1256857,,,,05/10/2022,2200275268,"6,840.00",,Other Consultants,,,,,,No
The Royal Borough of Kensington and Chelsea,RBKC,,Statutory and Corporate Items,Statutory Year-End Adjustments,,Capital Property & Construction ,1256857,,,,07/10/2022,2200275853,"7,171.66",,Professional Fees : Non Legal,,,,,,No
The Royal Borough of Kensington and Chelsea,RBKC,,Statutory and Corporate Items,Statutory Year-End Adjustments,,Capital Property & Construction ,1256857,,,,07/10/2022,2200275857,"27,059.74",,Professional Fees : Non Legal,,,,,,No
The Royal Borough of Kensington and Chelsea,RBKC,,Statutory and Corporate Items,Statutory Year-End Adjustments,,Capital Property & Construction ,1256857,,,,07/10/2022,2200275864,"8,994.00",,Professional Fees : Non Legal,,,,,,No
The Royal Borough of Kensington and Chelsea,RBKC,,Statutory and Corporate Items,Statutory Year-End Adjustments,,Capital Property & Construction ,1256857,,,,07/10/2022,2200275900,700,,Professional Fees : Non Legal,,,,,,No
The Royal Borough of Kensington and Chelsea,RBKC,,Statutory and Corporate Items,Statutory Year-End Adjustments,,Capital Property & Construction ,1256857,,,,11/10/2022,2200276348,"1,000.00",,Quantity Surveyors,,,,,,No
The Royal Borough of Kensington and Chelsea,RBKC,,Statutory and Corporate Items,Statutory Year-End Adjustments,,Capital Property & Construction ,1256857,,,,11/10/2022,2200276595,760,,Professional Fees : Non Legal,,,,,,No
The Royal Borough of Kensington and Chelsea,RBKC,,Statutory and Corporate Items,Statutory Year-End Adjustments,,Capital Property & Construction ,1256857,,,,11/10/2022,2200276601,"1,520.00",,Professional Fees : Non Legal,,,,,,No
The Royal Borough of Kensington and Chelsea,RBKC,,Statutory and Corporate Items,Statutory Year-End Adjustments,,Capital Property & Construction ,1256857,,,,01/11/2022,2200280578,760,,Professional Fees : Non Legal,,,,,,No
The Royal Borough of Kensington and Chelsea,RBKC,,Statutory and Corporate Items,Statutory Year-End Adjustments,,Capital Property & Construction ,1256857,,,,01/11/2022,2200280623,"3,585.83",,Professional Fees : Non Legal,,,,,,No
The Royal Borough of Kensington and Chelsea,RBKC,,Statutory and Corporate Items,Statutory Year-End Adjustments,,Capital Property & Construction ,1256857,,,,02/11/2022,2200280818,"22,729.05",,Professional Fees : Non Legal,,,,,,No
The Royal Borough of Kensington and Chelsea,RBKC,,Statutory and Corporate Items,Statutory Year-End Adjustments,,Capital Property & Construction ,1256857,,,,07/11/2022,2200282030,"1,020.00",,Professional Fees : Non Legal,,,,,,No
The Royal Borough of Kensington and Chelsea,RBKC,,Statutory and Corporate Items,Statutory Year-End Adjustments,,Capital Property & Construction ,1256857,,,,08/11/2022,2200282382,"4,541.60",,Quantity Surveyors,,,,,,No
The Royal Borough of Kensington and Chelsea,RBKC,,Statutory and Corporate Items,Statutory Year-End Adjustments,,Capital Property & Construction ,1256857,,,,14/11/2022,2200283545,"8,550.00",,Professional Fees : Non Legal,,,,,,No
The Royal Borough of Kensington and Chelsea,RBKC,,Statutory and Corporate Items,Statutory Year-End Adjustments,,Capital Property & Construction ,1256857,,,,15/11/2022,2200283810,"16,654.16",,Professional Fees : Non Legal,,,,,,No
The Royal Borough of Kensington and Chelsea,RBKC,,Statutory and Corporate Items,Statutory Year-End Adjustments,,Capital Property & Construction ,1256857,,,,25/11/2022,2200285894,"6,800.00",,Professional Fees : Non Legal,,,,,,No
The Royal Borough of Kensington and Chelsea,RBKC,,Statutory and Corporate Items,Statutory Year-End Adjustments,,Capital Property & Construction ,1256857,,,,29/11/2022,2200286445,"6,840.00",,Other Consultants,,,,,,No
The Royal Borough of Kensington and Chelsea,RBKC,,Statutory and Corporate Items,Statutory Year-End Adjustments,,Capital Property & Construction ,1256857,,,,01/12/2022,2200286833,"1,140.00",,Professional Fees : Non Legal,,,,,,No
The Royal Borough of Kensington and Chelsea,RBKC,,Statutory and Corporate Items,Statutory Year-End Adjustments,,Capital Property & Construction ,1256857,,,,01/12/2022,2200286845,"3,040.00",,Professional Fees : Non Legal,,,,,,No
The Royal Borough of Kensington and Chelsea,RBKC,,Statutory and Corporate Items,Statutory Year-End Adjustments,,Capital Property & Construction ,1256857,,,,06/12/2022,2200287705,"16,654.16",,Professional Fees : Non Legal,,,,,,No
The Royal Borough of Kensington and Chelsea,RBKC,,Statutory and Corporate Items,Statutory Year-End Adjustments,,Capital Property & Construction ,1256857,,,,06/12/2022,2200287709,"3,150.00",,Payments to main contractor,,,,,,No
The Royal Borough of Kensington and Chelsea,RBKC,,Statutory and Corporate Items,Statutory Year-End Adjustments,,Capital Property & Construction ,1256857,,,,06/12/2022,2200287802,"3,990.00",,Professional Fees : Non Legal,,,,,,No
The Royal Borough of Kensington and Chelsea,RBKC,,Statutory and Corporate Items,Statutory Year-End Adjustments,,Capital Property & Construction ,1256857,,,,07/12/2022,2200288041,"1,520.00",,Professional Fees : Non Legal,,,,,,No
The Royal Borough of Kensington and Chelsea,RBKC,,Statutory and Corporate Items,Statutory Year-End Adjustments,,Capital Property & Construction ,1256857,,,,07/12/2022,2200288087,"3,585.83",,Professional Fees : Non Legal,,,,,,No
The Royal Borough of Kensington and Chelsea,RBKC,,Statutory and Corporate Items,Statutory Year-End Adjustments,,Capital Property & Construction ,1256857,,,,12/12/2022,2200288921,"1,556.96",,Quantity Surveyors,,,,,,No
The Royal Borough of Kensington and Chelsea,RBKC,,Statutory and Corporate Items,Statutory Year-End Adjustments,,Capital Property & Construction ,1256857,,,,16/12/2022,2200289981,"1,100.00",,Professional Fees : Non Legal,,,,,,No
The Royal Borough of Kensington and Chelsea,RBKC,,Statutory and Corporate Items,Statutory Year-End Adjustments,,Capital Property & Construction ,1256857,,,,16/12/2022,2200290070,"7,827.45",,Professional Fees : Non Legal,,,,,,No
The Royal Borough of Kensington and Chelsea,RBKC,,Statutory and Corporate Items,Statutory Year-End Adjustments,,Capital Property & Construction ,1256857,,,,19/12/2022,2200290324,"23,281.00",,Professional Fees : Non Legal,,,,,,No
The Royal Borough of Kensington and Chelsea,RBKC,,Statutory and Corporate Items,Statutory Year-End Adjustments,,Cappagh Contractors Construction (London) Ltd,1233084,,,,06/10/2022,2200275631,"14,612.25",,Payments to main contractor,,,,,,No
The Royal Borough of Kensington and Chelsea,RBKC,,Statutory and Corporate Items,Statutory Year-End Adjustments,,Cappagh Contractors Construction (London) Ltd,1233084,,,,28/11/2022,2200286034,"29,841.56",,Construction : enhancements,,,,,,No
The Royal Borough of Kensington and Chelsea,RBKC,,Statutory and Corporate Items,Statutory Year-End Adjustments,,Cavendish Construction LTD,1267193,,,,04/10/2022,2200274983,"23,309.10",,Special Maintenance,,,,,,No
The Royal Borough of Kensington and Chelsea,RBKC,,Statutory and Corporate Items,Statutory Year-End Adjustments,,Cavendish Construction LTD,1267193,,,,04/10/2022,2200274984,"26,472.02",,Special Maintenance,,,,,,No
The Royal Borough of Kensington and Chelsea,RBKC,,Statutory and Corporate Items,Statutory Year-End Adjustments,,Cavendish Construction LTD,1267193,,,,04/10/2022,2200274992,"25,650.25",,Special Maintenance,,,,,,No
The Royal Borough of Kensington and Chelsea,RBKC,,Statutory and Corporate Items,Statutory Year-End Adjustments,,Cavendish Construction LTD,1267193,,,,04/10/2022,2200274993,"37,151.11",,Special Maintenance,,,,,,No
The Royal Borough of Kensington and Chelsea,RBKC,,Statutory and Corporate Items,Statutory Year-End Adjustments,,Cavendish Construction LTD,1267193,,,,04/10/2022,2200274996,"37,700.96",,Special Maintenance,,,,,,No
The Royal Borough of Kensington and Chelsea,RBKC,,Statutory and Corporate Items,Statutory Year-End Adjustments,,Cavendish Construction LTD,1267193,,,,04/10/2022,2200274997,"44,948.33",,Special Maintenance,,,,,,No
The Royal Borough of Kensington and Chelsea,RBKC,,Statutory and Corporate Items,Statutory Year-End Adjustments,,Cavendish Construction LTD,1267193,,,,04/10/2022,2200274999,"22,697.93",,Special Maintenance,,,,,,No
The Royal Borough of Kensington and Chelsea,RBKC,,Statutory and Corporate Items,Statutory Year-End Adjustments,,Cavendish Construction LTD,1267193,,,,07/10/2022,2200275936,"29,079.46",,Construction : enhancements,,,,,,No
The Royal Borough of Kensington and Chelsea,RBKC,,Statutory and Corporate Items,Statutory Year-End Adjustments,,Cavendish Construction LTD,1267193,,,,09/10/2022,2200275993,"19,471.91",,Special Maintenance,,,,,,No
The Royal Borough of Kensington and Chelsea,RBKC,,Statutory and Corporate Items,Statutory Year-End Adjustments,,Cavendish Construction LTD,1267193,,,,09/10/2022,2200275994,"11,447.00",,Special Maintenance,,,,,,No
The Royal Borough of Kensington and Chelsea,RBKC,,Statutory and Corporate Items,Statutory Year-End Adjustments,,Cavendish Construction LTD,1267193,,,,17/10/2022,2200277851,"13,999.00",,Special Maintenance,,,,,,No
The Royal Borough of Kensington and Chelsea,RBKC,,Statutory and Corporate Items,Statutory Year-End Adjustments,,Cavendish Construction LTD,1267193,,,,20/10/2022,2200278464,"28,276.93",,Special Maintenance,,,,,,No
The Royal Borough of Kensington and Chelsea,RBKC,,Statutory and Corporate Items,Statutory Year-End Adjustments,,Cavendish Construction LTD,1267193,,,,25/10/2022,2200279353,"1,371.25",,Special Maintenance,,,,,,No
The Royal Borough of Kensington and Chelsea,RBKC,,Statutory and Corporate Items,Statutory Year-End Adjustments,,Cavendish Construction LTD,1267193,,,,25/10/2022,2200279369,"1,371.25",,Special Maintenance,,,,,,No
The Royal Borough of Kensington and Chelsea,RBKC,,Statutory and Corporate Items,Statutory Year-End Adjustments,,Cavendish Construction LTD,1267193,,,,25/10/2022,2200279422,"37,361.09",,Special Maintenance,,,,,,No
The Royal Borough of Kensington and Chelsea,RBKC,,Statutory and Corporate Items,Statutory Year-End Adjustments,,Cavendish Construction LTD,1267193,,,,25/10/2022,2200279424,"38,285.36",,Special Maintenance,,,,,,No
The Royal Borough of Kensington and Chelsea,RBKC,,Statutory and Corporate Items,Statutory Year-End Adjustments,,Cavendish Construction LTD,1267193,,,,25/10/2022,2200279425,"21,473.62",,Special Maintenance,,,,,,No
The Royal Borough of Kensington and Chelsea,RBKC,,Statutory and Corporate Items,Statutory Year-End Adjustments,,Cavendish Construction LTD,1267193,,,,25/10/2022,2200279426,"4,858.00",,Special Maintenance,,,,,,No
The Royal Borough of Kensington and Chelsea,RBKC,,Statutory and Corporate Items,Statutory Year-End Adjustments,,Cavendish Construction LTD,1267193,,,,25/10/2022,2200279427,"4,858.00",,Special Maintenance,,,,,,No
The Royal Borough of Kensington and Chelsea,RBKC,,Statutory and Corporate Items,Statutory Year-End Adjustments,,Cavendish Construction LTD,1267193,,,,25/10/2022,2200279428,"4,858.00",,Special Maintenance,,,,,,No
The Royal Borough of Kensington and Chelsea,RBKC,,Statutory and Corporate Items,Statutory Year-End Adjustments,,Cavendish Construction LTD,1267193,,,,25/10/2022,2200279429,"4,858.00",,Special Maintenance,,,,,,No
The Royal Borough of Kensington and Chelsea,RBKC,,Statutory and Corporate Items,Statutory Year-End Adjustments,,Cavendish Construction LTD,1267193,,,,25/10/2022,2200279430,"4,858.00",,Special Maintenance,,,,,,No
The Royal Borough of Kensington and Chelsea,RBKC,,Statutory and Corporate Items,Statutory Year-End Adjustments,,Cavendish Construction LTD,1267193,,,,25/10/2022,2200279431,"4,858.00",,Special Maintenance,,,,,,No
The Royal Borough of Kensington and Chelsea,RBKC,,Statutory and Corporate Items,Statutory Year-End Adjustments,,Cavendish Construction LTD,1267193,,,,25/10/2022,2200279432,"4,858.00",,Special Maintenance,,,,,,No
The Royal Borough of Kensington and Chelsea,RBKC,,Statutory and Corporate Items,Statutory Year-End Adjustments,,Cavendish Construction LTD,1267193,,,,25/10/2022,2200279434,"22,160.30",,Special Maintenance,,,,,,No
The Royal Borough of Kensington and Chelsea,RBKC,,Statutory and Corporate Items,Statutory Year-End Adjustments,,Cavendish Construction LTD,1267193,,,,25/10/2022,2200279435,"21,473.62",,Special Maintenance,,,,,,No
The Royal Borough of Kensington and Chelsea,RBKC,,Statutory and Corporate Items,Statutory Year-End Adjustments,,Cavendish Construction LTD,1267193,,,,28/10/2022,2200280133,"6,785.88",,Special Maintenance,,,,,,No
The Royal Borough of Kensington and Chelsea,RBKC,,Statutory and Corporate Items,Statutory Year-End Adjustments,,Cavendish Construction LTD,1267193,,,,02/11/2022,2200280765,"22,194.67",,Special Maintenance,,,,,,No
The Royal Borough of Kensington and Chelsea,RBKC,,Statutory and Corporate Items,Statutory Year-End Adjustments,,Cavendish Construction LTD,1267193,,,,23/11/2022,2200285524,"28,200.36",,Special Maintenance,,,,,,No
The Royal Borough of Kensington and Chelsea,RBKC,,Statutory and Corporate Items,Statutory Year-End Adjustments,,Cavendish Construction LTD,1267193,,,,23/11/2022,2200285525,"36,826.87",,Special Maintenance,,,,,,No
The Royal Borough of Kensington and Chelsea,RBKC,,Statutory and Corporate Items,Statutory Year-End Adjustments,,Cavendish Construction LTD,1267193,,,,28/11/2022,2200286135,"7,938.89",,Construction : enhancements,,,,,,No
The Royal Borough of Kensington and Chelsea,RBKC,,Statutory and Corporate Items,Statutory Year-End Adjustments,,Cavendish Construction LTD,1267193,,,,29/11/2022,2200286375,680.15,,Special Maintenance,,,,,,No
The Royal Borough of Kensington and Chelsea,RBKC,,Statutory and Corporate Items,Statutory Year-End Adjustments,,Cavendish Construction LTD,1267193,,,,29/11/2022,2200286376,"13,069.18",,Special Maintenance,,,,,,No
The Royal Borough of Kensington and Chelsea,RBKC,,Statutory and Corporate Items,Statutory Year-End Adjustments,,Cavendish Construction LTD,1267193,,,,06/12/2022,2200287822,"36,925.82",,Special Maintenance,,,,,,No
The Royal Borough of Kensington and Chelsea,RBKC,,Statutory and Corporate Items,Statutory Year-End Adjustments,,Cavendish Construction LTD,1267193,,,,06/12/2022,2200287823,"23,854.68",,Special Maintenance,,,,,,No
The Royal Borough of Kensington and Chelsea,RBKC,,Statutory and Corporate Items,Statutory Year-End Adjustments,,Cavendish Construction LTD,1267193,,,,06/12/2022,2200287824,"26,388.47",,Special Maintenance,,,,,,No
The Royal Borough of Kensington and Chelsea,RBKC,,Statutory and Corporate Items,Statutory Year-End Adjustments,,Cavendish Construction LTD,1267193,,,,09/12/2022,2200288683,"3,965.36",,Special Maintenance,,,,,,No
The Royal Borough of Kensington and Chelsea,RBKC,,Statutory and Corporate Items,Statutory Year-End Adjustments,,Cavendish Construction LTD,1267193,,,,09/12/2022,2200288689,"3,965.36",,Special Maintenance,,,,,,No
The Royal Borough of Kensington and Chelsea,RBKC,,Statutory and Corporate Items,Statutory Year-End Adjustments,,Cavendish Construction LTD,1267193,,,,13/12/2022,2200289464,"10,898.55",,Special Maintenance,,,,,,No
The Royal Borough of Kensington and Chelsea,RBKC,,Statutory and Corporate Items,Statutory Year-End Adjustments,,Cavendish Construction LTD,1267193,,,,13/12/2022,2200289469,"2,794.15",,Special Maintenance,,,,,,No
The Royal Borough of Kensington and Chelsea,RBKC,,Statutory and Corporate Items,Statutory Year-End Adjustments,,Cavendish Construction LTD,1267193,,,,13/12/2022,2200289480,"22,620.25",,Special Maintenance,,,,,,No
The Royal Borough of Kensington and Chelsea,RBKC,,Statutory and Corporate Items,Statutory Year-End Adjustments,,Cavendish Construction LTD,1267193,,,,13/12/2022,2200289481,"23,298.25",,Special Maintenance,,,,,,No
The Royal Borough of Kensington and Chelsea,RBKC,,Statutory and Corporate Items,Statutory Year-End Adjustments,,Cavendish Construction LTD,1267193,,,,13/12/2022,2200289482,"25,681.55",,Special Maintenance,,,,,,No
The Royal Borough of Kensington and Chelsea,RBKC,,Statutory and Corporate Items,Statutory Year-End Adjustments,,Cavendish Construction LTD,1267193,,,,13/12/2022,2200289483,"27,473.93",,Special Maintenance,,,,,,No
The Royal Borough of Kensington and Chelsea,RBKC,,Statutory and Corporate Items,Statutory Year-End Adjustments,,Cavendish Construction LTD,1267193,,,,13/12/2022,2200289484,"46,454.20",,Special Maintenance,,,,,,No
The Royal Borough of Kensington and Chelsea,RBKC,,Statutory and Corporate Items,Statutory Year-End Adjustments,,Cavendish Construction LTD,1267193,,,,19/12/2022,2200290396,"4,108.66",,Construction : enhancements,,,,,,No
The Royal Borough of Kensington and Chelsea,RBKC,,Statutory and Corporate Items,Statutory Year-End Adjustments,,Cenergist Ltd,1258887,,,,15/11/2022,2200283704,"4,001.89",,Payments to main contractor,,,,,,No
The Royal Borough of Kensington and Chelsea,RBKC,,Statutory and Corporate Items,Statutory Year-End Adjustments,,Cenergist Ltd,1258887,,,,16/12/2022,2200290056,"49,014.31",,Payments to main contractor,,,,,,No
The Royal Borough of Kensington and Chelsea,RBKC,,Statutory and Corporate Items,Statutory Year-End Adjustments,,Central Moves Uk Limited ,1233324,,,,14/10/2022,2200277360,"2,160.00",,Payments to main contractor,,,,,,No
The Royal Borough of Kensington and Chelsea,RBKC,,Statutory and Corporate Items,Statutory Year-End Adjustments,,Central Moves Uk Limited ,1233324,,,,14/10/2022,2200277368,"1,267.50",,Payments to main contractor,,,,,,No
The Royal Borough of Kensington and Chelsea,RBKC,,Statutory and Corporate Items,Statutory Year-End Adjustments,,Central Moves Uk Limited ,1233324,,,,25/10/2022,2200279417,637.5,,Payments to main contractor,,,,,,No
The Royal Borough of Kensington and Chelsea,RBKC,,Statutory and Corporate Items,Statutory Year-End Adjustments,,Central Moves Uk Limited ,1233324,,,,23/11/2022,2200285481,"1,550.00",,Payments to main contractor,,,,,,No
The Royal Borough of Kensington and Chelsea,RBKC,,Statutory and Corporate Items,Statutory Year-End Adjustments,,Central Moves Uk Limited ,1233324,,,,29/11/2022,2200286389,"1,270.00",,Payments to main contractor,,,,,,No
The Royal Borough of Kensington and Chelsea,RBKC,,Statutory and Corporate Items,Statutory Year-End Adjustments,,Central Moves Uk Limited ,1233324,,,,21/12/2022,2200290903,"1,522.50",,Payments to main contractor,,,,,,No
The Royal Borough of Kensington and Chelsea,RBKC,,Statutory and Corporate Items,Statutory Year-End Adjustments,,Central Moves Uk Limited ,1233324,,,,22/12/2022,2200291163,"2,650.00",,Payments to main contractor,,,,,,No
The Royal Borough of Kensington and Chelsea,RBKC,,Statutory and Corporate Items,Statutory Year-End Adjustments,,Central Moves Uk Limited ,1233324,,,,22/12/2022,2200291172,"1,278.75",,Payments to main contractor,,,,,,No
The Royal Borough of Kensington and Chelsea,RBKC,,Statutory and Corporate Items,Statutory Year-End Adjustments,,Charles Marsden-Smedley Ltd ,1233339,,,,17/10/2022,2200277741,"1,250.00",,Other Consultants,,,,,,No
The Royal Borough of Kensington and Chelsea,RBKC,,Statutory and Corporate Items,Statutory Year-End Adjustments,,Checkmate Fire Solutions Ltd ,1231187,,,,08/12/2022,2200288500,"8,034.21",,Creditors Control : AP GRIR,,,,,,No
The Royal Borough of Kensington and Chelsea,RBKC,,Statutory and Corporate Items,Statutory Year-End Adjustments,,Checkmate Fire Solutions Ltd ,1231187,,,,09/12/2022,2200288626,"7,566.52",,Creditors Control : AP GRIR,,,,,,No
The Royal Borough of Kensington and Chelsea,RBKC,,Statutory and Corporate Items,Statutory Year-End Adjustments,,Checkmate Fire Solutions Ltd ,1231187,,,,09/12/2022,2200288627,"4,121.15",,Creditors Control : AP GRIR,,,,,,No
The Royal Borough of Kensington and Chelsea,RBKC,,Statutory and Corporate Items,Statutory Year-End Adjustments,,Checkmate Fire Solutions Ltd ,1231187,,,,09/12/2022,2200288628,"6,907.72",,Creditors Control : AP GRIR,,,,,,No
The Royal Borough of Kensington and Chelsea,RBKC,,Statutory and Corporate Items,Statutory Year-End Adjustments,,Checkmate Fire Solutions Ltd ,1231187,,,,09/12/2022,2200288629,"6,124.29",,Creditors Control : AP GRIR,,,,,,No
The Royal Borough of Kensington and Chelsea,RBKC,,Statutory and Corporate Items,Statutory Year-End Adjustments,,Checkmate Fire Solutions Ltd ,1231187,,,,09/12/2022,2200288630,"1,189.97",,Creditors Control : AP GRIR,,,,,,No
The Royal Borough of Kensington and Chelsea,RBKC,,Statutory and Corporate Items,Statutory Year-End Adjustments,,Checkmate Fire Solutions Ltd ,1231187,,,,09/12/2022,2200288631,723.5,,Creditors Control : AP GRIR,,,,,,No
The Royal Borough of Kensington and Chelsea,RBKC,,Statutory and Corporate Items,Statutory Year-End Adjustments,,Chris Edge Tree Care Ltd ,1233369,,,,03/10/2022,2200274713,745,,Payments to main contractor,,,,,,No
The Royal Borough of Kensington and Chelsea,RBKC,,Statutory and Corporate Items,Statutory Year-End Adjustments,,Chris Edge Tree Care Ltd ,1233369,,,,24/10/2022,2200279049,"2,280.00",,Payments to main contractor,,,,,,No
The Royal Borough of Kensington and Chelsea,RBKC,,Statutory and Corporate Items,Statutory Year-End Adjustments,,Chris Edge Tree Care Ltd ,1233369,,,,13/12/2022,2200289352,"15,900.00",,Payments to main contractor,,,,,,No
The Royal Borough of Kensington and Chelsea,RBKC,,Statutory and Corporate Items,Statutory Year-End Adjustments,,City Electrical Factors,1263373,,,,04/10/2022,2200274884,"2,574.30",,Special Maintenance,,,,,,No
The Royal Borough of Kensington and Chelsea,RBKC,,Statutory and Corporate Items,Statutory Year-End Adjustments,,City Electrical Factors,1263373,,,,04/10/2022,2200274885,"1,057.00",,Special Maintenance,,,,,,No
The Royal Borough of Kensington and Chelsea,RBKC,,Statutory and Corporate Items,Statutory Year-End Adjustments,,City Electrical Factors,1263373,,,,04/10/2022,2200274976,572.1,,Special Maintenance,,,,,,No
The Royal Borough of Kensington and Chelsea,RBKC,,Statutory and Corporate Items,Statutory Year-End Adjustments,,City Electrical Factors,1263373,,,,02/11/2022,2200280857,699.9,,Special Maintenance,,,,,,No
The Royal Borough of Kensington and Chelsea,RBKC,,Statutory and Corporate Items,Statutory Year-End Adjustments,,City Electrical Factors,1263373,,,,02/11/2022,2200280859,"1,895.70",,Special Maintenance,,,,,,No
The Royal Borough of Kensington and Chelsea,RBKC,,Statutory and Corporate Items,Statutory Year-End Adjustments,,City Electrical Factors,1263373,,,,02/11/2022,2200280867,812.55,,Special Maintenance,,,,,,No
The Royal Borough of Kensington and Chelsea,RBKC,,Statutory and Corporate Items,Statutory Year-End Adjustments,,City Electrical Factors,1263373,,,,06/12/2022,2200287820,"2,511.50",,Special Maintenance,,,,,,No
The Royal Borough of Kensington and Chelsea,RBKC,,Statutory and Corporate Items,Statutory Year-End Adjustments,,Clean and Serene Ltd ,1233399,,,,18/10/2022,2200277960,"2,180.00",,Payments to main contractor,,,,,,No
The Royal Borough of Kensington and Chelsea,RBKC,,Statutory and Corporate Items,Statutory Year-End Adjustments,,Clean and Serene Ltd ,1233399,,,,13/12/2022,2200289247,"4,360.00",,Payments to main contractor,,,,,,No
The Royal Borough of Kensington and Chelsea,RBKC,,Statutory and Corporate Items,Statutory Year-End Adjustments,,Clockwork Removals ,1233410,,,,29/11/2022,2200286408,640,,Creditors Control : AP GRIR,,,,,,No
The Royal Borough of Kensington and Chelsea,RBKC,,Statutory and Corporate Items,Statutory Year-End Adjustments,,Clockwork Removals ,1233410,,,,16/12/2022,2200290031,512,,Creditors Control : AP GRIR,,,,,,No
The Royal Borough of Kensington and Chelsea,RBKC,,Statutory and Corporate Items,Statutory Year-End Adjustments,,Cluttons LLP(Firms Account -  For Fee invoices),1233422,,,,18/11/2022,2200284758,"3,250.00",,Other Consultants,,,,,,No
The Royal Borough of Kensington and Chelsea,RBKC,,Statutory and Corporate Items,Statutory Year-End Adjustments,,Colin Toms And Partners LLP,1296928,,,,04/10/2022,2200275032,"1,525.00",,Special Maintenance,,,,,,No
The Royal Borough of Kensington and Chelsea,RBKC,,Statutory and Corporate Items,Statutory Year-End Adjustments,,Commercial Services Uk Ltd,1269853,,,,09/11/2022,2200282640,"9,000.00",,Site Works,,,,,,No
The Royal Borough of Kensington and Chelsea,RBKC,,Statutory and Corporate Items,Statutory Year-End Adjustments,,Commercial Services Uk Ltd,1269853,,,,15/12/2022,2200289783,"40,700.00",,Construction : new asset,,,,,,No
The Royal Borough of Kensington and Chelsea,RBKC,,Statutory and Corporate Items,Statutory Year-End Adjustments,,Commercial Services Uk Ltd,1269853,,,,16/12/2022,2200290073,"5,987.67",,Construction : new asset,,,,,,No
The Royal Borough of Kensington and Chelsea,RBKC,,Statutory and Corporate Items,Statutory Year-End Adjustments,,Commercial Services Uk Ltd,1269853,,,,16/12/2022,2200290074,"2,700.00",,Construction : new asset,,,,,,No
The Royal Borough of Kensington and Chelsea,RBKC,,Statutory and Corporate Items,Statutory Year-End Adjustments,,Connected Response Limite,1265273,,,,14/11/2022,2200283345,"1,627.50",,Professional Fees : Non Legal,,,,,,No
The Royal Borough of Kensington and Chelsea,RBKC,,Statutory and Corporate Items,Statutory Year-End Adjustments,,Contour Direct Ltd ,1257919,,,,11/10/2022,2200276413,936,,Site Works,,,,,,No
The Royal Borough of Kensington and Chelsea,RBKC,,Statutory and Corporate Items,Statutory Year-End Adjustments,,Core Projects Ltd ,1233682,,,,04/11/2022,2200281518,"1,754.00",,Site Works,,,,,,No
The Royal Borough of Kensington and Chelsea,RBKC,,Statutory and Corporate Items,Statutory Year-End Adjustments,,Core Projects Ltd ,1233682,,,,04/11/2022,2200281519,"1,465.00",,Site Works,,,,,,No
The Royal Borough of Kensington and Chelsea,RBKC,,Statutory and Corporate Items,Statutory Year-End Adjustments,,Core Projects Ltd ,1233682,,,,04/11/2022,2200281520,"1,845.00",,Site Works,,,,,,No
The Royal Borough of Kensington and Chelsea,RBKC,,Statutory and Corporate Items,Statutory Year-End Adjustments,,Core Projects Ltd ,1233682,,,,10/11/2022,2200282780,"1,900.00",,Site Works,,,,,,No
The Royal Borough of Kensington and Chelsea,RBKC,,Statutory and Corporate Items,Statutory Year-End Adjustments,,Cromwell Engineering Ltd,1283342,,,,23/10/2022,2200279002,"23,378.80",,Planned Maintenance (CM),,,,,,No
The Royal Borough of Kensington and Chelsea,RBKC,,Statutory and Corporate Items,Statutory Year-End Adjustments,,Cromwell Engineering Ltd,1283342,,,,25/10/2022,2200279239,"13,883.74",,Planned Maintenance (CM),,,,,,No
The Royal Borough of Kensington and Chelsea,RBKC,,Statutory and Corporate Items,Statutory Year-End Adjustments,,Cromwell Engineering Ltd,1283342,,,,15/11/2022,2200283679,"10,119.74",,Planned Maintenance (CM),,,,,,No
The Royal Borough of Kensington and Chelsea,RBKC,,Statutory and Corporate Items,Statutory Year-End Adjustments,,Cromwell Engineering Ltd,1283342,,,,16/12/2022,2200290069,"8,319.80",,Planned Maintenance (CM),,,,,,No
The Royal Borough of Kensington and Chelsea,RBKC,,Statutory and Corporate Items,Statutory Year-End Adjustments,,Cromwell Engineering Ltd,1283342,,,,19/12/2022,2200290173,"8,319.76",,Planned Maintenance (CM),,,,,,No
The Royal Borough of Kensington and Chelsea,RBKC,,Statutory and Corporate Items,Statutory Year-End Adjustments,,Cupaz ,1233737,,,,24/10/2022,2200279074,"9,812.50",,Other Consultants,,,,,,No
The Royal Borough of Kensington and Chelsea,RBKC,,Statutory and Corporate Items,Statutory Year-End Adjustments,,Cupaz ,1233737,,,,24/10/2022,2200279077,"5,611.41",,Other Consultants,,,,,,No
The Royal Borough of Kensington and Chelsea,RBKC,,Statutory and Corporate Items,Statutory Year-End Adjustments,,Cupaz ,1233737,,,,24/10/2022,2200279078,"2,489.62",,Other Consultants,,,,,,No
The Royal Borough of Kensington and Chelsea,RBKC,,Statutory and Corporate Items,Statutory Year-End Adjustments,,Cupaz ,1233737,,,,17/11/2022,2200284492,"210,421.00",,Site Works,,,,,,No
The Royal Borough of Kensington and Chelsea,RBKC,,Statutory and Corporate Items,Statutory Year-End Adjustments,,Currie & Brown UK Ltd ,1233738,,,,06/10/2022,2200275588,"5,200.00",,Other Consultants,,,,,,No
The Royal Borough of Kensington and Chelsea,RBKC,,Statutory and Corporate Items,Statutory Year-End Adjustments,,Currie & Brown UK Ltd ,1233738,,,,08/11/2022,2200282338,"5,907.00",,Other Consultants,,,,,,No
The Royal Borough of Kensington and Chelsea,RBKC,,Statutory and Corporate Items,Statutory Year-End Adjustments,,Currie & Brown UK Ltd ,1233738,,,,28/11/2022,2200286181,"3,220.00",,Other Consultants,,,,,,No
The Royal Borough of Kensington and Chelsea,RBKC,,Statutory and Corporate Items,Statutory Year-End Adjustments,,Currie & Brown UK Ltd ,1233738,,,,21/12/2022,2200290954,800,,Other Consultants,,,,,,No
The Royal Borough of Kensington and Chelsea,RBKC,,Statutory and Corporate Items,Statutory Year-End Adjustments,,Cyclehoop Ltd ,1233744,,,,18/10/2022,2200278156,"1,668.00",,Payments to main contractor,,,,,,No
The Royal Borough of Kensington and Chelsea,RBKC,,Statutory and Corporate Items,Statutory Year-End Adjustments,,Cyclehoop Ltd ,1233744,,,,19/10/2022,2200278168,"1,130.00",,Creditors Control : AP GRIR,,,,,,No
The Royal Borough of Kensington and Chelsea,RBKC,,Statutory and Corporate Items,Statutory Year-End Adjustments,,DAVID MILES & PARTNERS LIMITED,1290517,,,,06/12/2022,2200287801,"4,000.00",,Professional Fees : Non Legal,,,,,,No
The Royal Borough of Kensington and Chelsea,RBKC,,Statutory and Corporate Items,Statutory Year-End Adjustments,,Decontaminate UK Limited,1280985,,,,04/10/2022,2200275059,"7,395.02",,Payments to main contractor,,,,,,No
The Royal Borough of Kensington and Chelsea,RBKC,,Statutory and Corporate Items,Statutory Year-End Adjustments,,Decontaminate UK Limited,1280985,,,,04/10/2022,2200275060,"6,976.24",,Payments to main contractor,,,,,,No
The Royal Borough of Kensington and Chelsea,RBKC,,Statutory and Corporate Items,Statutory Year-End Adjustments,,Decontaminate UK Limited,1280985,,,,04/10/2022,2200275063,767.68,,Payments to main contractor,,,,,,No
The Royal Borough of Kensington and Chelsea,RBKC,,Statutory and Corporate Items,Statutory Year-End Adjustments,,Decontaminate UK Limited,1280985,,,,04/10/2022,2200275064,"1,690.42",,Payments to main contractor,,,,,,No
The Royal Borough of Kensington and Chelsea,RBKC,,Statutory and Corporate Items,Statutory Year-End Adjustments,,Decontaminate UK Limited,1280985,,,,04/10/2022,2200275065,"7,921.21",,Special Maintenance,,,,,,No
The Royal Borough of Kensington and Chelsea,RBKC,,Statutory and Corporate Items,Statutory Year-End Adjustments,,Decontaminate UK Limited,1280985,,,,04/10/2022,2200275066,"1,247.06",,Special Maintenance,,,,,,No
The Royal Borough of Kensington and Chelsea,RBKC,,Statutory and Corporate Items,Statutory Year-End Adjustments,,Decontaminate UK Limited,1280985,,,,04/10/2022,2200275067,"4,186.73",,Special Maintenance,,,,,,No
The Royal Borough of Kensington and Chelsea,RBKC,,Statutory and Corporate Items,Statutory Year-End Adjustments,,Decontaminate UK Limited,1280985,,,,04/10/2022,2200275071,"4,152.88",,Special Maintenance,,,,,,No
The Royal Borough of Kensington and Chelsea,RBKC,,Statutory and Corporate Items,Statutory Year-End Adjustments,,Decontaminate UK Limited,1280985,,,,04/10/2022,2200275073,"8,943.48",,Payments to main contractor,,,,,,No
The Royal Borough of Kensington and Chelsea,RBKC,,Statutory and Corporate Items,Statutory Year-End Adjustments,,Decontaminate UK Limited,1280985,,,,06/10/2022,2200275573,"8,279.54",,Payments to main contractor,,,,,,No
The Royal Borough of Kensington and Chelsea,RBKC,,Statutory and Corporate Items,Statutory Year-End Adjustments,,Decontaminate UK Limited,1280985,,,,06/10/2022,2200275574,"5,323.50",,Payments to main contractor,,,,,,No
The Royal Borough of Kensington and Chelsea,RBKC,,Statutory and Corporate Items,Statutory Year-End Adjustments,,Decontaminate UK Limited,1280985,,,,11/10/2022,2200276393,"2,402.40",,Special Maintenance,,,,,,No
The Royal Borough of Kensington and Chelsea,RBKC,,Statutory and Corporate Items,Statutory Year-End Adjustments,,Decontaminate UK Limited,1280985,,,,11/10/2022,2200276396,"2,902.54",,Special Maintenance,,,,,,No
The Royal Borough of Kensington and Chelsea,RBKC,,Statutory and Corporate Items,Statutory Year-End Adjustments,,Decontaminate UK Limited,1280985,,,,11/10/2022,2200276399,"5,161.88",,Special Maintenance,,,,,,No
The Royal Borough of Kensington and Chelsea,RBKC,,Statutory and Corporate Items,Statutory Year-End Adjustments,,Decontaminate UK Limited,1280985,,,,11/10/2022,2200276405,764.4,,Payments to main contractor,,,,,,No
The Royal Borough of Kensington and Chelsea,RBKC,,Statutory and Corporate Items,Statutory Year-End Adjustments,,Decontaminate UK Limited,1280985,,,,11/10/2022,2200276407,"5,813.81",,Special Maintenance,,,,,,No
The Royal Borough of Kensington and Chelsea,RBKC,,Statutory and Corporate Items,Statutory Year-End Adjustments,,Decontaminate UK Limited,1280985,,,,12/10/2022,2200276934,"6,676.49",,Payments to main contractor,,,,,,No
The Royal Borough of Kensington and Chelsea,RBKC,,Statutory and Corporate Items,Statutory Year-End Adjustments,,Decontaminate UK Limited,1280985,,,,04/11/2022,2200281661,750,,Other Consultants,,,,,,No
The Royal Borough of Kensington and Chelsea,RBKC,,Statutory and Corporate Items,Statutory Year-End Adjustments,,Decontaminate UK Limited,1280985,,,,10/11/2022,2200282823,"6,523.00",,Payments to main contractor,,,,,,No
The Royal Borough of Kensington and Chelsea,RBKC,,Statutory and Corporate Items,Statutory Year-End Adjustments,,Decontaminate UK Limited,1280985,,,,10/11/2022,2200282824,"3,452.00",,Payments to main contractor,,,,,,No
The Royal Borough of Kensington and Chelsea,RBKC,,Statutory and Corporate Items,Statutory Year-End Adjustments,,Decontaminate UK Limited,1280985,,,,10/11/2022,2200282825,"5,370.00",,Payments to main contractor,,,,,,No
The Royal Borough of Kensington and Chelsea,RBKC,,Statutory and Corporate Items,Statutory Year-End Adjustments,,Decontaminate UK Limited,1280985,,,,10/11/2022,2200282826,"2,724.00",,Payments to main contractor,,,,,,No
The Royal Borough of Kensington and Chelsea,RBKC,,Statutory and Corporate Items,Statutory Year-End Adjustments,,Decontaminate UK Limited,1280985,,,,10/11/2022,2200282827,"2,425.00",,Payments to main contractor,,,,,,No
The Royal Borough of Kensington and Chelsea,RBKC,,Statutory and Corporate Items,Statutory Year-End Adjustments,,Decontaminate UK Limited,1280985,,,,10/11/2022,2200282828,"3,488.00",,Payments to main contractor,,,,,,No
The Royal Borough of Kensington and Chelsea,RBKC,,Statutory and Corporate Items,Statutory Year-End Adjustments,,Decontaminate UK Limited,1280985,,,,06/12/2022,2200287719,"2,998.63",,Payments to main contractor,,,,,,No
The Royal Borough of Kensington and Chelsea,RBKC,,Statutory and Corporate Items,Statutory Year-End Adjustments,,Decontaminate UK Limited,1280985,,,,06/12/2022,2200287773,"5,130.22",,Payments to main contractor,,,,,,No
The Royal Borough of Kensington and Chelsea,RBKC,,Statutory and Corporate Items,Statutory Year-End Adjustments,,Decontaminate UK Limited,1280985,,,,06/12/2022,2200287826,"4,267.54",,Payments to main contractor,,,,,,No
The Royal Borough of Kensington and Chelsea,RBKC,,Statutory and Corporate Items,Statutory Year-End Adjustments,,Decontaminate UK Limited,1280985,,,,06/12/2022,2200287829,"4,149.60",,Payments to main contractor,,,,,,No
The Royal Borough of Kensington and Chelsea,RBKC,,Statutory and Corporate Items,Statutory Year-End Adjustments,,Decontaminate UK Limited,1280985,,,,06/12/2022,2200287842,"2,859.95",,Payments to main contractor,,,,,,No
The Royal Borough of Kensington and Chelsea,RBKC,,Statutory and Corporate Items,Statutory Year-End Adjustments,,Decontaminate UK Limited,1280985,,,,14/12/2022,2200289737,"2,585.86",,Payments to main contractor,,,,,,No
The Royal Borough of Kensington and Chelsea,RBKC,,Statutory and Corporate Items,Statutory Year-End Adjustments,,Decontaminate UK Limited,1280985,,,,18/12/2022,2200290126,"6,436.25",,Payments to main contractor,,,,,,No
The Royal Borough of Kensington and Chelsea,RBKC,,Statutory and Corporate Items,Statutory Year-End Adjustments,,Derisk (UK) Limited ,1233980,,,,06/10/2022,2200275575,794.56,,Professional Fees : Non Legal,,,,,,No
The Royal Borough of Kensington and Chelsea,RBKC,,Statutory and Corporate Items,Statutory Year-End Adjustments,,Derisk (UK) Limited ,1233980,,,,07/10/2022,2200275841,"1,396.71",,Professional Fees : Non Legal,,,,,,No
The Royal Borough of Kensington and Chelsea,RBKC,,Statutory and Corporate Items,Statutory Year-End Adjustments,,Derisk (UK) Limited ,1233980,,,,07/10/2022,2200275961,"1,595.65",,Professional Fees : Non Legal,,,,,,No
The Royal Borough of Kensington and Chelsea,RBKC,,Statutory and Corporate Items,Statutory Year-End Adjustments,,Derisk (UK) Limited ,1233980,,,,10/10/2022,2200276342,720,,Professional Fees : Non Legal,,,,,,No
The Royal Borough of Kensington and Chelsea,RBKC,,Statutory and Corporate Items,Statutory Year-End Adjustments,,Derisk (UK) Limited ,1233980,,,,11/10/2022,2200276345,"2,517.50",,Professional Fees : Non Legal,,,,,,No
The Royal Borough of Kensington and Chelsea,RBKC,,Statutory and Corporate Items,Statutory Year-End Adjustments,,Derisk (UK) Limited ,1233980,,,,11/10/2022,2200276350,"2,310.31",,Design Consultant,,,,,,No
The Royal Borough of Kensington and Chelsea,RBKC,,Statutory and Corporate Items,Statutory Year-End Adjustments,,Derisk (UK) Limited ,1233980,,,,13/10/2022,2200276983,"1,188.00",,Professional Fees : Non Legal,,,,,,No
The Royal Borough of Kensington and Chelsea,RBKC,,Statutory and Corporate Items,Statutory Year-End Adjustments,,Derisk (UK) Limited ,1233980,,,,17/10/2022,2200277643,"2,300.00",,Payments to main contractor,,,,,,No
The Royal Borough of Kensington and Chelsea,RBKC,,Statutory and Corporate Items,Statutory Year-End Adjustments,,Derisk (UK) Limited ,1233980,,,,17/10/2022,2200277648,558.73,,Payments to main contractor,,,,,,No
The Royal Borough of Kensington and Chelsea,RBKC,,Statutory and Corporate Items,Statutory Year-End Adjustments,,Derisk (UK) Limited ,1233980,,,,20/10/2022,2200278627,695,,Other Consultants,,,,,,No
The Royal Borough of Kensington and Chelsea,RBKC,,Statutory and Corporate Items,Statutory Year-End Adjustments,,Derisk (UK) Limited ,1233980,,,,20/10/2022,2200278629,695,,Other Consultants,,,,,,No
The Royal Borough of Kensington and Chelsea,RBKC,,Statutory and Corporate Items,Statutory Year-End Adjustments,,Derisk (UK) Limited ,1233980,,,,24/10/2022,2200279067,766.59,,Payments to main contractor,,,,,,No
The Royal Borough of Kensington and Chelsea,RBKC,,Statutory and Corporate Items,Statutory Year-End Adjustments,,Derisk (UK) Limited ,1233980,,,,24/10/2022,2200279071,876.19,,Payments to main contractor,,,,,,No
The Royal Borough of Kensington and Chelsea,RBKC,,Statutory and Corporate Items,Statutory Year-End Adjustments,,Derisk (UK) Limited ,1233980,,,,25/10/2022,2200279298,"2,600.00",,Other Consultants,,,,,,No
The Royal Borough of Kensington and Chelsea,RBKC,,Statutory and Corporate Items,Statutory Year-End Adjustments,,Derisk (UK) Limited ,1233980,,,,01/11/2022,2200280632,"1,500.00",,Professional Fees : Non Legal,,,,,,No
The Royal Borough of Kensington and Chelsea,RBKC,,Statutory and Corporate Items,Statutory Year-End Adjustments,,Derisk (UK) Limited ,1233980,,,,01/11/2022,2200280633,"1,860.45",,Professional Fees : Non Legal,,,,,,No
The Royal Borough of Kensington and Chelsea,RBKC,,Statutory and Corporate Items,Statutory Year-End Adjustments,,Derisk (UK) Limited ,1233980,,,,01/11/2022,2200280644,"2,500.00",,Professional Fees : Non Legal,,,,,,No
The Royal Borough of Kensington and Chelsea,RBKC,,Statutory and Corporate Items,Statutory Year-End Adjustments,,Derisk (UK) Limited ,1233980,,,,04/11/2022,2200281418,712.31,,Professional Fees : Non Legal,,,,,,No
The Royal Borough of Kensington and Chelsea,RBKC,,Statutory and Corporate Items,Statutory Year-End Adjustments,,Derisk (UK) Limited ,1233980,,,,04/11/2022,2200281432,"2,500.00",,Professional Fees : Non Legal,,,,,,No
The Royal Borough of Kensington and Chelsea,RBKC,,Statutory and Corporate Items,Statutory Year-End Adjustments,,Derisk (UK) Limited ,1233980,,,,06/11/2022,2200281778,995,,Professional Fees : Non Legal,,,,,,No
The Royal Borough of Kensington and Chelsea,RBKC,,Statutory and Corporate Items,Statutory Year-End Adjustments,,Derisk (UK) Limited ,1233980,,,,07/11/2022,2200282033,"1,320.00",,Professional Fees : Non Legal,,,,,,No
The Royal Borough of Kensington and Chelsea,RBKC,,Statutory and Corporate Items,Statutory Year-End Adjustments,,Derisk (UK) Limited ,1233980,,,,10/11/2022,2200282913,995,,Other Consultants,,,,,,No
The Royal Borough of Kensington and Chelsea,RBKC,,Statutory and Corporate Items,Statutory Year-End Adjustments,,Derisk (UK) Limited ,1233980,,,,22/11/2022,2200285250,"2,500.00",,Professional Fees : Non Legal,,,,,,No
The Royal Borough of Kensington and Chelsea,RBKC,,Statutory and Corporate Items,Statutory Year-End Adjustments,,Derisk (UK) Limited ,1233980,,,,23/11/2022,2200285473,595,,Payments to main contractor,,,,,,No
The Royal Borough of Kensington and Chelsea,RBKC,,Statutory and Corporate Items,Statutory Year-End Adjustments,,Derisk (UK) Limited ,1233980,,,,07/12/2022,2200288044,"3,900.00",,Professional Fees : Non Legal,,,,,,No
The Royal Borough of Kensington and Chelsea,RBKC,,Statutory and Corporate Items,Statutory Year-End Adjustments,,Derisk (UK) Limited ,1233980,,,,07/12/2022,2200288112,"3,960.00",,Professional Fees : Non Legal,,,,,,No
The Royal Borough of Kensington and Chelsea,RBKC,,Statutory and Corporate Items,Statutory Year-End Adjustments,,Derisk (UK) Limited ,1233980,,,,12/12/2022,2200288922,595,,Professional Fees : Non Legal,,,,,,No
The Royal Borough of Kensington and Chelsea,RBKC,,Statutory and Corporate Items,Statutory Year-End Adjustments,,Derisk (UK) Limited ,1233980,,,,19/12/2022,2200290325,"3,578.79",,Professional Fees : Non Legal,,,,,,No
The Royal Borough of Kensington and Chelsea,RBKC,,Statutory and Corporate Items,Statutory Year-End Adjustments,,Derisk (UK) Limited ,1233980,,,,19/12/2022,2200290326,"2,127.54",,Professional Fees : Non Legal,,,,,,No
The Royal Borough of Kensington and Chelsea,RBKC,,Statutory and Corporate Items,Statutory Year-End Adjustments,,Derisk (UK) Limited ,1233980,,,,19/12/2022,2200290327,"10,736.37",,Professional Fees : Non Legal,,,,,,No
The Royal Borough of Kensington and Chelsea,RBKC,,Statutory and Corporate Items,Statutory Year-End Adjustments,,Dma Signs Ltd ,1234013,,,,01/11/2022,2200280624,680,,Site Works,,,,,,No
The Royal Borough of Kensington and Chelsea,RBKC,,Statutory and Corporate Items,Statutory Year-End Adjustments,,Doorway Maintenance Co ,1231196,,,,03/10/2022,2200274719,"1,985.00",,Other capital equipment,,,,,,No
The Royal Borough of Kensington and Chelsea,RBKC,,Statutory and Corporate Items,Statutory Year-End Adjustments,,Doorway Maintenance Co ,1231196,,,,07/10/2022,2200275846,"1,350.00",,Payments to main contractor,,,,,,No
The Royal Borough of Kensington and Chelsea,RBKC,,Statutory and Corporate Items,Statutory Year-End Adjustments,,Doorway Maintenance Co ,1231196,,,,11/10/2022,2200276485,"9,830.00",,Payments to main contractor,,,,,,No
The Royal Borough of Kensington and Chelsea,RBKC,,Statutory and Corporate Items,Statutory Year-End Adjustments,,Doorway Maintenance Co ,1231196,,,,15/10/2022,2200277542,"2,195.00",,Other capital equipment,,,,,,No
The Royal Borough of Kensington and Chelsea,RBKC,,Statutory and Corporate Items,Statutory Year-End Adjustments,,Doorway Maintenance Co ,1231196,,,,03/11/2022,2200281335,984,,Other capital equipment,,,,,,No
The Royal Borough of Kensington and Chelsea,RBKC,,Statutory and Corporate Items,Statutory Year-End Adjustments,,Doorway Maintenance Co ,1231196,,,,03/11/2022,2200281336,"1,396.00",,Other capital equipment,,,,,,No
The Royal Borough of Kensington and Chelsea,RBKC,,Statutory and Corporate Items,Statutory Year-End Adjustments,,Doorway Maintenance Co ,1231196,,,,10/11/2022,2200282792,"2,636.00",,Payments to main contractor,,,,,,No
The Royal Borough of Kensington and Chelsea,RBKC,,Statutory and Corporate Items,Statutory Year-End Adjustments,,Doorway Maintenance Co ,1231196,,,,14/11/2022,2200283445,"3,295.00",,Payments to main contractor,,,,,,No
The Royal Borough of Kensington and Chelsea,RBKC,,Statutory and Corporate Items,Statutory Year-End Adjustments,,Doorway Maintenance Co ,1231196,,,,15/11/2022,2200283748,"5,195.00",,Other capital equipment,,,,,,No
The Royal Borough of Kensington and Chelsea,RBKC,,Statutory and Corporate Items,Statutory Year-End Adjustments,,Doorway Maintenance Co ,1231196,,,,15/11/2022,2200283749,"2,705.00",,Other capital equipment,,,,,,No
The Royal Borough of Kensington and Chelsea,RBKC,,Statutory and Corporate Items,Statutory Year-End Adjustments,,Doorway Maintenance Co ,1231196,,,,15/11/2022,2200283751,"2,995.00",,Other capital equipment,,,,,,No
The Royal Borough of Kensington and Chelsea,RBKC,,Statutory and Corporate Items,Statutory Year-End Adjustments,,Drive and Deliver Construction Ltd,1289446,,,,17/10/2022,2200277841,"11,495.32",,Payments to main contractor,,,,,,No
The Royal Borough of Kensington and Chelsea,RBKC,,Statutory and Corporate Items,Statutory Year-End Adjustments,,Drive and Deliver Construction Ltd,1289446,,,,08/11/2022,2200282189,"2,531.70",,Payments to main contractor,,,,,,No
The Royal Borough of Kensington and Chelsea,RBKC,,Statutory and Corporate Items,Statutory Year-End Adjustments,,Drive and Deliver Construction Ltd,1289446,,,,10/11/2022,2200282834,"2,531.70",,Payments to main contractor,,,,,,No
The Royal Borough of Kensington and Chelsea,RBKC,,Statutory and Corporate Items,Statutory Year-End Adjustments,,Redact Details,1296555,,,,21/10/2022,2200278868,"7,567.00",,Site Works,,,,,,No
The Royal Borough of Kensington and Chelsea,RBKC,,Statutory and Corporate Items,Statutory Year-End Adjustments,,ECD Architects Ltd,1234067,,,,04/10/2022,2200275034,"20,192.55",,Professional Fees : Non Legal,,,,,,No
The Royal Borough of Kensington and Chelsea,RBKC,,Statutory and Corporate Items,Statutory Year-End Adjustments,,ECD Architects Ltd,1234067,,,,04/10/2022,2200275040,"10,096.28",,Professional Fees : Non Legal,,,,,,No
The Royal Borough of Kensington and Chelsea,RBKC,,Statutory and Corporate Items,Statutory Year-End Adjustments,,ECD Architects Ltd,1234067,,,,05/10/2022,2200275242,"3,150.00",,Payments to main contractor,,,,,,No
The Royal Borough of Kensington and Chelsea,RBKC,,Statutory and Corporate Items,Statutory Year-End Adjustments,,ECD Architects Ltd,1234067,,,,11/10/2022,2200276656,"7,341.23",,Payments to main contractor,,,,,,No
The Royal Borough of Kensington and Chelsea,RBKC,,Statutory and Corporate Items,Statutory Year-End Adjustments,,ECD Architects Ltd,1234067,,,,26/10/2022,2200279755,"6,960.00",,Payments to main contractor,,,,,,No
The Royal Borough of Kensington and Chelsea,RBKC,,Statutory and Corporate Items,Statutory Year-End Adjustments,,ECD Architects Ltd,1234067,,,,09/11/2022,2200282642,"3,780.00",,Payments to main contractor,,,,,,No
The Royal Borough of Kensington and Chelsea,RBKC,,Statutory and Corporate Items,Statutory Year-End Adjustments,,ECD Architects Ltd,1234067,,,,14/11/2022,2200283400,"6,000.00",,Payments to main contractor,,,,,,No
The Royal Borough of Kensington and Chelsea,RBKC,,Statutory and Corporate Items,Statutory Year-End Adjustments,,ECD Architects Ltd,1234067,,,,14/11/2022,2200283401,"5,500.00",,Payments to main contractor,,,,,,No
The Royal Borough of Kensington and Chelsea,RBKC,,Statutory and Corporate Items,Statutory Year-End Adjustments,,ECD Architects Ltd,1234067,,,,15/11/2022,2200283730,"5,500.00",,Payments to main contractor,,,,,,No
The Royal Borough of Kensington and Chelsea,RBKC,,Statutory and Corporate Items,Statutory Year-End Adjustments,,ECD Architects Ltd,1234067,,,,15/11/2022,2200283731,"4,000.00",,Payments to main contractor,,,,,,No
The Royal Borough of Kensington and Chelsea,RBKC,,Statutory and Corporate Items,Statutory Year-End Adjustments,,ECD Architects Ltd,1234067,,,,28/11/2022,2200286054,"1,575.00",,Payments to main contractor,,,,,,No
The Royal Borough of Kensington and Chelsea,RBKC,,Statutory and Corporate Items,Statutory Year-End Adjustments,,ECD Architects Ltd,1234067,,,,07/12/2022,2200288089,"7,341.23",,Payments to main contractor,,,,,,No
The Royal Borough of Kensington and Chelsea,RBKC,,Statutory and Corporate Items,Statutory Year-End Adjustments,,ECD Architects Ltd,1234067,,,,08/12/2022,2200288490,"2,077.09",,Payments to main contractor,,,,,,No
The Royal Borough of Kensington and Chelsea,RBKC,,Statutory and Corporate Items,Statutory Year-End Adjustments,,ETEC Contract Services Ltd,1298114,,,,16/11/2022,2200284202,"64,991.72",,Site Works,,,,,,No
The Royal Borough of Kensington and Chelsea,RBKC,,Statutory and Corporate Items,Statutory Year-End Adjustments,,ETEC Contract Services Ltd,1298114,,,,14/12/2022,2200289576,"122,147.57",,Site Works,,,,,,No
The Royal Borough of Kensington and Chelsea,RBKC,,Statutory and Corporate Items,Statutory Year-End Adjustments,,Earl Kendrick (London) Limited,1288229,,,,03/10/2022,2200274477,550,,Other Consultants,,,,,,No
The Royal Borough of Kensington and Chelsea,RBKC,,Statutory and Corporate Items,Statutory Year-End Adjustments,,Earl Kendrick (London) Limited,1288229,,,,01/12/2022,2200286917,550,,Creditors Control : AP GRIR,,,,,,No
The Royal Borough of Kensington and Chelsea,RBKC,,Statutory and Corporate Items,Statutory Year-End Adjustments,,Eco Green Roofs Ltd,1289464,,,,14/10/2022,2200277364,678,,Payments to main contractor,,,,,,No
The Royal Borough of Kensington and Chelsea,RBKC,,Statutory and Corporate Items,Statutory Year-End Adjustments,,Eight Associates Ltd,1234091,,,,03/10/2022,2200274485,"3,400.00",,Other Consultants,,,,,,No
The Royal Borough of Kensington and Chelsea,RBKC,,Statutory and Corporate Items,Statutory Year-End Adjustments,,Eight Associates Ltd,1234091,,,,08/11/2022,2200282306,"3,150.00",,Other Consultants,,,,,,No
The Royal Borough of Kensington and Chelsea,RBKC,,Statutory and Corporate Items,Statutory Year-End Adjustments,,Eight Associates Ltd,1234091,,,,15/11/2022,2200283778,520,,Planned Maintenance (CM),,,,,,No
The Royal Borough of Kensington and Chelsea,RBKC,,Statutory and Corporate Items,Statutory Year-End Adjustments,,Emisphere Ltd ,1231200,,,,25/11/2022,2200285935,"8,160.00",,Payments to main contractor,,,,,,No
The Royal Borough of Kensington and Chelsea,RBKC,,Statutory and Corporate Items,Statutory Year-End Adjustments,,Emisphere Ltd ,1231200,,,,14/12/2022,2200289700,"6,740.00",,Payments to main contractor,,,,,,No
The Royal Borough of Kensington and Chelsea,RBKC,,Statutory and Corporate Items,Statutory Year-End Adjustments,,Energiesprong UK Ltd,1276664,,,,05/12/2022,2200287492,"50,000.00",,Design Consultant,,,,,,No
The Royal Borough of Kensington and Chelsea,RBKC,,Statutory and Corporate Items,Statutory Year-End Adjustments,,Etude Consulting Limited,1269026,,,,08/11/2022,2200282299,"1,400.00",,Site Works,,,,,,No
The Royal Borough of Kensington and Chelsea,RBKC,,Statutory and Corporate Items,Statutory Year-End Adjustments,,EXCLUSIVE LEISURE LTD,1278378,,,,25/10/2022,2200279339,"3,193.65",,Construction : enhancements,,,,,,No
The Royal Borough of Kensington and Chelsea,RBKC,,Statutory and Corporate Items,Statutory Year-End Adjustments,,Express Environmental ,1256411,,,,11/10/2022,2200276561,"2,050.00",,Payments to main contractor,,,,,,No
The Royal Borough of Kensington and Chelsea,RBKC,,Statutory and Corporate Items,Statutory Year-End Adjustments,,Exterior Architecture Limited,1287337,,,,03/10/2022,2200274492,"4,125.00",,Other Consultants,,,,,,No
The Royal Borough of Kensington and Chelsea,RBKC,,Statutory and Corporate Items,Statutory Year-End Adjustments,,F.M Conway Ltd ,1231208,,,,05/10/2022,2200275292,541.86,,Payments to main contractor,,,,,,No
The Royal Borough of Kensington and Chelsea,RBKC,,Statutory and Corporate Items,Statutory Year-End Adjustments,,F.M Conway Ltd ,1231208,,,,06/10/2022,2200275626,"80,441.01",,Payments to main contractor,,,,,,No
The Royal Borough of Kensington and Chelsea,RBKC,,Statutory and Corporate Items,Statutory Year-End Adjustments,,F.M Conway Ltd ,1231208,,,,06/10/2022,2200275627,"17,533.70",,Payments to main contractor,,,,,,No
The Royal Borough of Kensington and Chelsea,RBKC,,Statutory and Corporate Items,Statutory Year-End Adjustments,,F.M Conway Ltd ,1231208,,,,12/10/2022,2200276823,"10,836.19",,Payments to main contractor,,,,,,No
The Royal Borough of Kensington and Chelsea,RBKC,,Statutory and Corporate Items,Statutory Year-End Adjustments,,F.M Conway Ltd ,1231208,,,,12/10/2022,2200276829,"10,836.19",,Payments to main contractor,,,,,,No
The Royal Borough of Kensington and Chelsea,RBKC,,Statutory and Corporate Items,Statutory Year-End Adjustments,,F.M Conway Ltd ,1231208,,,,17/10/2022,2200277676,"4,766.34",,Payments to main contractor,,,,,,No
The Royal Borough of Kensington and Chelsea,RBKC,,Statutory and Corporate Items,Statutory Year-End Adjustments,,F.M Conway Ltd ,1231208,,,,21/10/2022,2200278876,"25,000.00",,Payments to main contractor,,,,,,No
The Royal Borough of Kensington and Chelsea,RBKC,,Statutory and Corporate Items,Statutory Year-End Adjustments,,F.M Conway Ltd ,1231208,,,,24/10/2022,2200279141,"44,453.45",,Payments to main contractor,,,,,,No
The Royal Borough of Kensington and Chelsea,RBKC,,Statutory and Corporate Items,Statutory Year-End Adjustments,,F.M Conway Ltd ,1231208,,,,25/10/2022,2200279413,"5,883.82",,Payments to main contractor,,,,,,No
The Royal Borough of Kensington and Chelsea,RBKC,,Statutory and Corporate Items,Statutory Year-End Adjustments,,F.M Conway Ltd ,1231208,,,,27/10/2022,2200280024,"11,603.05",,Payments to main contractor,,,,,,No
The Royal Borough of Kensington and Chelsea,RBKC,,Statutory and Corporate Items,Statutory Year-End Adjustments,,F.M Conway Ltd ,1231208,,,,28/10/2022,2200280166,"66,839.25",,Construction : enhancements,,,,,,No
The Royal Borough of Kensington and Chelsea,RBKC,,Statutory and Corporate Items,Statutory Year-End Adjustments,,F.M Conway Ltd ,1231208,,,,31/10/2022,2200280388,"57,576.48",,Payments to main contractor,,,,,,No
The Royal Borough of Kensington and Chelsea,RBKC,,Statutory and Corporate Items,Statutory Year-End Adjustments,,F.M Conway Ltd ,1231208,,,,01/11/2022,2200280635,"6,687.20",,Construction : enhancements,,,,,,No
The Royal Borough of Kensington and Chelsea,RBKC,,Statutory and Corporate Items,Statutory Year-End Adjustments,,F.M Conway Ltd ,1231208,,,,02/11/2022,2200280741,"109,988.29",,Payments to main contractor,,,,,,No
The Royal Borough of Kensington and Chelsea,RBKC,,Statutory and Corporate Items,Statutory Year-End Adjustments,,F.M Conway Ltd ,1231208,,,,02/11/2022,2200280756,"2,860.45",,Payments to main contractor,,,,,,No
The Royal Borough of Kensington and Chelsea,RBKC,,Statutory and Corporate Items,Statutory Year-End Adjustments,,F.M Conway Ltd ,1231208,,,,02/11/2022,2200280887,"2,380.37",,Construction : enhancements,,,,,,No
The Royal Borough of Kensington and Chelsea,RBKC,,Statutory and Corporate Items,Statutory Year-End Adjustments,,F.M Conway Ltd ,1231208,,,,04/11/2022,2200281427,500,,Site Works,,,,,,No
The Royal Borough of Kensington and Chelsea,RBKC,,Statutory and Corporate Items,Statutory Year-End Adjustments,,F.M Conway Ltd ,1231208,,,,04/11/2022,2200281484,728.38,,Construction : enhancements,,,,,,No
The Royal Borough of Kensington and Chelsea,RBKC,,Statutory and Corporate Items,Statutory Year-End Adjustments,,F.M Conway Ltd ,1231208,,,,04/11/2022,2200281486,"1,293.15",,Payments to main contractor,,,,,,No
The Royal Borough of Kensington and Chelsea,RBKC,,Statutory and Corporate Items,Statutory Year-End Adjustments,,F.M Conway Ltd ,1231208,,,,07/11/2022,2200281848,"3,988.61",,Construction : enhancements,,,,,,No
The Royal Borough of Kensington and Chelsea,RBKC,,Statutory and Corporate Items,Statutory Year-End Adjustments,,F.M Conway Ltd ,1231208,,,,07/11/2022,2200281849,"5,145.31",,Construction : enhancements,,,,,,No
The Royal Borough of Kensington and Chelsea,RBKC,,Statutory and Corporate Items,Statutory Year-End Adjustments,,F.M Conway Ltd ,1231208,,,,09/11/2022,2200282429,"1,429.48",,Construction : enhancements,,,,,,No
The Royal Borough of Kensington and Chelsea,RBKC,,Statutory and Corporate Items,Statutory Year-End Adjustments,,F.M Conway Ltd ,1231208,,,,09/11/2022,2200282602,"2,128.28",,Construction : enhancements,,,,,,No
The Royal Borough of Kensington and Chelsea,RBKC,,Statutory and Corporate Items,Statutory Year-End Adjustments,,F.M Conway Ltd ,1231208,,,,09/11/2022,2200282613,"1,138.56",,Payments to main contractor,,,,,,No
The Royal Borough of Kensington and Chelsea,RBKC,,Statutory and Corporate Items,Statutory Year-End Adjustments,,F.M Conway Ltd ,1231208,,,,11/11/2022,2200283122,"16,379.94",,Construction : enhancements,,,,,,No
The Royal Borough of Kensington and Chelsea,RBKC,,Statutory and Corporate Items,Statutory Year-End Adjustments,,F.M Conway Ltd ,1231208,,,,11/11/2022,2200283140,"1,182.18",,Construction : enhancements,,,,,,No
The Royal Borough of Kensington and Chelsea,RBKC,,Statutory and Corporate Items,Statutory Year-End Adjustments,,F.M Conway Ltd ,1231208,,,,16/11/2022,2200284160,"1,083.67",,Payments to main contractor,,,,,,No
The Royal Borough of Kensington and Chelsea,RBKC,,Statutory and Corporate Items,Statutory Year-End Adjustments,,F.M Conway Ltd ,1231208,,,,24/11/2022,2200285736,"13,776.92",,Payments to main contractor,,,,,,No
The Royal Borough of Kensington and Chelsea,RBKC,,Statutory and Corporate Items,Statutory Year-End Adjustments,,F.M Conway Ltd ,1231208,,,,24/11/2022,2200285741,"2,225.47",,Payments to main contractor,,,,,,No
The Royal Borough of Kensington and Chelsea,RBKC,,Statutory and Corporate Items,Statutory Year-End Adjustments,,F.M Conway Ltd ,1231208,,,,29/11/2022,2200286404,"40,000.00",,Payments to main contractor,,,,,,No
The Royal Borough of Kensington and Chelsea,RBKC,,Statutory and Corporate Items,Statutory Year-End Adjustments,,F.M Conway Ltd ,1231208,,,,02/12/2022,2200287067,"4,060.24",,Payments to main contractor,,,,,,No
The Royal Borough of Kensington and Chelsea,RBKC,,Statutory and Corporate Items,Statutory Year-End Adjustments,,F.M Conway Ltd ,1231208,,,,14/12/2022,2200289549,"26,562.69",,Construction : enhancements,,,,,,No
The Royal Borough of Kensington and Chelsea,RBKC,,Statutory and Corporate Items,Statutory Year-End Adjustments,,F.M Conway Ltd ,1231208,,,,19/12/2022,2200290384,"89,168.51",,Payments to main contractor,,,,,,No
The Royal Borough of Kensington and Chelsea,RBKC,,Statutory and Corporate Items,Statutory Year-End Adjustments,,F.M Conway Ltd ,1231208,,,,23/12/2022,2200291226,"5,746.84",,Payments to main contractor,,,,,,No
The Royal Borough of Kensington and Chelsea,RBKC,,Statutory and Corporate Items,Statutory Year-End Adjustments,,Faithful and Gould Limited,1234387,,,,09/12/2022,2200288583,"1,641.50",,Professional Fees : Non Legal,,,,,,No
The Royal Borough of Kensington and Chelsea,RBKC,,Statutory and Corporate Items,Statutory Year-End Adjustments,,Falck Fire Services UK LTD,1277465,,,,07/10/2022,2200275867,"15,350.00",,Professional Fees : Non Legal,,,,,,No
The Royal Borough of Kensington and Chelsea,RBKC,,Statutory and Corporate Items,Statutory Year-End Adjustments,,Falck Fire Services UK LTD,1277465,,,,12/12/2022,2200288924,"1,150.00",,Design Consultant,,,,,,No
The Royal Borough of Kensington and Chelsea,RBKC,,Statutory and Corporate Items,Statutory Year-End Adjustments,,Falck Fire Services UK LTD,1277465,,,,12/12/2022,2200288925,"1,500.00",,Design Consultant,,,,,,No
The Royal Borough of Kensington and Chelsea,RBKC,,Statutory and Corporate Items,Statutory Year-End Adjustments,,Freeway Lift Services Ltd ,1231213,,,,25/11/2022,2200285937,"6,305.00",,Payments to main contractor,,,,,,No
The Royal Borough of Kensington and Chelsea,RBKC,,Statutory and Corporate Items,Statutory Year-End Adjustments,,Freeway Lift Services Ltd ,1231213,,,,13/12/2022,2200289503,"5,065.00",,Payments to main contractor,,,,,,No
The Royal Borough of Kensington and Chelsea,RBKC,,Statutory and Corporate Items,Statutory Year-End Adjustments,,Fusion Project Management Ltd,1268369,,,,11/10/2022,2200276590,"12,375.00",,Surveyors,,,,,,No
The Royal Borough of Kensington and Chelsea,RBKC,,Statutory and Corporate Items,Statutory Year-End Adjustments,,Fusion Project Management Ltd,1268369,,,,11/10/2022,2200276591,"12,375.00",,Architects,,,,,,No
The Royal Borough of Kensington and Chelsea,RBKC,,Statutory and Corporate Items,Statutory Year-End Adjustments,,Fusion Project Management Ltd,1268369,,,,11/10/2022,2200276592,"6,000.00",,Surveyors,,,,,,No
The Royal Borough of Kensington and Chelsea,RBKC,,Statutory and Corporate Items,Statutory Year-End Adjustments,,Fusion Project Management Ltd,1268369,,,,12/10/2022,2200276967,"2,250.00",,Other Consultants,,,,,,No
The Royal Borough of Kensington and Chelsea,RBKC,,Statutory and Corporate Items,Statutory Year-End Adjustments,,Fusion Project Management Ltd,1268369,,,,12/10/2022,2200276968,"1,350.00",,Other Consultants,,,,,,No
The Royal Borough of Kensington and Chelsea,RBKC,,Statutory and Corporate Items,Statutory Year-End Adjustments,,Fusion Project Management Ltd,1268369,,,,12/10/2022,2200276969,"9,500.00",,Other Consultants,,,,,,No
The Royal Borough of Kensington and Chelsea,RBKC,,Statutory and Corporate Items,Statutory Year-End Adjustments,,Fusion Project Management Ltd,1268369,,,,12/10/2022,2200276970,"3,777.19",,Other Consultants,,,,,,No
The Royal Borough of Kensington and Chelsea,RBKC,,Statutory and Corporate Items,Statutory Year-End Adjustments,,Fusion Project Management Ltd,1268369,,,,12/10/2022,2200276972,"3,500.00",,Other Consultants,,,,,,No
The Royal Borough of Kensington and Chelsea,RBKC,,Statutory and Corporate Items,Statutory Year-End Adjustments,,Fusion Project Management Ltd,1268369,,,,12/10/2022,2200276973,"1,500.00",,Other Consultants,,,,,,No
The Royal Borough of Kensington and Chelsea,RBKC,,Statutory and Corporate Items,Statutory Year-End Adjustments,,Fusion Project Management Ltd,1268369,,,,26/10/2022,2200279691,875,,Surveyors,,,,,,No
The Royal Borough of Kensington and Chelsea,RBKC,,Statutory and Corporate Items,Statutory Year-End Adjustments,,Fusion Project Management Ltd,1268369,,,,07/11/2022,2200281853,"1,100.00",,Architects,,,,,,No
The Royal Borough of Kensington and Chelsea,RBKC,,Statutory and Corporate Items,Statutory Year-End Adjustments,,Fusion Project Management Ltd,1268369,,,,07/11/2022,2200281854,"1,100.00",,Surveyors,,,,,,No
The Royal Borough of Kensington and Chelsea,RBKC,,Statutory and Corporate Items,Statutory Year-End Adjustments,,Fusion Project Management Ltd,1268369,,,,07/11/2022,2200281855,"6,000.00",,Surveyors,,,,,,No
The Royal Borough of Kensington and Chelsea,RBKC,,Statutory and Corporate Items,Statutory Year-End Adjustments,,Fusion Project Management Ltd,1268369,,,,07/11/2022,2200281856,"2,400.00",,Surveyors,,,,,,No
The Royal Borough of Kensington and Chelsea,RBKC,,Statutory and Corporate Items,Statutory Year-End Adjustments,,Fusion Project Management Ltd,1268369,,,,07/11/2022,2200281995,"2,500.00",,Other Consultants,,,,,,No
The Royal Borough of Kensington and Chelsea,RBKC,,Statutory and Corporate Items,Statutory Year-End Adjustments,,Fusion Project Management Ltd,1268369,,,,07/11/2022,2200281996,"2,500.00",,Other Consultants,,,,,,No
The Royal Borough of Kensington and Chelsea,RBKC,,Statutory and Corporate Items,Statutory Year-End Adjustments,,Fusion Project Management Ltd,1268369,,,,10/11/2022,2200282798,"3,500.00",,Other Consultants,,,,,,No
The Royal Borough of Kensington and Chelsea,RBKC,,Statutory and Corporate Items,Statutory Year-End Adjustments,,Fusion Project Management Ltd,1268369,,,,15/11/2022,2200283638,"3,500.00",,Payments to main contractor,,,,,,No
The Royal Borough of Kensington and Chelsea,RBKC,,Statutory and Corporate Items,Statutory Year-End Adjustments,,Fusion Project Management Ltd,1268369,,,,15/11/2022,2200283639,"3,500.00",,Payments to main contractor,,,,,,No
The Royal Borough of Kensington and Chelsea,RBKC,,Statutory and Corporate Items,Statutory Year-End Adjustments,,Fusion Project Management Ltd,1268369,,,,15/11/2022,2200283640,"8,085.00",,Payments to main contractor,,,,,,No
The Royal Borough of Kensington and Chelsea,RBKC,,Statutory and Corporate Items,Statutory Year-End Adjustments,,Fusion Project Management Ltd,1268369,,,,15/11/2022,2200283641,"1,500.00",,Payments to main contractor,,,,,,No
The Royal Borough of Kensington and Chelsea,RBKC,,Statutory and Corporate Items,Statutory Year-End Adjustments,,Fusion Project Management Ltd,1268369,,,,22/11/2022,2200285259,605,,Surveyors,,,,,,No
The Royal Borough of Kensington and Chelsea,RBKC,,Statutory and Corporate Items,Statutory Year-End Adjustments,,Fusion Project Management Ltd,1268369,,,,29/11/2022,2200286457,"4,950.00",,Surveyors,,,,,,No
The Royal Borough of Kensington and Chelsea,RBKC,,Statutory and Corporate Items,Statutory Year-End Adjustments,,Fusion Project Management Ltd,1268369,,,,12/12/2022,2200288956,"3,777.19",,Other Consultants,,,,,,No
The Royal Borough of Kensington and Chelsea,RBKC,,Statutory and Corporate Items,Statutory Year-End Adjustments,,Fusion Project Management Ltd,1268369,,,,12/12/2022,2200288957,"1,350.00",,Other Consultants,,,,,,No
The Royal Borough of Kensington and Chelsea,RBKC,,Statutory and Corporate Items,Statutory Year-End Adjustments,,Fusion Project Management Ltd,1268369,,,,12/12/2022,2200288959,"1,750.00",,Other Consultants,,,,,,No
The Royal Borough of Kensington and Chelsea,RBKC,,Statutory and Corporate Items,Statutory Year-End Adjustments,,Fusion Project Management Ltd,1268369,,,,12/12/2022,2200288962,"3,777.19",,Other Consultants,,,,,,No
The Royal Borough of Kensington and Chelsea,RBKC,,Statutory and Corporate Items,Statutory Year-End Adjustments,,Fusion Project Management Ltd,1268369,,,,12/12/2022,2200288963,"1,350.00",,Other Consultants,,,,,,No
The Royal Borough of Kensington and Chelsea,RBKC,,Statutory and Corporate Items,Statutory Year-End Adjustments,,Fusion Project Management Ltd,1268369,,,,12/12/2022,2200288964,"2,250.00",,Other Consultants,,,,,,No
The Royal Borough of Kensington and Chelsea,RBKC,,Statutory and Corporate Items,Statutory Year-End Adjustments,,Fusion Project Management Ltd,1268369,,,,12/12/2022,2200288965,"1,500.00",,Other Consultants,,,,,,No
The Royal Borough of Kensington and Chelsea,RBKC,,Statutory and Corporate Items,Statutory Year-End Adjustments,,Fusion Project Management Ltd,1268369,,,,12/12/2022,2200289152,"4,100.00",,Payments to main contractor,,,,,,No
The Royal Borough of Kensington and Chelsea,RBKC,,Statutory and Corporate Items,Statutory Year-End Adjustments,,Fusion Project Management Ltd,1268369,,,,13/12/2022,2200289445,"3,500.00",,Other Consultants,,,,,,No
The Royal Borough of Kensington and Chelsea,RBKC,,Statutory and Corporate Items,Statutory Year-End Adjustments,,Fusion Project Management Ltd,1268369,,,,15/12/2022,2200289784,"51,018.22",,Surveyors,,,,,,No
The Royal Borough of Kensington and Chelsea,RBKC,,Statutory and Corporate Items,Statutory Year-End Adjustments,,Fusion Project Management Ltd,1268369,,,,15/12/2022,2200289785,"40,446.00",,Surveyors,,,,,,No
The Royal Borough of Kensington and Chelsea,RBKC,,Statutory and Corporate Items,Statutory Year-End Adjustments,,Fusion Project Management Ltd,1268369,,,,16/12/2022,2200290071,"4,000.00",,Surveyors,,,,,,No
The Royal Borough of Kensington and Chelsea,RBKC,,Statutory and Corporate Items,Statutory Year-End Adjustments,,Fusion Project Management Ltd,1268369,,,,22/12/2022,2200291181,"3,000.00",,Payments to main contractor,,,,,,No
The Royal Borough of Kensington and Chelsea,RBKC,,Statutory and Corporate Items,Statutory Year-End Adjustments,,G & S  Waste Management Ltd,1292086,,,,04/10/2022,2200274882,710,,Payments to main contractor,,,,,,No
The Royal Borough of Kensington and Chelsea,RBKC,,Statutory and Corporate Items,Statutory Year-End Adjustments,,G & S  Waste Management Ltd,1292086,,,,29/11/2022,2200286377,674,,Payments to main contractor,,,,,,No
The Royal Borough of Kensington and Chelsea,RBKC,,Statutory and Corporate Items,Statutory Year-End Adjustments,,G & S  Waste Management Ltd,1292086,,,,29/11/2022,2200286378,556,,Payments to main contractor,,,,,,No
The Royal Borough of Kensington and Chelsea,RBKC,,Statutory and Corporate Items,Statutory Year-End Adjustments,,G & S  Waste Management Ltd,1292086,,,,28/12/2022,2200291599,570,,Payments to main contractor,,,,,,No
The Royal Borough of Kensington and Chelsea,RBKC,,Statutory and Corporate Items,Statutory Year-End Adjustments,,G & S Hutchinson Ltd,1281748,,,,03/10/2022,2200274549,"6,776.79",,Planned Maintenance (CM),,,,,,No
The Royal Borough of Kensington and Chelsea,RBKC,,Statutory and Corporate Items,Statutory Year-End Adjustments,,G & S Hutchinson Ltd,1281748,,,,30/11/2022,2200286506,"9,902.27",,Planned Maintenance (CM),,,,,,No
The Royal Borough of Kensington and Chelsea,RBKC,,Statutory and Corporate Items,Statutory Year-End Adjustments,,GB Geotechnics Limited,1291990,,,,14/10/2022,2200277430,"20,000.00",,Other Consultants,,,,,,No
The Royal Borough of Kensington and Chelsea,RBKC,,Statutory and Corporate Items,Statutory Year-End Adjustments,,Redact Details,D000000023,,,,06/10/2022,3110484114,"724,848.70",,Acquisition of Land & Buildings,,,,,,No
The Royal Borough of Kensington and Chelsea,RBKC,,Statutory and Corporate Items,Statutory Year-End Adjustments,,Holden Smith Law Ltd Client Account,D000000023,,,,06/10/2022,3110484116,"46,000.00",,Acquisition of Land & Buildings,,,,,,No
The Royal Borough of Kensington and Chelsea,RBKC,,Statutory and Corporate Items,Statutory Year-End Adjustments,,Development&Light,D000000023,,,,13/10/2022,3110486295,"3,040.00",,Legal Fees & expenses,,,,,,No
The Royal Borough of Kensington and Chelsea,RBKC,,Statutory and Corporate Items,Statutory Year-End Adjustments,,Pelle Bites Ltd,D000000023,,,,14/10/2022,3110486361,575,,Other Consultants,,,,,,No
The Royal Borough of Kensington and Chelsea,RBKC,,Statutory and Corporate Items,Statutory Year-End Adjustments,,Wren kitchens,D000000023,,,,21/10/2022,3110488394,"10,074.27",,Construction : enhancements,,,,,,No
The Royal Borough of Kensington and Chelsea,RBKC,,Statutory and Corporate Items,Statutory Year-End Adjustments,,UK Power Networks Limited,D000000023,,,,02/11/2022,3110491840,"42,959.65",,Site Works,,,,,,No
The Royal Borough of Kensington and Chelsea,RBKC,,Statutory and Corporate Items,Statutory Year-End Adjustments,,Redact Details,D000000023,,,,09/11/2022,3110494350,"1,200.00",,Construction : enhancements,,,,,,No
The Royal Borough of Kensington and Chelsea,RBKC,,Statutory and Corporate Items,Statutory Year-End Adjustments,,Raworths LLP,D000000023,,,,10/11/2022,3110494855,"649,606.60",,Acquisition of Land & Buildings,,,,,,No
The Royal Borough of Kensington and Chelsea,RBKC,,Statutory and Corporate Items,Statutory Year-End Adjustments,,Redact Details,D000000023,,,,14/11/2022,3110495086,800,,Other Consultants,,,,,,No
The Royal Borough of Kensington and Chelsea,RBKC,,Statutory and Corporate Items,Statutory Year-End Adjustments,,Russell Cooke LLP,D000000023,,,,29/11/2022,3110499523,"500,000.00",,Acquisition of Land & Buildings,,,,,,No
The Royal Borough of Kensington and Chelsea,RBKC,,Statutory and Corporate Items,Statutory Year-End Adjustments,,Redact Details,D000000023,,,,20/12/2022,3110507418,"1,597.50",,Other Consultants,,,,,,No
The Royal Borough of Kensington and Chelsea,RBKC,,Statutory and Corporate Items,Statutory Year-End Adjustments,,Clark Consulting,D000000023,,,,20/12/2022,3110507420,702,,Other Consultants,,,,,,No
The Royal Borough of Kensington and Chelsea,RBKC,,Statutory and Corporate Items,Statutory Year-End Adjustments,,Fidler Associates,D000000023,,,,20/12/2022,3110507421,"2,340.00",,Other Consultants,,,,,,No
The Royal Borough of Kensington and Chelsea,RBKC,,Statutory and Corporate Items,Statutory Year-End Adjustments,,Huntsman Eldridge,D000000023,,,,20/12/2022,3110507425,"1,250.00",,Other Consultants,,,,,,No
The Royal Borough of Kensington and Chelsea,RBKC,,Statutory and Corporate Items,Statutory Year-End Adjustments,,Huntsman Eldridge,D000000023,,,,20/12/2022,3110507428,"1,500.00",,Other Consultants,,,,,,No
The Royal Borough of Kensington and Chelsea,RBKC,,Statutory and Corporate Items,Statutory Year-End Adjustments,,The Paolozzi Foundation,D000000023,,,,22/12/2022,3110508445,"53,706.19",,Design Consultant,,,,,,No
The Royal Borough of Kensington and Chelsea,RBKC,,Statutory and Corporate Items,Statutory Year-End Adjustments,,GIA ,1234645,,,,03/10/2022,2200274482,"3,500.00",,Other Consultants,,,,,,No
The Royal Borough of Kensington and Chelsea,RBKC,,Statutory and Corporate Items,Statutory Year-End Adjustments,,GIA ,1234645,,,,12/12/2022,2200289015,"1,480.50",,Other Consultants,,,,,,No
The Royal Borough of Kensington and Chelsea,RBKC,,Statutory and Corporate Items,Statutory Year-End Adjustments,,Gardiner & Theobald LLP ,1234613,,,,06/10/2022,2200275433,"8,860.00",,Other Consultants,,,,,,No
The Royal Borough of Kensington and Chelsea,RBKC,,Statutory and Corporate Items,Statutory Year-End Adjustments,,Gardiner & Theobald LLP ,1234613,,,,10/10/2022,2200276134,"3,000.00",,Other Consultants,,,,,,No
The Royal Borough of Kensington and Chelsea,RBKC,,Statutory and Corporate Items,Statutory Year-End Adjustments,,Gardiner & Theobald LLP ,1234613,,,,22/11/2022,2200285285,"8,860.00",,Other Consultants,,,,,,No
The Royal Borough of Kensington and Chelsea,RBKC,,Statutory and Corporate Items,Statutory Year-End Adjustments,,Gardiner & Theobald LLP ,1234613,,,,29/11/2022,2200286358,"8,860.00",,Other Consultants,,,,,,No
The Royal Borough of Kensington and Chelsea,RBKC,,Statutory and Corporate Items,Statutory Year-End Adjustments,,Gardiner & Theobald LLP ,1234613,,,,12/12/2022,2200289134,"3,000.00",,Other Consultants,,,,,,No
The Royal Borough of Kensington and Chelsea,RBKC,,Statutory and Corporate Items,Statutory Year-End Adjustments,,Gardiner & Theobald LLP ,1234613,,,,23/12/2022,2200291230,"8,860.00",,Other Consultants,,,,,,No
The Royal Borough of Kensington and Chelsea,RBKC,,Statutory and Corporate Items,Statutory Year-End Adjustments,,Gardiner & Theobald LLP ,1234613,,,,23/12/2022,2200291300,"8,860.00",,Other Consultants,,,,,,No
The Royal Borough of Kensington and Chelsea,RBKC,,Statutory and Corporate Items,Statutory Year-End Adjustments,,Garvey Bros Builders Ltd,1288238,,,,30/11/2022,2200286537,"11,396.00",,Payments to main contractor,,,,,,No
The Royal Borough of Kensington and Chelsea,RBKC,,Statutory and Corporate Items,Statutory Year-End Adjustments,,Garvey Bros Builders Ltd,1288238,,,,13/12/2022,2200289502,"7,275.00",,Payments to main contractor,,,,,,No
The Royal Borough of Kensington and Chelsea,RBKC,,Statutory and Corporate Items,Statutory Year-End Adjustments,,Garvey Bros Builders Ltd,1288238,,,,22/12/2022,2200291132,"14,205.00",,Payments to main contractor,,,,,,No
The Royal Borough of Kensington and Chelsea,RBKC,,Statutory and Corporate Items,Statutory Year-End Adjustments,,Geotechnical and Environmental,1234639,,,,08/11/2022,2200282301,"8,324.50",,Payments to sub contractor,,,,,,No
The Royal Borough of Kensington and Chelsea,RBKC,,Statutory and Corporate Items,Statutory Year-End Adjustments,,Geotechnical and Environmental,1234639,,,,07/12/2022,2200287947,680,,Site Works,,,,,,No
The Royal Borough of Kensington and Chelsea,RBKC,,Statutory and Corporate Items,Statutory Year-End Adjustments,,Geotechnical and Environmental Asso,1277387,,,,10/10/2022,2200276129,"3,280.00",,Surveyors,,,,,,No
The Royal Borough of Kensington and Chelsea,RBKC,,Statutory and Corporate Items,Statutory Year-End Adjustments,,Geotechnical and Environmental Asso,1277387,,,,11/10/2022,2200276630,"9,732.22",,Other Consultants,,,,,,No
The Royal Borough of Kensington and Chelsea,RBKC,,Statutory and Corporate Items,Statutory Year-End Adjustments,,Geotechnical and Environmental Asso,1277387,,,,08/11/2022,2200282333,840,,Health and Safety Alterations,,,,,,No
The Royal Borough of Kensington and Chelsea,RBKC,,Statutory and Corporate Items,Statutory Year-End Adjustments,,Gerda Security Products Ltd ,1234642,,,,03/10/2022,2200274476,761.98,,Payments to main contractor,,,,,,No
The Royal Borough of Kensington and Chelsea,RBKC,,Statutory and Corporate Items,Statutory Year-End Adjustments,,Gerda Security Products Ltd ,1234642,,,,08/10/2022,2200275981,"93,023.29",,Site Works,,,,,,No
The Royal Borough of Kensington and Chelsea,RBKC,,Statutory and Corporate Items,Statutory Year-End Adjustments,,Gerda Security Products Ltd ,1234642,,,,10/10/2022,2200276089,"1,384.91",,Payments to main contractor,,,,,,No
The Royal Borough of Kensington and Chelsea,RBKC,,Statutory and Corporate Items,Statutory Year-End Adjustments,,Gerda Security Products Ltd ,1234642,,,,10/10/2022,2200276090,"1,473.00",,Payments to main contractor,,,,,,No
The Royal Borough of Kensington and Chelsea,RBKC,,Statutory and Corporate Items,Statutory Year-End Adjustments,,Gerda Security Products Ltd ,1234642,,,,10/10/2022,2200276336,"7,202.49",,Payments to main contractor,,,,,,No
The Royal Borough of Kensington and Chelsea,RBKC,,Statutory and Corporate Items,Statutory Year-End Adjustments,,Gerda Security Products Ltd ,1234642,,,,14/10/2022,2200277408,"3,498.48",,Construction : enhancements,,,,,,No
The Royal Borough of Kensington and Chelsea,RBKC,,Statutory and Corporate Items,Statutory Year-End Adjustments,,Gerda Security Products Ltd ,1234642,,,,21/10/2022,2200278910,"1,711.03",,Construction : enhancements,,,,,,No
The Royal Borough of Kensington and Chelsea,RBKC,,Statutory and Corporate Items,Statutory Year-End Adjustments,,Gerda Security Products Ltd ,1234642,,,,24/10/2022,2200279107,"56,079.45",,Site Works,,,,,,No
The Royal Borough of Kensington and Chelsea,RBKC,,Statutory and Corporate Items,Statutory Year-End Adjustments,,Gerda Security Products Ltd ,1234642,,,,31/10/2022,2200280387,"23,499.23",,Payments to main contractor,,,,,,No
The Royal Borough of Kensington and Chelsea,RBKC,,Statutory and Corporate Items,Statutory Year-End Adjustments,,Gerda Security Products Ltd ,1234642,,,,04/11/2022,2200281536,"1,750.00",,Payments to main contractor,,,,,,No
The Royal Borough of Kensington and Chelsea,RBKC,,Statutory and Corporate Items,Statutory Year-End Adjustments,,Gerda Security Products Ltd ,1234642,,,,07/11/2022,2200281779,"9,800.00",,Site Works,,,,,,No
The Royal Borough of Kensington and Chelsea,RBKC,,Statutory and Corporate Items,Statutory Year-End Adjustments,,Gerda Security Products Ltd ,1234642,,,,07/11/2022,2200282074,"3,607.76",,Construction : enhancements,,,,,,No
The Royal Borough of Kensington and Chelsea,RBKC,,Statutory and Corporate Items,Statutory Year-End Adjustments,,Gerda Security Products Ltd ,1234642,,,,15/11/2022,2200283717,"2,368.17",,Payments to main contractor,,,,,,No
The Royal Borough of Kensington and Chelsea,RBKC,,Statutory and Corporate Items,Statutory Year-End Adjustments,,Gerda Security Products Ltd ,1234642,,,,25/11/2022,2200285899,"1,770.83",,Payments to main contractor,,,,,,No
The Royal Borough of Kensington and Chelsea,RBKC,,Statutory and Corporate Items,Statutory Year-End Adjustments,,Gerda Security Products Ltd ,1234642,,,,05/12/2022,2200287568,"2,140.58",,Construction : enhancements,,,,,,No
The Royal Borough of Kensington and Chelsea,RBKC,,Statutory and Corporate Items,Statutory Year-End Adjustments,,Glass Partitioning UK,1286247,,,,18/11/2022,2200284734,"2,800.67",,Construction : enhancements,,,,,,No
The Royal Borough of Kensington and Chelsea,RBKC,,Statutory and Corporate Items,Statutory Year-End Adjustments,,Greenacre Recruitment,1258089,,,,05/10/2022,2200275313,"2,250.00",,Capitalised salaries,,,,,,No
The Royal Borough of Kensington and Chelsea,RBKC,,Statutory and Corporate Items,Statutory Year-End Adjustments,,Greenacre Recruitment,1258089,,,,05/10/2022,2200275314,900,,Capitalised salaries,,,,,,No
The Royal Borough of Kensington and Chelsea,RBKC,,Statutory and Corporate Items,Statutory Year-End Adjustments,,Greenwich Leisure Ltd (Gll) ,1234678,,,,15/11/2022,2200283674,880,,Payments to main contractor,,,,,,No
The Royal Borough of Kensington and Chelsea,RBKC,,Statutory and Corporate Items,Statutory Year-End Adjustments,,Greenwich Leisure Ltd (Gll) ,1234678,,,,29/11/2022,2200286317,"88,834.52",,Payments to main contractor,,,,,,No
The Royal Borough of Kensington and Chelsea,RBKC,,Statutory and Corporate Items,Statutory Year-End Adjustments,,Greyline Builders Ltd,1287371,,,,21/10/2022,2200278773,"50,441.22",,Professional Fees : Non Legal,,,,,,No
The Royal Borough of Kensington and Chelsea,RBKC,,Statutory and Corporate Items,Statutory Year-End Adjustments,,Greyline Builders Ltd,1287371,,,,26/10/2022,2200279706,"46,792.25",,Professional Fees : Non Legal,,,,,,No
The Royal Borough of Kensington and Chelsea,RBKC,,Statutory and Corporate Items,Statutory Year-End Adjustments,,Greyline Builders Ltd,1287371,,,,05/12/2022,2200287554,"11,615.48",,Professional Fees : Non Legal,,,,,,No
The Royal Borough of Kensington and Chelsea,RBKC,,Statutory and Corporate Items,Statutory Year-End Adjustments,,Greyline Builders Ltd,1287371,,,,06/12/2022,2200287800,"11,615.57",,Professional Fees : Non Legal,,,,,,No
The Royal Borough of Kensington and Chelsea,RBKC,,Statutory and Corporate Items,Statutory Year-End Adjustments,,Guideline Lift Services Ltd ,1231219,,,,03/10/2022,2200274553,"70,738.67",,Payments to main contractor,,,,,,No
The Royal Borough of Kensington and Chelsea,RBKC,,Statutory and Corporate Items,Statutory Year-End Adjustments,,Guideline Lift Services Ltd ,1231219,,,,03/10/2022,2200274558,"21,598.37",,Payments to main contractor,,,,,,No
The Royal Borough of Kensington and Chelsea,RBKC,,Statutory and Corporate Items,Statutory Year-End Adjustments,,Guideline Lift Services Ltd ,1231219,,,,03/10/2022,2200274560,"70,738.67",,Payments to main contractor,,,,,,No
The Royal Borough of Kensington and Chelsea,RBKC,,Statutory and Corporate Items,Statutory Year-End Adjustments,,Guideline Lift Services Ltd ,1231219,,,,03/10/2022,2200274561,"20,878.58",,Payments to main contractor,,,,,,No
The Royal Borough of Kensington and Chelsea,RBKC,,Statutory and Corporate Items,Statutory Year-End Adjustments,,Guideline Lift Services Ltd ,1231219,,,,03/10/2022,2200274568,"54,361.55",,Payments to main contractor,,,,,,No
The Royal Borough of Kensington and Chelsea,RBKC,,Statutory and Corporate Items,Statutory Year-End Adjustments,,Guideline Lift Services Ltd ,1231219,,,,03/10/2022,2200274570,"70,738.67",,Payments to main contractor,,,,,,No
The Royal Borough of Kensington and Chelsea,RBKC,,Statutory and Corporate Items,Statutory Year-End Adjustments,,Guideline Lift Services Ltd ,1231219,,,,03/10/2022,2200274571,"67,112.18",,Payments to main contractor,,,,,,No
The Royal Borough of Kensington and Chelsea,RBKC,,Statutory and Corporate Items,Statutory Year-End Adjustments,,Guideline Lift Services Ltd ,1231219,,,,04/10/2022,2200275084,"37,850.04",,Payments to main contractor,,,,,,No
The Royal Borough of Kensington and Chelsea,RBKC,,Statutory and Corporate Items,Statutory Year-End Adjustments,,Guideline Lift Services Ltd ,1231219,,,,03/11/2022,2200281241,"12,613.03",,Payments to main contractor,,,,,,No
The Royal Borough of Kensington and Chelsea,RBKC,,Statutory and Corporate Items,Statutory Year-End Adjustments,,Guideline Lift Services Ltd ,1231219,,,,03/11/2022,2200281331,"73,784.14",,Payments to main contractor,,,,,,No
The Royal Borough of Kensington and Chelsea,RBKC,,Statutory and Corporate Items,Statutory Year-End Adjustments,,Guideline Lift Services Ltd ,1231219,,,,03/11/2022,2200281332,"10,233.99",,Payments to main contractor,,,,,,No
The Royal Borough of Kensington and Chelsea,RBKC,,Statutory and Corporate Items,Statutory Year-End Adjustments,,Guideline Lift Services Ltd ,1231219,,,,03/11/2022,2200281333,"28,368.72",,Payments to main contractor,,,,,,No
The Royal Borough of Kensington and Chelsea,RBKC,,Statutory and Corporate Items,Statutory Year-End Adjustments,,Guideline Lift Services Ltd ,1231219,,,,07/12/2022,2200287981,"35,697.03",,Payments to main contractor,,,,,,No
The Royal Borough of Kensington and Chelsea,RBKC,,Statutory and Corporate Items,Statutory Year-End Adjustments,,Guideline Lift Services Ltd ,1231219,,,,07/12/2022,2200287982,"32,070.55",,Payments to main contractor,,,,,,No
The Royal Borough of Kensington and Chelsea,RBKC,,Statutory and Corporate Items,Statutory Year-End Adjustments,,Guideline Lift Services Ltd ,1231219,,,,07/12/2022,2200287983,"42,505.90",,Payments to main contractor,,,,,,No
The Royal Borough of Kensington and Chelsea,RBKC,,Statutory and Corporate Items,Statutory Year-End Adjustments,,Guideline Lift Services Ltd ,1231219,,,,07/12/2022,2200287984,"17,392.25",,Payments to main contractor,,,,,,No
The Royal Borough of Kensington and Chelsea,RBKC,,Statutory and Corporate Items,Statutory Year-End Adjustments,,Guideline Lift Services Ltd ,1231219,,,,07/12/2022,2200287985,"32,070.55",,Payments to main contractor,,,,,,No
The Royal Borough of Kensington and Chelsea,RBKC,,Statutory and Corporate Items,Statutory Year-End Adjustments,,Guideline Lift Services Ltd ,1231219,,,,07/12/2022,2200287992,"96,441.40",,Payments to main contractor,,,,,,No
The Royal Borough of Kensington and Chelsea,RBKC,,Statutory and Corporate Items,Statutory Year-End Adjustments,,Guideline Lift Services Ltd ,1231219,,,,07/12/2022,2200288072,"55,545.96",,Payments to main contractor,,,,,,No
The Royal Borough of Kensington and Chelsea,RBKC,,Statutory and Corporate Items,Statutory Year-End Adjustments,,Guideline Lift Services Ltd ,1231219,,,,07/12/2022,2200288073,"32,827.39",,Payments to main contractor,,,,,,No
The Royal Borough of Kensington and Chelsea,RBKC,,Statutory and Corporate Items,Statutory Year-End Adjustments,,Guideline Lift Services Ltd ,1231219,,,,07/12/2022,2200288075,"34,742.59",,Payments to main contractor,,,,,,No
The Royal Borough of Kensington and Chelsea,RBKC,,Statutory and Corporate Items,Statutory Year-End Adjustments,,Guideline Lift Services Ltd ,1231219,,,,08/12/2022,2200288549,"25,824.44",,Payments to main contractor,,,,,,No
The Royal Borough of Kensington and Chelsea,RBKC,,Statutory and Corporate Items,Statutory Year-End Adjustments,,HM Revenue & Customs (Stamp duty),1230805,,,,11/11/2022,3110494875,"45,500.00",,Acquisition of Land & Buildings,,,,,,No
The Royal Borough of Kensington and Chelsea,RBKC,,Statutory and Corporate Items,Statutory Year-End Adjustments,,HM Revenue & Customs (Stamp duty),1230805,,,,29/11/2022,3110499864,"39,500.00",,Acquisition of Land & Buildings,,,,,,No
The Royal Borough of Kensington and Chelsea,RBKC,,Statutory and Corporate Items,Statutory Year-End Adjustments,,HUTTON & ROSTRON ENVIRONMENTAL,1299231,,,,12/12/2022,2200289016,"3,781.00",,Site Works,,,,,,No
The Royal Borough of Kensington and Chelsea,RBKC,,Statutory and Corporate Items,Statutory Year-End Adjustments,,Hags - Smp Limited ,1231221,,,,09/11/2022,2200282699,"7,092.00",,Site Works,,,,,,No
The Royal Borough of Kensington and Chelsea,RBKC,,Statutory and Corporate Items,Statutory Year-End Adjustments,,Hags - Smp Limited ,1231221,,,,13/12/2022,2200289248,"160,129.30",,Site Works,,,,,,No
The Royal Borough of Kensington and Chelsea,RBKC,,Statutory and Corporate Items,Statutory Year-End Adjustments,,Hampson and Luck ,1257327,,,,27/10/2022,2200279968,"4,460.00",,Payments to main contractor,,,,,,No
The Royal Borough of Kensington and Chelsea,RBKC,,Statutory and Corporate Items,Statutory Year-End Adjustments,,Harmony Fire Ltd,1282704,,,,08/11/2022,2200282378,"1,211.25",,Site Works,,,,,,No
The Royal Borough of Kensington and Chelsea,RBKC,,Statutory and Corporate Items,Statutory Year-End Adjustments,,Harmony Fire Ltd,1282704,,,,15/11/2022,2200283769,"78,234.82",,Payments to main contractor,,,,,,No
The Royal Borough of Kensington and Chelsea,RBKC,,Statutory and Corporate Items,Statutory Year-End Adjustments,,Helix Construct Limited,1270811,,,,03/10/2022,2200274490,"282,151.43",,Payments to main contractor,,,,,,No
The Royal Borough of Kensington and Chelsea,RBKC,,Statutory and Corporate Items,Statutory Year-End Adjustments,,Helix Construct Limited,1270811,,,,08/11/2022,2200282193,"33,685.84",,Payments to main contractor,,,,,,No
The Royal Borough of Kensington and Chelsea,RBKC,,Statutory and Corporate Items,Statutory Year-End Adjustments,,Helix Construct Limited,1270811,,,,09/11/2022,2200282449,"33,525.52",,Payments to main contractor,,,,,,No
The Royal Borough of Kensington and Chelsea,RBKC,,Statutory and Corporate Items,Statutory Year-End Adjustments,,Helix Construct Limited,1270811,,,,29/11/2022,2200286357,"56,467.68",,Payments to main contractor,,,,,,No
The Royal Borough of Kensington and Chelsea,RBKC,,Statutory and Corporate Items,Statutory Year-End Adjustments,,Helix Construct Limited,1270811,,,,20/12/2022,2200290658,"13,696.54",,Payments to main contractor,,,,,,No
The Royal Borough of Kensington and Chelsea,RBKC,,Statutory and Corporate Items,Statutory Year-End Adjustments,,Henry Riley LLP ,1230402,,,,03/10/2022,2200274574,"6,200.00",,Other Consultants,,,,,,No
The Royal Borough of Kensington and Chelsea,RBKC,,Statutory and Corporate Items,Statutory Year-End Adjustments,,Henry Riley LLP ,1230402,,,,02/11/2022,2200280978,"6,200.00",,Other Consultants,,,,,,No
The Royal Borough of Kensington and Chelsea,RBKC,,Statutory and Corporate Items,Statutory Year-End Adjustments,,Henry Riley LLP ,1230402,,,,06/12/2022,2200287870,"6,200.00",,Other Consultants,,,,,,No
The Royal Borough of Kensington and Chelsea,RBKC,,Statutory and Corporate Items,Statutory Year-End Adjustments,,Hickton Consultants Ltd,1279547,,,,07/10/2022,2200275960,"3,312.00",,Professional Fees : Non Legal,,,,,,No
The Royal Borough of Kensington and Chelsea,RBKC,,Statutory and Corporate Items,Statutory Year-End Adjustments,,Hickton Consultants Ltd,1279547,,,,07/10/2022,2200275962,"3,312.00",,Professional Fees : Non Legal,,,,,,No
The Royal Borough of Kensington and Chelsea,RBKC,,Statutory and Corporate Items,Statutory Year-End Adjustments,,Hickton Consultants Ltd,1279547,,,,07/10/2022,2200275965,"1,840.00",,Professional Fees : Non Legal,,,,,,No
The Royal Borough of Kensington and Chelsea,RBKC,,Statutory and Corporate Items,Statutory Year-End Adjustments,,Hickton Consultants Ltd,1279547,,,,10/10/2022,2200276097,"1,472.00",,Professional Fees : Non Legal,,,,,,No
The Royal Borough of Kensington and Chelsea,RBKC,,Statutory and Corporate Items,Statutory Year-End Adjustments,,Hickton Consultants Ltd,1279547,,,,10/10/2022,2200276099,"1,472.00",,Professional Fees : Non Legal,,,,,,No
The Royal Borough of Kensington and Chelsea,RBKC,,Statutory and Corporate Items,Statutory Year-End Adjustments,,Hickton Consultants Ltd,1279547,,,,11/10/2022,2200276586,"3,312.00",,Professional Fees : Non Legal,,,,,,No
The Royal Borough of Kensington and Chelsea,RBKC,,Statutory and Corporate Items,Statutory Year-End Adjustments,,Hickton Consultants Ltd,1279547,,,,20/10/2022,2200278553,"2,392.00",,Professional Fees : Non Legal,,,,,,No
The Royal Borough of Kensington and Chelsea,RBKC,,Statutory and Corporate Items,Statutory Year-End Adjustments,,Hickton Consultants Ltd,1279547,,,,17/11/2022,2200284546,"1,104.00",,Professional Fees : Non Legal,,,,,,No
The Royal Borough of Kensington and Chelsea,RBKC,,Statutory and Corporate Items,Statutory Year-End Adjustments,,Hickton Consultants Ltd,1279547,,,,17/11/2022,2200284548,"3,312.00",,Professional Fees : Non Legal,,,,,,No
The Royal Borough of Kensington and Chelsea,RBKC,,Statutory and Corporate Items,Statutory Year-End Adjustments,,Hickton Consultants Ltd,1279547,,,,17/11/2022,2200284549,"3,312.00",,Professional Fees : Non Legal,,,,,,No
The Royal Borough of Kensington and Chelsea,RBKC,,Statutory and Corporate Items,Statutory Year-End Adjustments,,Hickton Consultants Ltd,1279547,,,,17/11/2022,2200284550,"2,576.00",,Professional Fees : Non Legal,,,,,,No
The Royal Borough of Kensington and Chelsea,RBKC,,Statutory and Corporate Items,Statutory Year-End Adjustments,,Hickton Consultants Ltd,1279547,,,,17/11/2022,2200284551,"1,840.00",,Professional Fees : Non Legal,,,,,,No
The Royal Borough of Kensington and Chelsea,RBKC,,Statutory and Corporate Items,Statutory Year-End Adjustments,,Hickton Consultants Ltd,1279547,,,,23/11/2022,2200285469,"2,576.00",,Professional Fees : Non Legal,,,,,,No
The Royal Borough of Kensington and Chelsea,RBKC,,Statutory and Corporate Items,Statutory Year-End Adjustments,,Hickton Consultants Ltd,1279547,,,,28/11/2022,2200286262,"1,472.00",,Professional Fees : Non Legal,,,,,,No
The Royal Borough of Kensington and Chelsea,RBKC,,Statutory and Corporate Items,Statutory Year-End Adjustments,,Hickton Consultants Ltd,1279547,,,,05/12/2022,2200287551,736,,Professional Fees : Non Legal,,,,,,No
The Royal Borough of Kensington and Chelsea,RBKC,,Statutory and Corporate Items,Statutory Year-End Adjustments,,Hickton Consultants Ltd,1279547,,,,07/12/2022,2200288036,"2,944.00",,Professional Fees : Non Legal,,,,,,No
The Royal Borough of Kensington and Chelsea,RBKC,,Statutory and Corporate Items,Statutory Year-End Adjustments,,Hickton Consultants Ltd,1279547,,,,07/12/2022,2200288038,"2,208.00",,Professional Fees : Non Legal,,,,,,No
The Royal Borough of Kensington and Chelsea,RBKC,,Statutory and Corporate Items,Statutory Year-End Adjustments,,Hickton Consultants Ltd,1279547,,,,07/12/2022,2200288046,"2,944.00",,Professional Fees : Non Legal,,,,,,No
The Royal Borough of Kensington and Chelsea,RBKC,,Statutory and Corporate Items,Statutory Year-End Adjustments,,Hickton Consultants Ltd,1279547,,,,07/12/2022,2200288074,"1,840.00",,Professional Fees : Non Legal,,,,,,No
The Royal Borough of Kensington and Chelsea,RBKC,,Statutory and Corporate Items,Statutory Year-End Adjustments,,Hickton Consultants Ltd,1279547,,,,07/12/2022,2200288076,"1,472.00",,Professional Fees : Non Legal,,,,,,No
The Royal Borough of Kensington and Chelsea,RBKC,,Statutory and Corporate Items,Statutory Year-End Adjustments,,Hickton Consultants Ltd,1279547,,,,07/12/2022,2200288092,"1,104.00",,Professional Fees : Non Legal,,,,,,No
The Royal Borough of Kensington and Chelsea,RBKC,,Statutory and Corporate Items,Statutory Year-End Adjustments,,Hickton Consultants Ltd,1279547,,,,19/12/2022,2200290353,"1,380.00",,Professional Fees : Non Legal,,,,,,No
The Royal Borough of Kensington and Chelsea,RBKC,,Statutory and Corporate Items,Statutory Year-End Adjustments,,Hickton Consultants Ltd,1279547,,,,19/12/2022,2200290355,"2,001.00",,Professional Fees : Non Legal,,,,,,No
The Royal Borough of Kensington and Chelsea,RBKC,,Statutory and Corporate Items,Statutory Year-End Adjustments,,Hickton Consultants Ltd,1279547,,,,19/12/2022,2200290357,"1,104.00",,Professional Fees : Non Legal,,,,,,No
The Royal Borough of Kensington and Chelsea,RBKC,,Statutory and Corporate Items,Statutory Year-End Adjustments,,Higham Flat Roofing Ltd ,1252605,,,,06/12/2022,2200287894,"30,390.17",,Planned Maintenance (CM),,,,,,No
The Royal Borough of Kensington and Chelsea,RBKC,,Statutory and Corporate Items,Statutory Year-End Adjustments,,Higham Flat Roofing Ltd ,1252605,,,,08/12/2022,2200288212,"24,930.00",,Planned Maintenance (CM),,,,,,No
The Royal Borough of Kensington and Chelsea,RBKC,,Statutory and Corporate Items,Statutory Year-End Adjustments,,Hill Partnerships Limited,1298811,,,,20/10/2022,2200278507,"100,115.00",,Site Works,,,,,,No
The Royal Borough of Kensington and Chelsea,RBKC,,Statutory and Corporate Items,Statutory Year-End Adjustments,,Hill Partnerships Limited,1298811,,,,20/10/2022,2200278508,"53,320.00",,Site Works,,,,,,No
The Royal Borough of Kensington and Chelsea,RBKC,,Statutory and Corporate Items,Statutory Year-End Adjustments,,Hill Partnerships Limited,1298811,,,,10/11/2022,2200282888,"132,807.00",,Site Works,,,,,,No
The Royal Borough of Kensington and Chelsea,RBKC,,Statutory and Corporate Items,Statutory Year-End Adjustments,,Hill Partnerships Limited,1298811,,,,14/12/2022,2200289642,"149,299.00",,Site Works,,,,,,No
The Royal Borough of Kensington and Chelsea,RBKC,,Statutory and Corporate Items,Statutory Year-End Adjustments,,Hoare Lea LLP,1296934,,,,08/11/2022,2200282328,"4,320.00",,Site Works,,,,,,No
The Royal Borough of Kensington and Chelsea,RBKC,,Statutory and Corporate Items,Statutory Year-End Adjustments,,Houseline Building Services Ltd ,1231377,,,,26/10/2022,2200279715,"75,414.64",,Construction : enhancements,,,,,,No
The Royal Borough of Kensington and Chelsea,RBKC,,Statutory and Corporate Items,Statutory Year-End Adjustments,,Houseline Building Services Ltd ,1231377,,,,27/10/2022,2200279954,"48,937.68",,Construction : enhancements,,,,,,No
The Royal Borough of Kensington and Chelsea,RBKC,,Statutory and Corporate Items,Statutory Year-End Adjustments,,Hugh Harris Ltd,1291982,,,,11/10/2022,2200276378,"48,938.17",,Construction : enhancements,,,,,,No
The Royal Borough of Kensington and Chelsea,RBKC,,Statutory and Corporate Items,Statutory Year-End Adjustments,,Hugh Steeper Ltd,1299051,,,,26/10/2022,2200279743,"2,074.00",,Payments to main contractor,,,,,,No
The Royal Borough of Kensington and Chelsea,RBKC,,Statutory and Corporate Items,Statutory Year-End Adjustments,,Hunters and Partners Ltd ,1254860,,,,08/11/2022,2200282308,"3,888.00",,Payments to main contractor,,,,,,No
The Royal Borough of Kensington and Chelsea,RBKC,,Statutory and Corporate Items,Statutory Year-End Adjustments,,Idverde Ltd ,1231380,,,,26/10/2022,2200279551,"17,412.90",,Site Works,,,,,,No
The Royal Borough of Kensington and Chelsea,RBKC,,Statutory and Corporate Items,Statutory Year-End Adjustments,,Idverde Ltd ,1231380,,,,26/10/2022,2200279552,937.96,,Site Works,,,,,,No
The Royal Borough of Kensington and Chelsea,RBKC,,Statutory and Corporate Items,Statutory Year-End Adjustments,,Idverde Ltd ,1231380,,,,22/12/2022,2200291156,717.99,,Site Works,,,,,,No
The Royal Borough of Kensington and Chelsea,RBKC,,Statutory and Corporate Items,Statutory Year-End Adjustments,,Imperial College Projects Limited,1299180,,,,08/11/2022,2200282147,"16,000.00",,Creditors Control : AP GRIR,,,,,,No
The Royal Borough of Kensington and Chelsea,RBKC,,Statutory and Corporate Items,Statutory Year-End Adjustments,,Infinity Fire Prevention Ltd,1289350,,,,20/10/2022,2200278552,"5,244.75",,Site Works,,,,,,No
The Royal Borough of Kensington and Chelsea,RBKC,,Statutory and Corporate Items,Statutory Year-End Adjustments,,Infinity Fire Prevention Ltd,1289350,,,,12/12/2022,2200288919,787.5,,Site Works,,,,,,No
The Royal Borough of Kensington and Chelsea,RBKC,,Statutory and Corporate Items,Statutory Year-End Adjustments,,Insight Facades Limited,1284260,,,,28/10/2022,2200280143,"2,400.22",,Construction : enhancements,,,,,,No
The Royal Borough of Kensington and Chelsea,RBKC,,Statutory and Corporate Items,Statutory Year-End Adjustments,,Integration Consultancy Limited,1299084,,,,12/12/2022,2200289003,"5,301.50",,Site Works,,,,,,No
The Royal Borough of Kensington and Chelsea,RBKC,,Statutory and Corporate Items,Statutory Year-End Adjustments,,Integration Consultancy Limited,1299084,,,,12/12/2022,2200289004,"8,561.00",,Site Works,,,,,,No
The Royal Borough of Kensington and Chelsea,RBKC,,Statutory and Corporate Items,Statutory Year-End Adjustments,,Integration Consultancy Limited,1299084,,,,12/12/2022,2200289005,"3,265.00",,Site Works,,,,,,No
The Royal Borough of Kensington and Chelsea,RBKC,,Statutory and Corporate Items,Statutory Year-End Adjustments,,Integration Consultancy Limited,1299084,,,,12/12/2022,2200289006,"1,632.50",,Site Works,,,,,,No
The Royal Borough of Kensington and Chelsea,RBKC,,Statutory and Corporate Items,Statutory Year-End Adjustments,,Integration Consultancy Limited,1299084,,,,22/12/2022,2200291130,"1,650.00",,Site Works,,,,,,No
The Royal Borough of Kensington and Chelsea,RBKC,,Statutory and Corporate Items,Statutory Year-End Adjustments,,Intelligent Instruments Ltd,1281115,,,,08/12/2022,2200288199,"45,000.00",,Creditors Control : AP GRIR,,,,,,No
The Royal Borough of Kensington and Chelsea,RBKC,,Statutory and Corporate Items,Statutory Year-End Adjustments,,J Parker Dutch Bulbs (WIS) LTD,1298256,,,,27/10/2022,2200279890,"1,744.30",,Creditors Control : AP GRIR,,,,,,No
The Royal Borough of Kensington and Chelsea,RBKC,,Statutory and Corporate Items,Statutory Year-End Adjustments,,Jackson Coles LLP ,1230491,,,,10/10/2022,2200276131,"3,189.00",,Other Consultants,,,,,,No
The Royal Borough of Kensington and Chelsea,RBKC,,Statutory and Corporate Items,Statutory Year-End Adjustments,,Jackson Coles LLP ,1230491,,,,21/11/2022,2200284992,"3,189.00",,Other Consultants,,,,,,No
The Royal Borough of Kensington and Chelsea,RBKC,,Statutory and Corporate Items,Statutory Year-End Adjustments,,Jackson Coles LLP ,1230491,,,,19/12/2022,2200290193,"3,189.00",,Other Consultants,,,,,,No
The Royal Borough of Kensington and Chelsea,RBKC,,Statutory and Corporate Items,Statutory Year-End Adjustments,,Redact Details,1277228,,,,14/10/2022,2200277317,"6,394.50",,Design Consultant,,,,,,No
The Royal Borough of Kensington and Chelsea,RBKC,,Statutory and Corporate Items,Statutory Year-End Adjustments,,K & T Heating Services Ltd ,1231384,,,,04/10/2022,2200275078,"10,779.00",,Heating System Replacement : CM,,,,,,No
The Royal Borough of Kensington and Chelsea,RBKC,,Statutory and Corporate Items,Statutory Year-End Adjustments,,K & T Heating Services Ltd ,1231384,,,,07/10/2022,2200275829,"7,465.60",,Payments to main contractor,,,,,,No
The Royal Borough of Kensington and Chelsea,RBKC,,Statutory and Corporate Items,Statutory Year-End Adjustments,,K & T Heating Services Ltd ,1231384,,,,07/10/2022,2200275830,"7,329.43",,Payments to main contractor,,,,,,No
The Royal Borough of Kensington and Chelsea,RBKC,,Statutory and Corporate Items,Statutory Year-End Adjustments,,K & T Heating Services Ltd ,1231384,,,,20/10/2022,2200278565,"160,431.83",,Payments to main contractor,,,,,,No
The Royal Borough of Kensington and Chelsea,RBKC,,Statutory and Corporate Items,Statutory Year-End Adjustments,,K & T Heating Services Ltd ,1231384,,,,03/11/2022,2200281284,"7,465.60",,Payments to main contractor,,,,,,No
The Royal Borough of Kensington and Chelsea,RBKC,,Statutory and Corporate Items,Statutory Year-End Adjustments,,K & T Heating Services Ltd ,1231384,,,,03/11/2022,2200281288,"7,329.43",,Payments to main contractor,,,,,,No
The Royal Borough of Kensington and Chelsea,RBKC,,Statutory and Corporate Items,Statutory Year-End Adjustments,,K & T Heating Services Ltd ,1231384,,,,05/11/2022,2200281760,"75,742.39",,Payments to main contractor,,,,,,No
The Royal Borough of Kensington and Chelsea,RBKC,,Statutory and Corporate Items,Statutory Year-End Adjustments,,K & T Heating Services Ltd ,1231384,,,,07/12/2022,2200288037,"3,293.32",,Payments to main contractor,,,,,,No
The Royal Borough of Kensington and Chelsea,RBKC,,Statutory and Corporate Items,Statutory Year-End Adjustments,,K & T Heating Services Ltd ,1231384,,,,09/12/2022,2200288705,"7,465.60",,Payments to main contractor,,,,,,No
The Royal Borough of Kensington and Chelsea,RBKC,,Statutory and Corporate Items,Statutory Year-End Adjustments,,K & T Heating Services Ltd ,1231384,,,,09/12/2022,2200288706,"7,329.43",,Payments to main contractor,,,,,,No
The Royal Borough of Kensington and Chelsea,RBKC,,Statutory and Corporate Items,Statutory Year-End Adjustments,,K & T Heating Services Ltd ,1231384,,,,15/12/2022,2200289900,"5,685.36",,Site Works,,,,,,No
The Royal Borough of Kensington and Chelsea,RBKC,,Statutory and Corporate Items,Statutory Year-End Adjustments,,KBH Building Services Ltd,1276614,,,,09/10/2022,2200275987,"35,142.06",,Special Maintenance,,,,,,No
The Royal Borough of Kensington and Chelsea,RBKC,,Statutory and Corporate Items,Statutory Year-End Adjustments,,KBH Building Services Ltd,1276614,,,,09/10/2022,2200275988,"35,136.06",,Special Maintenance,,,,,,No
The Royal Borough of Kensington and Chelsea,RBKC,,Statutory and Corporate Items,Statutory Year-End Adjustments,,KBH Building Services Ltd,1276614,,,,09/10/2022,2200275990,"26,789.75",,Special Maintenance,,,,,,No
The Royal Borough of Kensington and Chelsea,RBKC,,Statutory and Corporate Items,Statutory Year-End Adjustments,,KBH Building Services Ltd,1276614,,,,09/10/2022,2200275991,"36,788.07",,Special Maintenance,,,,,,No
The Royal Borough of Kensington and Chelsea,RBKC,,Statutory and Corporate Items,Statutory Year-End Adjustments,,KBH Building Services Ltd,1276614,,,,09/10/2022,2200275992,"27,176.29",,Special Maintenance,,,,,,No
The Royal Borough of Kensington and Chelsea,RBKC,,Statutory and Corporate Items,Statutory Year-End Adjustments,,KBH Building Services Ltd,1276614,,,,12/10/2022,2200276731,"1,705.34",,Other Consultants,,,,,,No
The Royal Borough of Kensington and Chelsea,RBKC,,Statutory and Corporate Items,Statutory Year-End Adjustments,,KBH Building Services Ltd,1276614,,,,02/11/2022,2200280767,"2,160.00",,Payments to main contractor,,,,,,No
The Royal Borough of Kensington and Chelsea,RBKC,,Statutory and Corporate Items,Statutory Year-End Adjustments,,KBH Building Services Ltd,1276614,,,,29/11/2022,2200286390,"43,474.43",,Special Maintenance,,,,,,No
The Royal Borough of Kensington and Chelsea,RBKC,,Statutory and Corporate Items,Statutory Year-End Adjustments,,KBH Building Services Ltd,1276614,,,,29/11/2022,2200286392,"36,821.54",,Special Maintenance,,,,,,No
The Royal Borough of Kensington and Chelsea,RBKC,,Statutory and Corporate Items,Statutory Year-End Adjustments,,KBH Building Services Ltd,1276614,,,,29/11/2022,2200286393,"8,860.49",,Special Maintenance,,,,,,No
The Royal Borough of Kensington and Chelsea,RBKC,,Statutory and Corporate Items,Statutory Year-End Adjustments,,KBH Building Services Ltd,1276614,,,,29/11/2022,2200286395,"36,967.08",,Special Maintenance,,,,,,No
The Royal Borough of Kensington and Chelsea,RBKC,,Statutory and Corporate Items,Statutory Year-End Adjustments,,KBH Building Services Ltd,1276614,,,,13/12/2022,2200289471,"32,897.16",,Special Maintenance,,,,,,No
The Royal Borough of Kensington and Chelsea,RBKC,,Statutory and Corporate Items,Statutory Year-End Adjustments,,KBH Building Services Ltd,1276614,,,,20/12/2022,2200290618,"3,050.00",,Special Maintenance,,,,,,No
The Royal Borough of Kensington and Chelsea,RBKC,,Statutory and Corporate Items,Statutory Year-End Adjustments,,KBH Building Services Ltd,1276614,,,,20/12/2022,2200290619,"35,575.82",,Special Maintenance,,,,,,No
The Royal Borough of Kensington and Chelsea,RBKC,,Statutory and Corporate Items,Statutory Year-End Adjustments,,KBH Building Services Ltd,1276614,,,,20/12/2022,2200290620,"27,034.12",,Special Maintenance,,,,,,No
The Royal Borough of Kensington and Chelsea,RBKC,,Statutory and Corporate Items,Statutory Year-End Adjustments,,KBH Building Services Ltd,1276614,,,,28/12/2022,2200291557,"3,200.00",,Payments to main contractor,,,,,,No
The Royal Borough of Kensington and Chelsea,RBKC,,Statutory and Corporate Items,Statutory Year-End Adjustments,,KBH Building Services Ltd,1276614,,,,28/12/2022,2200291600,"51,414.50",,Special Maintenance,,,,,,No
The Royal Borough of Kensington and Chelsea,RBKC,,Statutory and Corporate Items,Statutory Year-End Adjustments,,Kandor Modelmakers Limited,1299279,,,,17/11/2022,2200284493,"3,697.00",,Site Works,,,,,,No
The Royal Borough of Kensington and Chelsea,RBKC,,Statutory and Corporate Items,Statutory Year-End Adjustments,,Karakusevic Carson Architects LLP,1273973,,,,09/11/2022,2200282647,"1,935.00",,Other Consultants,,,,,,No
The Royal Borough of Kensington and Chelsea,RBKC,,Statutory and Corporate Items,Statutory Year-End Adjustments,,KEEGANS LTD,1234845,,,,05/10/2022,2200275297,750,,Other Consultants,,,,,,No
The Royal Borough of Kensington and Chelsea,RBKC,,Statutory and Corporate Items,Statutory Year-End Adjustments,,KEEGANS LTD,1234845,,,,05/10/2022,2200275300,"3,300.00",,Other Consultants,,,,,,No
The Royal Borough of Kensington and Chelsea,RBKC,,Statutory and Corporate Items,Statutory Year-End Adjustments,,KEEGANS LTD,1234845,,,,09/11/2022,2200282470,"5,600.00",,Payments to main contractor,,,,,,No
The Royal Borough of Kensington and Chelsea,RBKC,,Statutory and Corporate Items,Statutory Year-End Adjustments,,KEEGANS LTD,1234845,,,,08/12/2022,2200288466,"1,350.00",,Other Consultants,,,,,,No
The Royal Borough of Kensington and Chelsea,RBKC,,Statutory and Corporate Items,Statutory Year-End Adjustments,,KEEL SURVEYORS PARTNERSHI,1234846,,,,08/11/2022,2200282327,"1,057.00",,Other Consultants,,,,,,No
The Royal Borough of Kensington and Chelsea,RBKC,,Statutory and Corporate Items,Statutory Year-End Adjustments,,KEEL SURVEYORS PARTNERSHI,1234846,,,,14/11/2022,2200283311,850,,Site Works,,,,,,No
The Royal Borough of Kensington and Chelsea,RBKC,,Statutory and Corporate Items,Statutory Year-End Adjustments,,KEEL SURVEYORS PARTNERSHI,1234846,,,,16/11/2022,2200284193,500,,Site Works,,,,,,No
The Royal Borough of Kensington and Chelsea,RBKC,,Statutory and Corporate Items,Statutory Year-End Adjustments,,Kraydel Ltd,1297684,,,,05/10/2022,2200275283,"2,435.00",,Computer Equipment,,,,,,No
The Royal Borough of Kensington and Chelsea,RBKC,,Statutory and Corporate Items,Statutory Year-End Adjustments,,LAND SURVEY SOLUTIONS LTD,1274810,,,,07/10/2022,2200275963,950,,Other Consultants,,,,,,No
The Royal Borough of Kensington and Chelsea,RBKC,,Statutory and Corporate Items,Statutory Year-End Adjustments,,Landmark Building Contractors Ltd,1284403,,,,01/11/2022,2200280616,"7,490.00",,Payments to main contractor,,,,,,No
The Royal Borough of Kensington and Chelsea,RBKC,,Statutory and Corporate Items,Statutory Year-End Adjustments,,Landmark Building Contractors Ltd,1284403,,,,02/11/2022,2200280750,"6,880.00",,Payments to main contractor,,,,,,No
The Royal Borough of Kensington and Chelsea,RBKC,,Statutory and Corporate Items,Statutory Year-End Adjustments,,Landmark Building Contractors Ltd,1284403,,,,30/11/2022,2200286536,"6,976.00",,Payments to main contractor,,,,,,No
The Royal Borough of Kensington and Chelsea,RBKC,,Statutory and Corporate Items,Statutory Year-End Adjustments,,Landmark Building Contractors Ltd,1284403,,,,01/12/2022,2200286988,"5,586.00",,Payments to main contractor,,,,,,No
The Royal Borough of Kensington and Chelsea,RBKC,,Statutory and Corporate Items,Statutory Year-End Adjustments,,Landmark Building Contractors Ltd,1284403,,,,13/12/2022,2200289504,"8,566.00",,Payments to main contractor,,,,,,No
The Royal Borough of Kensington and Chelsea,RBKC,,Statutory and Corporate Items,Statutory Year-End Adjustments,,Landmark Building Contractors Ltd,1284403,,,,13/12/2022,2200289505,"7,565.00",,Payments to main contractor,,,,,,No
The Royal Borough of Kensington and Chelsea,RBKC,,Statutory and Corporate Items,Statutory Year-End Adjustments,,Landmark Building Contractors Ltd,1284403,,,,16/12/2022,2200290012,"7,236.00",,Payments to main contractor,,,,,,No
The Royal Borough of Kensington and Chelsea,RBKC,,Statutory and Corporate Items,Statutory Year-End Adjustments,,Landrock Phillips Ltd ,1230566,,,,03/10/2022,2200274408,850,,Site Works,,,,,,No
The Royal Borough of Kensington and Chelsea,RBKC,,Statutory and Corporate Items,Statutory Year-End Adjustments,,Lawtech Group Ltd,1273996,,,,05/10/2022,2200275295,"414,315.99",,Payments to main contractor,,,,,,No
The Royal Borough of Kensington and Chelsea,RBKC,,Statutory and Corporate Items,Statutory Year-End Adjustments,,Lawtech Group Ltd,1273996,,,,07/11/2022,2200281999,"681,179.08",,Payments to main contractor,,,,,,No
The Royal Borough of Kensington and Chelsea,RBKC,,Statutory and Corporate Items,Statutory Year-End Adjustments,,Lawtech Group Ltd,1273996,,,,06/12/2022,2200287704,"416,574.17",,Payments to main contractor,,,,,,No
The Royal Borough of Kensington and Chelsea,RBKC,,Statutory and Corporate Items,Statutory Year-End Adjustments,,Redact Details,1231389,,,,21/10/2022,2200278786,"5,935.00",,Payments to main contractor,,,,,,No
The Royal Borough of Kensington and Chelsea,RBKC,,Statutory and Corporate Items,Statutory Year-End Adjustments,,Redact Details,1231389,,,,09/11/2022,2200282692,"11,320.00",,Payments to main contractor,,,,,,No
The Royal Borough of Kensington and Chelsea,RBKC,,Statutory and Corporate Items,Statutory Year-End Adjustments,,Lend Lease Consulting (Emea) Ltd ,1234899,,,,14/10/2022,2200277462,"1,000.00",,Payments to sub contractor,,,,,,No
The Royal Borough of Kensington and Chelsea,RBKC,,Statutory and Corporate Items,Statutory Year-End Adjustments,,Lend Lease Consulting (Emea) Ltd ,1234899,,,,08/11/2022,2200282315,"1,000.00",,Payments to sub contractor,,,,,,No
The Royal Borough of Kensington and Chelsea,RBKC,,Statutory and Corporate Items,Statutory Year-End Adjustments,,Lend Lease Consulting (Emea) Ltd ,1234899,,,,06/12/2022,2200287791,"1,000.00",,Site Works,,,,,,No
The Royal Borough of Kensington and Chelsea,RBKC,,Statutory and Corporate Items,Statutory Year-End Adjustments,,Lend Lease Consulting (Emea) Ltd ,1234899,,,,21/12/2022,2200290953,"1,000.00",,Site Works,,,,,,No
The Royal Borough of Kensington and Chelsea,RBKC,,Statutory and Corporate Items,Statutory Year-End Adjustments,,Liberty Adaptations Ltd,1277725,,,,20/10/2022,2200278546,"7,185.00",,Payments to main contractor,,,,,,No
The Royal Borough of Kensington and Chelsea,RBKC,,Statutory and Corporate Items,Statutory Year-End Adjustments,,Liberty Adaptations Ltd,1277725,,,,26/10/2022,2200279744,"6,955.00",,Payments to main contractor,,,,,,No
The Royal Borough of Kensington and Chelsea,RBKC,,Statutory and Corporate Items,Statutory Year-End Adjustments,,Liberty Adaptations Ltd,1277725,,,,14/11/2022,2200283315,"7,470.00",,Payments to main contractor,,,,,,No
The Royal Borough of Kensington and Chelsea,RBKC,,Statutory and Corporate Items,Statutory Year-End Adjustments,,Liberty Adaptations Ltd,1277725,,,,17/11/2022,2200284538,"8,950.00",,Payments to main contractor,,,,,,No
The Royal Borough of Kensington and Chelsea,RBKC,,Statutory and Corporate Items,Statutory Year-End Adjustments,,Liberty Adaptations Ltd,1277725,,,,09/12/2022,2200288668,"4,036.00",,Payments to main contractor,,,,,,No
The Royal Borough of Kensington and Chelsea,RBKC,,Statutory and Corporate Items,Statutory Year-End Adjustments,,Liberty Adaptations Ltd,1277725,,,,12/12/2022,2200289177,"6,350.00",,Payments to main contractor,,,,,,No
The Royal Borough of Kensington and Chelsea,RBKC,,Statutory and Corporate Items,Statutory Year-End Adjustments,,Liberty Adaptations Ltd,1277725,,,,20/12/2022,2200290685,"7,165.00",,Payments to main contractor,,,,,,No
The Royal Borough of Kensington and Chelsea,RBKC,,Statutory and Corporate Items,Statutory Year-End Adjustments,,Liberty Adaptations Ltd,1277725,,,,20/12/2022,2200290686,"7,990.00",,Payments to main contractor,,,,,,No
The Royal Borough of Kensington and Chelsea,RBKC,,Statutory and Corporate Items,Statutory Year-End Adjustments,,Liberty Adaptations Ltd,1277725,,,,20/12/2022,2200290688,"8,805.00",,Payments to main contractor,,,,,,No
The Royal Borough of Kensington and Chelsea,RBKC,,Statutory and Corporate Items,Statutory Year-End Adjustments,,Living Concrete Ltd,1293963,,,,04/11/2022,2200281709,"5,300.00",,Payments to main contractor,,,,,,No
The Royal Borough of Kensington and Chelsea,RBKC,,Statutory and Corporate Items,Statutory Year-End Adjustments,,London Underground Ltd ,1230631,,,,17/11/2022,2200284310,"1,638.00",,Site Works,,,,,,No
The Royal Borough of Kensington and Chelsea,RBKC,,Statutory and Corporate Items,Statutory Year-End Adjustments,,London Underground Ltd ,1230631,,,,17/11/2022,2200284311,"2,837.25",,Site Works,,,,,,No
The Royal Borough of Kensington and Chelsea,RBKC,,Statutory and Corporate Items,Statutory Year-End Adjustments,,London Underground Ltd ,1230631,,,,15/12/2022,2200289903,"4,554.00",,Site Works,,,,,,No
The Royal Borough of Kensington and Chelsea,RBKC,,Statutory and Corporate Items,Statutory Year-End Adjustments,,Redact Details,1231393,,,,31/10/2022,2200280433,"1,710.00",,Creditors Control : AP GRIR,,,,,,No
The Royal Borough of Kensington and Chelsea,RBKC,,Statutory and Corporate Items,Statutory Year-End Adjustments,,Redact Details,1231393,,,,16/11/2022,2200284077,"1,710.00",,Creditors Control : AP GRIR,,,,,,No
The Royal Borough of Kensington and Chelsea,RBKC,,Statutory and Corporate Items,Statutory Year-End Adjustments,,Redact Details,1231393,,,,01/12/2022,2200286862,"1,747.50",,Creditors Control : AP GRIR,,,,,,No
The Royal Borough of Kensington and Chelsea,RBKC,,Statutory and Corporate Items,Statutory Year-End Adjustments,,Redact Details,1231393,,,,01/12/2022,2200286863,"1,747.50",,Creditors Control : AP GRIR,,,,,,No
The Royal Borough of Kensington and Chelsea,RBKC,,Statutory and Corporate Items,Statutory Year-End Adjustments,,Luke Hughes & Co Ltd,1271207,,,,03/10/2022,2200274554,750,,Planned Maintenance (CM),,,,,,No
The Royal Borough of Kensington and Chelsea,RBKC,,Statutory and Corporate Items,Statutory Year-End Adjustments,,M J Rees and Company Ltd,1296929,,,,22/12/2022,2200291189,"17,396.50",,Site Works,,,,,,No
The Royal Borough of Kensington and Chelsea,RBKC,,Statutory and Corporate Items,Statutory Year-End Adjustments,,M10 Fire Consultncy Ltd,1273351,,,,10/10/2022,2200276341,"1,580.00",,Professional Fees : Non Legal,,,,,,No
The Royal Borough of Kensington and Chelsea,RBKC,,Statutory and Corporate Items,Statutory Year-End Adjustments,,M3 Housing Limited ,1254723,,,,13/10/2022,2200277186,"3,615.00",,Creditors Control : AP GRIR,,,,,,No
The Royal Borough of Kensington and Chelsea,RBKC,,Statutory and Corporate Items,Statutory Year-End Adjustments,,M3 Housing Limited ,1254723,,,,13/10/2022,2200277186,"3,515.00",,Creditors Control : AP GRIR,,,,,,No
The Royal Borough of Kensington and Chelsea,RBKC,,Statutory and Corporate Items,Statutory Year-End Adjustments,,M3 Housing Limited ,1254723,,,,13/10/2022,2200277186,"3,615.00",,Creditors Control : AP GRIR,,,,,,No
The Royal Borough of Kensington and Chelsea,RBKC,,Statutory and Corporate Items,Statutory Year-End Adjustments,,M3 Housing Limited ,1254723,,,,13/10/2022,2200277186,"3,515.00",,Creditors Control : AP GRIR,,,,,,No
The Royal Borough of Kensington and Chelsea,RBKC,,Statutory and Corporate Items,Statutory Year-End Adjustments,,MDA Consulting Limited ,1234989,,,,02/11/2022,2200280971,560,,Other Consultants,,,,,,No
The Royal Borough of Kensington and Chelsea,RBKC,,Statutory and Corporate Items,Statutory Year-End Adjustments,,MDA Consulting Limited ,1234989,,,,08/11/2022,2200282330,800,,Payments to main contractor,,,,,,No
The Royal Borough of Kensington and Chelsea,RBKC,,Statutory and Corporate Items,Statutory Year-End Adjustments,,MDA Consulting Limited ,1234989,,,,08/11/2022,2200282331,"1,000.00",,Payments to main contractor,,,,,,No
The Royal Borough of Kensington and Chelsea,RBKC,,Statutory and Corporate Items,Statutory Year-End Adjustments,,MDA Consulting Limited ,1234989,,,,08/11/2022,2200282335,600,,Payments to sub contractor,,,,,,No
The Royal Borough of Kensington and Chelsea,RBKC,,Statutory and Corporate Items,Statutory Year-End Adjustments,,MDA Consulting Limited ,1234989,,,,22/11/2022,2200285237,"2,700.00",,Site Works,,,,,,No
The Royal Borough of Kensington and Chelsea,RBKC,,Statutory and Corporate Items,Statutory Year-End Adjustments,,MDA Consulting Limited ,1234989,,,,30/11/2022,2200286517,600,,Payments to main contractor,,,,,,No
The Royal Borough of Kensington and Chelsea,RBKC,,Statutory and Corporate Items,Statutory Year-End Adjustments,,MDA Consulting Limited ,1234989,,,,30/11/2022,2200286570,800,,Payments to main contractor,,,,,,No
The Royal Borough of Kensington and Chelsea,RBKC,,Statutory and Corporate Items,Statutory Year-End Adjustments,,MDA Consulting Limited ,1234989,,,,30/11/2022,2200286611,800,,Payments to main contractor,,,,,,No
The Royal Borough of Kensington and Chelsea,RBKC,,Statutory and Corporate Items,Statutory Year-End Adjustments,,MDA Consulting Limited ,1234989,,,,16/12/2022,2200289997,800,,Payments to main contractor,,,,,,No
The Royal Borough of Kensington and Chelsea,RBKC,,Statutory and Corporate Items,Statutory Year-End Adjustments,,MDA Consulting Limited ,1234989,,,,16/12/2022,2200289999,800,,Payments to main contractor,,,,,,No
The Royal Borough of Kensington and Chelsea,RBKC,,Statutory and Corporate Items,Statutory Year-End Adjustments,,MDA Consulting Limited ,1234989,,,,21/12/2022,2200290899,840,,Other Consultants,,,,,,No
The Royal Borough of Kensington and Chelsea,RBKC,,Statutory and Corporate Items,Statutory Year-End Adjustments,,ME Construction Limited,1278687,,,,17/10/2022,2200277620,"67,806.25",,Planned Maintenance (CM),,,,,,No
The Royal Borough of Kensington and Chelsea,RBKC,,Statutory and Corporate Items,Statutory Year-End Adjustments,,ME Construction Limited,1278687,,,,15/11/2022,2200283768,"51,376.42",,Planned Maintenance (CM),,,,,,No
The Royal Borough of Kensington and Chelsea,RBKC,,Statutory and Corporate Items,Statutory Year-End Adjustments,,MEC London Ltd ,1231398,,,,15/12/2022,2200289919,"2,636.25",,Planned Maintenance (CM),,,,,,No
The Royal Borough of Kensington and Chelsea,RBKC,,Statutory and Corporate Items,Statutory Year-End Adjustments,,MMP Consultancy Ltd,1289790,,,,04/10/2022,2200275006,"2,582.00",,Capitalised salaries,,,,,,No
The Royal Borough of Kensington and Chelsea,RBKC,,Statutory and Corporate Items,Statutory Year-End Adjustments,,MMP Consultancy Ltd,1289790,,,,04/10/2022,2200275007,"1,136.08",,Capitalised salaries,,,,,,No
The Royal Borough of Kensington and Chelsea,RBKC,,Statutory and Corporate Items,Statutory Year-End Adjustments,,MMP Consultancy Ltd,1289790,,,,06/10/2022,2200275568,"1,420.10",,Capitalised salaries,,,,,,No
The Royal Borough of Kensington and Chelsea,RBKC,,Statutory and Corporate Items,Statutory Year-End Adjustments,,MMP Consultancy Ltd,1289790,,,,06/10/2022,2200275569,"2,582.00",,Capitalised salaries,,,,,,No
The Royal Borough of Kensington and Chelsea,RBKC,,Statutory and Corporate Items,Statutory Year-End Adjustments,,MMP Consultancy Ltd,1289790,,,,12/10/2022,2200276953,852.06,,Capitalised salaries,,,,,,No
The Royal Borough of Kensington and Chelsea,RBKC,,Statutory and Corporate Items,Statutory Year-End Adjustments,,MMP Consultancy Ltd,1289790,,,,12/10/2022,2200276955,"2,065.60",,Capitalised salaries,,,,,,No
The Royal Borough of Kensington and Chelsea,RBKC,,Statutory and Corporate Items,Statutory Year-End Adjustments,,MMP Consultancy Ltd,1289790,,,,25/10/2022,2200279225,"2,250.00",,Capitalised salaries,,,,,,No
The Royal Borough of Kensington and Chelsea,RBKC,,Statutory and Corporate Items,Statutory Year-End Adjustments,,MMP Consultancy Ltd,1289790,,,,25/10/2022,2200279226,"2,250.00",,Capitalised salaries,,,,,,No
The Royal Borough of Kensington and Chelsea,RBKC,,Statutory and Corporate Items,Statutory Year-End Adjustments,,MMP Consultancy Ltd,1289790,,,,25/10/2022,2200279227,"2,250.00",,Capitalised salaries,,,,,,No
The Royal Borough of Kensington and Chelsea,RBKC,,Statutory and Corporate Items,Statutory Year-End Adjustments,,MMP Consultancy Ltd,1289790,,,,25/10/2022,2200279229,"2,250.00",,Capitalised salaries,,,,,,No
The Royal Borough of Kensington and Chelsea,RBKC,,Statutory and Corporate Items,Statutory Year-End Adjustments,,MMP Consultancy Ltd,1289790,,,,25/10/2022,2200279375,"1,136.08",,Capitalised salaries,,,,,,No
The Royal Borough of Kensington and Chelsea,RBKC,,Statutory and Corporate Items,Statutory Year-End Adjustments,,MMP Consultancy Ltd,1289790,,,,28/10/2022,2200280127,"1,420.10",,Capitalised salaries,,,,,,No
The Royal Borough of Kensington and Chelsea,RBKC,,Statutory and Corporate Items,Statutory Year-End Adjustments,,MMP Consultancy Ltd,1289790,,,,28/10/2022,2200280130,"2,582.00",,Capitalised salaries,,,,,,No
The Royal Borough of Kensington and Chelsea,RBKC,,Statutory and Corporate Items,Statutory Year-End Adjustments,,MMP Consultancy Ltd,1289790,,,,28/10/2022,2200280131,"1,549.20",,Capitalised salaries,,,,,,No
The Royal Borough of Kensington and Chelsea,RBKC,,Statutory and Corporate Items,Statutory Year-End Adjustments,,MMP Consultancy Ltd,1289790,,,,02/11/2022,2200280871,516.4,,Capitalised salaries,,,,,,No
The Royal Borough of Kensington and Chelsea,RBKC,,Statutory and Corporate Items,Statutory Year-End Adjustments,,MMP Consultancy Ltd,1289790,,,,07/11/2022,2200282031,"1,420.10",,Capitalised salaries,,,,,,No
The Royal Borough of Kensington and Chelsea,RBKC,,Statutory and Corporate Items,Statutory Year-End Adjustments,,MMP Consultancy Ltd,1289790,,,,08/11/2022,2200282369,"2,250.00",,Capitalised salaries,,,,,,No
The Royal Borough of Kensington and Chelsea,RBKC,,Statutory and Corporate Items,Statutory Year-End Adjustments,,MMP Consultancy Ltd,1289790,,,,08/11/2022,2200282370,"2,250.00",,Capitalised salaries,,,,,,No
The Royal Borough of Kensington and Chelsea,RBKC,,Statutory and Corporate Items,Statutory Year-End Adjustments,,MMP Consultancy Ltd,1289790,,,,09/11/2022,2200282469,"1,420.10",,Capitalised salaries,,,,,,No
The Royal Borough of Kensington and Chelsea,RBKC,,Statutory and Corporate Items,Statutory Year-End Adjustments,,MMP Consultancy Ltd,1289790,,,,09/11/2022,2200282557,"1,136.08",,Capitalised salaries,,,,,,No
The Royal Borough of Kensington and Chelsea,RBKC,,Statutory and Corporate Items,Statutory Year-End Adjustments,,MMP Consultancy Ltd,1289790,,,,17/11/2022,2200284371,"2,250.00",,Capitalised salaries,,,,,,No
The Royal Borough of Kensington and Chelsea,RBKC,,Statutory and Corporate Items,Statutory Year-End Adjustments,,MMP Consultancy Ltd,1289790,,,,21/11/2022,2200284958,"2,250.00",,Capitalised salaries,,,,,,No
The Royal Borough of Kensington and Chelsea,RBKC,,Statutory and Corporate Items,Statutory Year-End Adjustments,,MMP Consultancy Ltd,1289790,,,,23/11/2022,2200285475,"2,582.00",,Capitalised salaries,,,,,,No
The Royal Borough of Kensington and Chelsea,RBKC,,Statutory and Corporate Items,Statutory Year-End Adjustments,,MMP Consultancy Ltd,1289790,,,,23/11/2022,2200285477,"1,420.10",,Capitalised salaries,,,,,,No
The Royal Borough of Kensington and Chelsea,RBKC,,Statutory and Corporate Items,Statutory Year-End Adjustments,,MMP Consultancy Ltd,1289790,,,,23/11/2022,2200285489,"2,582.00",,Capitalised salaries,,,,,,No
The Royal Borough of Kensington and Chelsea,RBKC,,Statutory and Corporate Items,Statutory Year-End Adjustments,,MMP Consultancy Ltd,1289790,,,,23/11/2022,2200285495,"1,136.08",,Capitalised salaries,,,,,,No
The Royal Borough of Kensington and Chelsea,RBKC,,Statutory and Corporate Items,Statutory Year-End Adjustments,,MMP Consultancy Ltd,1289790,,,,23/11/2022,2200285496,"2,582.00",,Capitalised salaries,,,,,,No
The Royal Borough of Kensington and Chelsea,RBKC,,Statutory and Corporate Items,Statutory Year-End Adjustments,,MMP Consultancy Ltd,1289790,,,,24/11/2022,2200285746,"2,250.00",,Capitalised salaries,,,,,,No
The Royal Borough of Kensington and Chelsea,RBKC,,Statutory and Corporate Items,Statutory Year-End Adjustments,,MMP Consultancy Ltd,1289790,,,,01/12/2022,2200286990,"2,250.00",,Capitalised salaries,,,,,,No
The Royal Borough of Kensington and Chelsea,RBKC,,Statutory and Corporate Items,Statutory Year-End Adjustments,,MMP Consultancy Ltd,1289790,,,,06/12/2022,2200287720,"1,420.10",,Capitalised salaries,,,,,,No
The Royal Borough of Kensington and Chelsea,RBKC,,Statutory and Corporate Items,Statutory Year-End Adjustments,,MMP Consultancy Ltd,1289790,,,,08/12/2022,2200288453,"2,250.00",,Capitalised salaries,,,,,,No
The Royal Borough of Kensington and Chelsea,RBKC,,Statutory and Corporate Items,Statutory Year-End Adjustments,,MMP Consultancy Ltd,1289790,,,,13/12/2022,2200289467,"1,136.08",,Capitalised salaries,,,,,,No
The Royal Borough of Kensington and Chelsea,RBKC,,Statutory and Corporate Items,Statutory Year-End Adjustments,,MMP Consultancy Ltd,1289790,,,,13/12/2022,2200289468,"2,582.00",,Capitalised salaries,,,,,,No
The Royal Borough of Kensington and Chelsea,RBKC,,Statutory and Corporate Items,Statutory Year-End Adjustments,,MMP Consultancy Ltd,1289790,,,,14/12/2022,2200289585,"2,582.00",,Capitalised salaries,,,,,,No
The Royal Borough of Kensington and Chelsea,RBKC,,Statutory and Corporate Items,Statutory Year-End Adjustments,,MMP Consultancy Ltd,1289790,,,,14/12/2022,2200289586,"1,420.10",,Capitalised salaries,,,,,,No
The Royal Borough of Kensington and Chelsea,RBKC,,Statutory and Corporate Items,Statutory Year-End Adjustments,,MMP Consultancy Ltd,1289790,,,,21/12/2022,2200290865,"1,278.09",,Capitalised salaries,,,,,,No
The Royal Borough of Kensington and Chelsea,RBKC,,Statutory and Corporate Items,Statutory Year-End Adjustments,,MMP Consultancy Ltd,1289790,,,,21/12/2022,2200290867,"2,582.00",,Capitalised salaries,,,,,,No
The Royal Borough of Kensington and Chelsea,RBKC,,Statutory and Corporate Items,Statutory Year-End Adjustments,,MMP Consultancy Ltd,1289790,,,,22/12/2022,2200291112,"2,065.60",,Capitalised salaries,,,,,,No
The Royal Borough of Kensington and Chelsea,RBKC,,Statutory and Corporate Items,Statutory Year-End Adjustments,,MZA Acoustics Limited,1290499,,,,03/10/2022,2200274493,"1,200.00",,Site Works,,,,,,No
The Royal Borough of Kensington and Chelsea,RBKC,,Statutory and Corporate Items,Statutory Year-End Adjustments,,Marshall Kenny Limited,1290323,,,,19/10/2022,2200278302,"1,200.00",,Site Works,,,,,,No
The Royal Borough of Kensington and Chelsea,RBKC,,Statutory and Corporate Items,Statutory Year-End Adjustments,,Master Locking Systems Ltd,1262396,,,,05/12/2022,2200287460,"2,345.99",,Creditors Control : AP GRIR,,,,,,No
The Royal Borough of Kensington and Chelsea,RBKC,,Statutory and Corporate Items,Statutory Year-End Adjustments,,Mayer Brown Limited,1290535,,,,08/11/2022,2200282300,"2,500.00",,Other Consultants,,,,,,No
The Royal Borough of Kensington and Chelsea,RBKC,,Statutory and Corporate Items,Statutory Year-End Adjustments,,Mayer Brown Limited,1290535,,,,08/11/2022,2200282305,"1,818.75",,Site Works,,,,,,No
The Royal Borough of Kensington and Chelsea,RBKC,,Statutory and Corporate Items,Statutory Year-End Adjustments,,Mayer Brown Limited,1290535,,,,08/11/2022,2200282310,500,,Other Consultants,,,,,,No
The Royal Borough of Kensington and Chelsea,RBKC,,Statutory and Corporate Items,Statutory Year-End Adjustments,,Mayer Brown Limited,1290535,,,,08/11/2022,2200282311,750,,Other Consultants,,,,,,No
The Royal Borough of Kensington and Chelsea,RBKC,,Statutory and Corporate Items,Statutory Year-End Adjustments,,Mayer Brown Limited,1290535,,,,08/11/2022,2200282312,"2,000.00",,Other Consultants,,,,,,No
The Royal Borough of Kensington and Chelsea,RBKC,,Statutory and Corporate Items,Statutory Year-End Adjustments,,Mayer Brown Limited,1290535,,,,10/11/2022,2200282887,"1,588.75",,Other Consultants,,,,,,No
The Royal Borough of Kensington and Chelsea,RBKC,,Statutory and Corporate Items,Statutory Year-End Adjustments,,Mayer Brown Limited,1290535,,,,08/12/2022,2200288379,"1,500.00",,Other Consultants,,,,,,No
The Royal Borough of Kensington and Chelsea,RBKC,,Statutory and Corporate Items,Statutory Year-End Adjustments,,Mayer Brown Limited,1290535,,,,08/12/2022,2200288382,950,,Other Consultants,,,,,,No
The Royal Borough of Kensington and Chelsea,RBKC,,Statutory and Corporate Items,Statutory Year-End Adjustments,,Mayer Brown Limited,1290535,,,,14/12/2022,2200289635,"2,950.00",,Other Consultants,,,,,,No
The Royal Borough of Kensington and Chelsea,RBKC,,Statutory and Corporate Items,Statutory Year-End Adjustments,,Mayer Brown Limited,1290535,,,,16/12/2022,2200290032,"1,311.25",,Other Consultants,,,,,,No
The Royal Borough of Kensington and Chelsea,RBKC,,Statutory and Corporate Items,Statutory Year-End Adjustments,,Meristem Design Limited,1259153,,,,02/11/2022,2200280740,"1,278.00",,Special Maintenance,,,,,,No
The Royal Borough of Kensington and Chelsea,RBKC,,Statutory and Corporate Items,Statutory Year-End Adjustments,,Michael Dyson Associates Ltd ,1253270,,,,04/10/2022,2200274956,"9,826.13",,Professional Fees : Non Legal,,,,,,No
The Royal Borough of Kensington and Chelsea,RBKC,,Statutory and Corporate Items,Statutory Year-End Adjustments,,Michael Dyson Associates Ltd ,1253270,,,,07/11/2022,2200282032,"9,826.13",,Professional Fees : Non Legal,,,,,,No
The Royal Borough of Kensington and Chelsea,RBKC,,Statutory and Corporate Items,Statutory Year-End Adjustments,,Michael Dyson Associates Ltd ,1253270,,,,07/12/2022,2200288113,"9,826.13",,Professional Fees : Non Legal,,,,,,No
The Royal Borough of Kensington and Chelsea,RBKC,,Statutory and Corporate Items,Statutory Year-End Adjustments,,Michael Jenkins Ltd,1292734,,,,10/11/2022,2200282755,"25,155.00",,Construction : enhancements,,,,,,No
The Royal Borough of Kensington and Chelsea,RBKC,,Statutory and Corporate Items,Statutory Year-End Adjustments,,Milestone Contracting Limited,1289868,,,,03/10/2022,2200274685,"147,602.09",,Payments to main contractor,,,,,,No
The Royal Borough of Kensington and Chelsea,RBKC,,Statutory and Corporate Items,Statutory Year-End Adjustments,,Milestone Contracting Limited,1289868,,,,01/11/2022,2200280520,"41,054.17",,Payments to main contractor,,,,,,No
The Royal Borough of Kensington and Chelsea,RBKC,,Statutory and Corporate Items,Statutory Year-End Adjustments,,Milestone Contracting Limited,1289868,,,,01/12/2022,2200286836,"126,459.82",,Payments to main contractor,,,,,,No
The Royal Borough of Kensington and Chelsea,RBKC,,Statutory and Corporate Items,Statutory Year-End Adjustments,,Mitie Property Services (UK) Ltd ,1230701,,,,04/10/2022,2200275075,"4,930.98",,Payments to main contractor,,,,,,No
The Royal Borough of Kensington and Chelsea,RBKC,,Statutory and Corporate Items,Statutory Year-End Adjustments,,Mitie Property Services (UK) Ltd ,1230701,,,,07/10/2022,2200275941,"143,821.34",,Payments to main contractor,,,,,,No
The Royal Borough of Kensington and Chelsea,RBKC,,Statutory and Corporate Items,Statutory Year-End Adjustments,,Mitie Property Services (UK) Ltd ,1230701,,,,07/11/2022,2200282027,"18,526.30",,Site Works,,,,,,No
The Royal Borough of Kensington and Chelsea,RBKC,,Statutory and Corporate Items,Statutory Year-End Adjustments,,Mitie Property Services (UK) Ltd ,1230701,,,,16/11/2022,2200284224,"61,580.49",,Planned Maintenance (CM),,,,,,No
The Royal Borough of Kensington and Chelsea,RBKC,,Statutory and Corporate Items,Statutory Year-End Adjustments,,Mitie Property Services (UK) Ltd ,1230701,,,,17/11/2022,2200284309,"12,629.79",,Site Works,,,,,,No
The Royal Borough of Kensington and Chelsea,RBKC,,Statutory and Corporate Items,Statutory Year-End Adjustments,,Mitie Property Services (UK) Ltd ,1230701,,,,27/11/2022,2200286030,"13,609.07",,Site Works,,,,,,No
The Royal Borough of Kensington and Chelsea,RBKC,,Statutory and Corporate Items,Statutory Year-End Adjustments,,Mitie Property Services (UK) Ltd ,1230701,,,,27/11/2022,2200286031,"154,173.58",,Site Works,,,,,,No
The Royal Borough of Kensington and Chelsea,RBKC,,Statutory and Corporate Items,Statutory Year-End Adjustments,,Mitie Property Services (UK) Ltd ,1230701,,,,08/12/2022,2200288321,"8,472.97",,Payments to main contractor,,,,,,No
The Royal Borough of Kensington and Chelsea,RBKC,,Statutory and Corporate Items,Statutory Year-End Adjustments,,Moorhead Richardson Ltd,1276460,,,,24/10/2022,2200279118,"1,795.00",,Other Consultants,,,,,,No
The Royal Borough of Kensington and Chelsea,RBKC,,Statutory and Corporate Items,Statutory Year-End Adjustments,,Moorhead Richardson Ltd,1276460,,,,08/12/2022,2200288218,"1,650.00",,Other Consultants,,,,,,No
The Royal Borough of Kensington and Chelsea,RBKC,,Statutory and Corporate Items,Statutory Year-End Adjustments,,Moorhead Richardson Ltd,1276460,,,,08/12/2022,2200288220,"7,740.00",,Other Consultants,,,,,,No
The Royal Borough of Kensington and Chelsea,RBKC,,Statutory and Corporate Items,Statutory Year-End Adjustments,,Morgan Sindall Construction,1260362,,,,03/10/2022,2200274488,"589,870.91",,Site Works,,,,,,No
The Royal Borough of Kensington and Chelsea,RBKC,,Statutory and Corporate Items,Statutory Year-End Adjustments,,Morgan Sindall Construction,1260362,,,,06/10/2022,2200275434,"924,316.33",,Payments to main contractor,,,,,,No
The Royal Borough of Kensington and Chelsea,RBKC,,Statutory and Corporate Items,Statutory Year-End Adjustments,,Morgan Sindall Construction,1260362,,,,20/10/2022,2200278504,"340,420.15",,Site Works,,,,,,No
The Royal Borough of Kensington and Chelsea,RBKC,,Statutory and Corporate Items,Statutory Year-End Adjustments,,Morgan Sindall Construction,1260362,,,,02/11/2022,2200280973,"207,102.36",,Payments to main contractor,,,,,,No
The Royal Borough of Kensington and Chelsea,RBKC,,Statutory and Corporate Items,Statutory Year-End Adjustments,,Morgan Sindall Construction,1260362,,,,16/11/2022,2200284192,"409,324.16",,Site Works,,,,,,No
The Royal Borough of Kensington and Chelsea,RBKC,,Statutory and Corporate Items,Statutory Year-End Adjustments,,Morgan Sindall Construction,1260362,,,,19/12/2022,2200290194,"657,502.00",,Site Works,,,,,,No
The Royal Borough of Kensington and Chelsea,RBKC,,Statutory and Corporate Items,Statutory Year-End Adjustments,,Morgan Sindall Construction,1260362,,,,21/12/2022,2200290904,"616,865.69",,Payments to main contractor,,,,,,No
The Royal Borough of Kensington and Chelsea,RBKC,,Statutory and Corporate Items,Statutory Year-End Adjustments,,Mulalley & Company Ltd ,1231403,,,,07/10/2022,2200275954,"229,322.96",,Payments to main contractor,,,,,,No
The Royal Borough of Kensington and Chelsea,RBKC,,Statutory and Corporate Items,Statutory Year-End Adjustments,,Mulalley & Company Ltd ,1231403,,,,18/10/2022,2200278105,"56,577.81",,Payments to main contractor,,,,,,No
The Royal Borough of Kensington and Chelsea,RBKC,,Statutory and Corporate Items,Statutory Year-End Adjustments,,Mulalley & Company Ltd ,1231403,,,,20/10/2022,2200278572,"96,940.82",,Payments to main contractor,,,,,,No
The Royal Borough of Kensington and Chelsea,RBKC,,Statutory and Corporate Items,Statutory Year-End Adjustments,,Mulalley & Company Ltd ,1231403,,,,07/11/2022,2200282088,"33,490.77",,Construction : enhancements,,,,,,No
The Royal Borough of Kensington and Chelsea,RBKC,,Statutory and Corporate Items,Statutory Year-End Adjustments,,Mulalley & Company Ltd ,1231403,,,,15/11/2022,2200283791,"359,194.63",,Payments to main contractor,,,,,,No
The Royal Borough of Kensington and Chelsea,RBKC,,Statutory and Corporate Items,Statutory Year-End Adjustments,,Mulalley & Company Ltd ,1231403,,,,22/11/2022,2200285154,"27,226.00",,Payments to main contractor,,,,,,No
The Royal Borough of Kensington and Chelsea,RBKC,,Statutory and Corporate Items,Statutory Year-End Adjustments,,Mulalley & Company Ltd ,1231403,,,,07/12/2022,2200287995,"7,491.90",,Payments to main contractor,,,,,,No
The Royal Borough of Kensington and Chelsea,RBKC,,Statutory and Corporate Items,Statutory Year-End Adjustments,,Mulalley & Company Ltd ,1231403,,,,09/12/2022,2200288655,"61,523.18",,Construction : enhancements,,,,,,No
The Royal Borough of Kensington and Chelsea,RBKC,,Statutory and Corporate Items,Statutory Year-End Adjustments,,Mulalley & Company Ltd ,1231403,,,,19/12/2022,2200290360,"86,285.77",,Payments to main contractor,,,,,,No
The Royal Borough of Kensington and Chelsea,RBKC,,Statutory and Corporate Items,Statutory Year-End Adjustments,,Munns Ltd,1231404,,,,14/10/2022,2200277307,"17,035.00",,Creditors Control : AP GRIR,,,,,,No
The Royal Borough of Kensington and Chelsea,RBKC,,Statutory and Corporate Items,Statutory Year-End Adjustments,,T/A SVM Associates,1230750,,,,03/10/2022,2200274557,"2,500.00",,Planned Maintenance (CM),,,,,,No
The Royal Borough of Kensington and Chelsea,RBKC,,Statutory and Corporate Items,Statutory Year-End Adjustments,,T/A SVM Associates,1230750,,,,04/10/2022,2200275047,"1,000.00",,Planned Maintenance (CM),,,,,,No
The Royal Borough of Kensington and Chelsea,RBKC,,Statutory and Corporate Items,Statutory Year-End Adjustments,,T/A SVM Associates,1230750,,,,02/11/2022,2200280770,"2,400.00",,Planned Maintenance (CM),,,,,,No
The Royal Borough of Kensington and Chelsea,RBKC,,Statutory and Corporate Items,Statutory Year-End Adjustments,,T/A SVM Associates,1230750,,,,02/11/2022,2200280771,"1,000.00",,Planned Maintenance (CM),,,,,,No
The Royal Borough of Kensington and Chelsea,RBKC,,Statutory and Corporate Items,Statutory Year-End Adjustments,,T/A SVM Associates,1230750,,,,04/11/2022,2200281485,"6,900.00",,Planned Maintenance (CM),,,,,,No
